Organisation name,Organisation Code,Effective date,Directorate / service where expenditure incurred,Service Category label,Service category URI,Supplier (Beneficiary) name,Local supplier (beneficiary) internal reference,Supplier,Supplier registered charity number,VCSE grant,Payment date - G/L Date,Transaction number,Net Amount,Irrecoverable VAT,purpose_of_spend,Procurement classification / merchant category: Council�s procurement category name,Procurement classification / merchant category: CPV label,Procurement classification / merchant category: CPV code,Procurement classification / merchant category: Proclass label,Procurement classification / merchant category: Proclass code,card_transaction
The Royal Borough of Kensington and Chelsea,RBKC,0,"Libraries, Archives & Registrars",Archives and Local Studies,0,Access Displays Ltd ,1232119,0,0,0,23/02/2022,2200228593,2212,0,"Books, DVDs and CDs",,,,,,No
The Royal Borough of Kensington and Chelsea,RBKC,0,"Libraries, Archives & Registrars",Archives and Local Studies,0,JCS Online Resources Limited,1289412,0,0,0,30/03/2022,2200237186,4485,0,IT Software,,,,,,No
The Royal Borough of Kensington and Chelsea,RBKC,0,Director Integrated Commissioning,Head of Service Commissioning ASC,0,Medequip Assistive Technology Ltd ,1234994,0,0,0,27/01/2022,2200222630,129527.24,0,Hired and Contracted Services,,,,,,No
The Royal Borough of Kensington and Chelsea,RBKC,0,Director Integrated Commissioning,Head of Service Commissioning ASC,0,Medequip Assistive Technology Ltd ,1234994,0,0,0,08/03/2022,2200231818,135785.96,0,Hired and Contracted Services,,,,,,No
The Royal Borough of Kensington and Chelsea,RBKC,0,Director Integrated Commissioning,Head of Service Commissioning ASC,0,Medequip Assistive Technology Ltd ,1234994,0,0,0,08/03/2022,2200231819,3056.77,0,Hired and Contracted Services,,,,,,No
The Royal Borough of Kensington and Chelsea,RBKC,0,Director Integrated Commissioning,Head of Service Commissioning ASC,0,Medequip Assistive Technology Ltd ,1234994,0,0,0,08/03/2022,2200231820,133650.85,0,Hired and Contracted Services,,,,,,No
The Royal Borough of Kensington and Chelsea,RBKC,0,Director Integrated Commissioning,Head of Service Commissioning ASC,0,Medequip Assistive Technology Ltd ,1234994,0,0,0,08/03/2022,2200231822,7079.96,0,Hired and Contracted Services,,,,,,No
The Royal Borough of Kensington and Chelsea,RBKC,0,Director Integrated Commissioning,Head of Service Commissioning ASC,0,Better Group Ltd,1232735,0,0,0,30/03/2022,2200237177,4833.14,0,Purchase of IT Equipment,,,,,,No
The Royal Borough of Kensington and Chelsea,RBKC,0,Director Integrated Commissioning,Head of Service Commissioning ASC,0,Better Group Ltd,1232735,0,0,0,30/03/2022,2200237177,8083.01,0,Purchase of IT Equipment,,,,,,No
The Royal Borough of Kensington and Chelsea,RBKC,0,Director Integrated Commissioning,Head of Service Commissioning ASC,0,City Of Westminster ,1231771,0,0,0,29/03/2022,2200236641,67901.51,0,B*Payments to OLAs - Southampton City Co,,,,,,No
The Royal Borough of Kensington and Chelsea,RBKC,0,Director Adult Social Care,Head of Service Care and Assessment RBKC,0,Doro AB,1274450,0,0,0,12/01/2022,2200218711,1305,0,Payments to Voluntary bodies,,,,,,No
The Royal Borough of Kensington and Chelsea,RBKC,0,Director Adult Social Care,Head of Service Care and Assessment RBKC,0,Doro AB,1274450,0,0,0,22/03/2022,2200234722,6490,0,Payments to Voluntary bodies,,,,,,No
The Royal Borough of Kensington and Chelsea,RBKC,0,Director Adult Social Care,Head of Service Care and Assessment RBKC,0,Tunstall Healthcare (UK) Ltd (Use 3012996),1235586,0,0,0,15/02/2022,2200227041,1873.5,0,Payments to Voluntary bodies,,,,,,No
The Royal Borough of Kensington and Chelsea,RBKC,0,Director Adult Social Care,Head of Service Care and Assessment RBKC,0,Tunstall Healthcare (UK) Ltd (Use 3012996),1235586,0,0,0,18/02/2022,2200227821,3500,0,Payments to Voluntary bodies,,,,,,No
The Royal Borough of Kensington and Chelsea,RBKC,0,Director Adult Social Care,Head of Service Care and Assessment RBKC,0,Tunstall Healthcare (UK) Ltd (Use 3012996),1235586,0,0,0,25/03/2022,2200235864,3270,0,Payments to Voluntary bodies,,,,,,No
The Royal Borough of Kensington and Chelsea,RBKC,0,Planning and Place,Support and Systems,0,London Borough Of Islington ,1231812,0,0,0,07/01/2022,2200217520,1650,0,Service Charges - Premises,,,,,,No
The Royal Borough of Kensington and Chelsea,RBKC,0,Planning and Place,Support and Systems,0,Sage Green Safety Ltd,1269431,0,0,0,09/03/2022,2200232274,1800,0,Service Charges - Premises,,,,,,No
The Royal Borough of Kensington and Chelsea,RBKC,0,Planning and Place,Support and Systems,0,"Bsi Group (Certification,",1232996,0,0,0,17/03/2022,2200233902,1435,0,Subscriptions,,,,,,No
The Royal Borough of Kensington and Chelsea,RBKC,0,Planning and Place,Support and Systems,0,Chartered Association ,1252686,0,0,0,02/02/2022,2200224099,1250,0,Subscriptions,,,,,,No
The Royal Borough of Kensington and Chelsea,RBKC,0,Planning and Place,Support and Systems,0,Ihs Global Ltd ,1234760,0,0,0,28/03/2022,2200236190,9319,0,Subscriptions,,,,,,No
The Royal Borough of Kensington and Chelsea,RBKC,0,Planning and Place,Support and Systems,0,LABC ,1234875,0,0,0,05/01/2022,2200216690,2220,0,Day Activities,,,,,,No
The Royal Borough of Kensington and Chelsea,RBKC,0,Planning and Place,Support and Systems,0,LABC ,1234875,0,0,0,05/01/2022,2200216691,2220,0,Day Activities,,,,,,No
The Royal Borough of Kensington and Chelsea,RBKC,0,Planning and Place,Support and Systems,0,LABC ,1234875,0,0,0,18/03/2022,2200234232,2408.08,0,Subscriptions,,,,,,No
The Royal Borough of Kensington and Chelsea,RBKC,0,Planning and Place,Support and Systems,0,No5 Chambers,1287248,0,0,0,15/03/2022,2200233162,750,0,Legal Costs,,,,,,No
The Royal Borough of Kensington and Chelsea,RBKC,0,Planning and Place,Support and Systems,0,No5 Chambers,1287248,0,0,0,15/03/2022,2200233164,3312.5,0,Legal Costs,,,,,,No
The Royal Borough of Kensington and Chelsea,RBKC,0,Planning and Place,Support and Systems,0,XACT Consultancy and Training Ltd ,1253536,0,0,0,26/01/2022,2200222560,2600,0,Training related expenditure,,,,,,No
The Royal Borough of Kensington and Chelsea,RBKC,0,"Cleaner, Greener and Cultural Services",Leisure and Parks,0,C J Jordan & Son Ltd ,1233031,0,0,0,21/01/2022,2200221400,3700,0,Hired and Contracted Services,,,,,,No
The Royal Borough of Kensington and Chelsea,RBKC,0,"Cleaner, Greener and Cultural Services",Leisure and Parks,0,C J Jordan & Son Ltd ,1233031,0,0,0,24/01/2022,2200221646,906.2,0,Hired and Contracted Services,,,,,,No
The Royal Borough of Kensington and Chelsea,RBKC,0,"Cleaner, Greener and Cultural Services",Leisure and Parks,0,C J Jordan & Son Ltd ,1233031,0,0,0,24/01/2022,2200221647,1544.04,0,Hired and Contracted Services,,,,,,No
The Royal Borough of Kensington and Chelsea,RBKC,0,"Cleaner, Greener and Cultural Services",Leisure and Parks,0,C J Jordan & Son Ltd ,1233031,0,0,0,26/01/2022,2200222528,724.96,0,Hired and Contracted Services,,,,,,No
The Royal Borough of Kensington and Chelsea,RBKC,0,"Cleaner, Greener and Cultural Services",Leisure and Parks,0,C J Jordan & Son Ltd ,1233031,0,0,0,31/01/2022,2200223443,878.52,0,Hired and Contracted Services,,,,,,No
The Royal Borough of Kensington and Chelsea,RBKC,0,"Cleaner, Greener and Cultural Services",Leisure and Parks,0,C J Jordan & Son Ltd ,1233031,0,0,0,02/02/2022,2200224110,2555.38,0,Hired and Contracted Services,,,,,,No
The Royal Borough of Kensington and Chelsea,RBKC,0,"Cleaner, Greener and Cultural Services",Leisure and Parks,0,C J Jordan & Son Ltd ,1233031,0,0,0,21/02/2022,2200228141,892.36,0,Hired and Contracted Services,,,,,,No
The Royal Borough of Kensington and Chelsea,RBKC,0,"Cleaner, Greener and Cultural Services",Leisure and Parks,0,C J Jordan & Son Ltd ,1233031,0,0,0,22/02/2022,2200228279,891.68,0,Hired and Contracted Services,,,,,,No
The Royal Borough of Kensington and Chelsea,RBKC,0,"Cleaner, Greener and Cultural Services",Leisure and Parks,0,C J Jordan & Son Ltd ,1233031,0,0,0,22/02/2022,2200228282,1409.09,0,Hired and Contracted Services,,,,,,No
The Royal Borough of Kensington and Chelsea,RBKC,0,"Cleaner, Greener and Cultural Services",Leisure and Parks,0,C J Jordan & Son Ltd ,1233031,0,0,0,01/03/2022,2200230184,619.82,0,Hired and Contracted Services,,,,,,No
The Royal Borough of Kensington and Chelsea,RBKC,0,"Cleaner, Greener and Cultural Services",Leisure and Parks,0,C J Jordan & Son Ltd ,1233031,0,0,0,21/03/2022,2200234489,1267.78,0,Hired and Contracted Services,,,,,,No
The Royal Borough of Kensington and Chelsea,RBKC,0,"Cleaner, Greener and Cultural Services",Leisure and Parks,0,C J Jordan & Son Ltd ,1233031,0,0,0,21/03/2022,2200234518,1058.4,0,Hired and Contracted Services,,,,,,No
The Royal Borough of Kensington and Chelsea,RBKC,0,"Cleaner, Greener and Cultural Services",Leisure and Parks,0,C J Jordan & Son Ltd ,1233031,0,0,0,22/03/2022,2200234682,1835.93,0,Hired and Contracted Services,,,,,,No
The Royal Borough of Kensington and Chelsea,RBKC,0,"Cleaner, Greener and Cultural Services",Leisure and Parks,0,C J Jordan & Son Ltd ,1233031,0,0,0,23/03/2022,2200234941,529.2,0,Hired and Contracted Services,,,,,,No
The Royal Borough of Kensington and Chelsea,RBKC,0,"Cleaner, Greener and Cultural Services",Leisure and Parks,0,C J Jordan & Son Ltd ,1233031,0,0,0,23/03/2022,2200235137,559,0,Hired and Contracted Services,,,,,,No
The Royal Borough of Kensington and Chelsea,RBKC,0,"Cleaner, Greener and Cultural Services",Leisure and Parks,0,C J Jordan & Son Ltd ,1233031,0,0,0,28/03/2022,2200236133,953.26,0,Hired and Contracted Services,,,,,,No
The Royal Borough of Kensington and Chelsea,RBKC,0,"Cleaner, Greener and Cultural Services",Leisure and Parks,0,Dma Signs Ltd ,1234013,0,0,0,01/03/2022,2200230104,758,0,Other Adhoc Site / Grounds Maintenanc,,,,,,No
The Royal Borough of Kensington and Chelsea,RBKC,0,"Cleaner, Greener and Cultural Services",Leisure and Parks,0,Redact Details,1234806,0,0,0,27/01/2022,2200222750,1250,0,Furniture,,,,,,No
The Royal Borough of Kensington and Chelsea,RBKC,0,"Cleaner, Greener and Cultural Services",Leisure and Parks,0,Redact Details,1234806,0,0,0,03/02/2022,2200224688,1083,0,Equipment,,,,,,No
The Royal Borough of Kensington and Chelsea,RBKC,0,"Cleaner, Greener and Cultural Services",Leisure and Parks,0,Redact Details,1234806,0,0,0,30/03/2022,2200237191,1103,0,Equipment,,,,,,No
The Royal Borough of Kensington and Chelsea,RBKC,0,"Cleaner, Greener and Cultural Services",Leisure and Parks,0,T/A Idverde ,1231423,0,0,0,04/01/2022,2200216408,54458.26,0,Grounds Maintenance Contracts,,,,,,No
The Royal Borough of Kensington and Chelsea,RBKC,0,"Cleaner, Greener and Cultural Services",Leisure and Parks,0,T/A Idverde ,1231423,0,0,0,04/01/2022,2200216408,1239.36,0,Grounds Maintenance Contracts,,,,,,No
The Royal Borough of Kensington and Chelsea,RBKC,0,"Cleaner, Greener and Cultural Services",Leisure and Parks,0,T/A Idverde ,1231423,0,0,0,12/01/2022,2200218815,54458.26,0,Grounds Maintenance Contracts,,,,,,No
The Royal Borough of Kensington and Chelsea,RBKC,0,"Cleaner, Greener and Cultural Services",Leisure and Parks,0,T/A Idverde ,1231423,0,0,0,12/01/2022,2200218815,1239.36,0,Grounds Maintenance Contracts,,,,,,No
The Royal Borough of Kensington and Chelsea,RBKC,0,"Cleaner, Greener and Cultural Services",Leisure and Parks,0,T/A Idverde ,1231423,0,0,0,04/02/2022,2200224803,54458.26,0,Grounds Maintenance Contracts,,,,,,No
The Royal Borough of Kensington and Chelsea,RBKC,0,"Cleaner, Greener and Cultural Services",Leisure and Parks,0,T/A Idverde ,1231423,0,0,0,04/02/2022,2200224803,1239.36,0,Grounds Maintenance Contracts,,,,,,No
The Royal Borough of Kensington and Chelsea,RBKC,0,"Cleaner, Greener and Cultural Services",Leisure and Parks,0,T/A Idverde ,1231423,0,0,0,14/03/2022,2200233039,41331.99,0,Grounds Maintenance Contracts,,,,,,No
The Royal Borough of Kensington and Chelsea,RBKC,0,Communities,Community Safety,0,City Of Westminster ,1231771,0,0,0,29/03/2022,2200236531,62380,0,Hired and Contracted Services,,,,,,No
The Royal Borough of Kensington and Chelsea,RBKC,0,Communities,Community Safety,0,City Of Westminster ,1231771,0,0,0,29/03/2022,2200236532,124197,0,Hired and Contracted Services,,,,,,No
The Royal Borough of Kensington and Chelsea,RBKC,0,Statutory Year-End Adjustments,Statutory Year-End Adjustments,0,24 Seven Companies Ltd,1260952,0,0,0,16/03/2022,2200233515,2000,0,Payments to main contractor,,,,,,No
The Royal Borough of Kensington and Chelsea,RBKC,0,Statutory Year-End Adjustments,Statutory Year-End Adjustments,0,24 Seven Companies Ltd,1260952,0,0,0,16/03/2022,2200233516,1000,0,Payments to main contractor,,,,,,No
The Royal Borough of Kensington and Chelsea,RBKC,0,Statutory Year-End Adjustments,Statutory Year-End Adjustments,0,24 Seven Companies Ltd,1260952,0,0,0,16/03/2022,2200233519,3500,0,Payments to main contractor,,,,,,No
The Royal Borough of Kensington and Chelsea,RBKC,0,Statutory Year-End Adjustments,Statutory Year-End Adjustments,0,24 Seven Companies Ltd,1260952,0,0,0,16/03/2022,2200233520,1000,0,Payments to main contractor,,,,,,No
The Royal Borough of Kensington and Chelsea,RBKC,0,Statutory Year-End Adjustments,Statutory Year-End Adjustments,0,24 Seven Companies Ltd,1260952,0,0,0,23/03/2022,2200235144,1000,0,Payments to main contractor,,,,,,No
The Royal Borough of Kensington and Chelsea,RBKC,0,Statutory Year-End Adjustments,Statutory Year-End Adjustments,0,24 Seven Companies Ltd,1260952,0,0,0,23/03/2022,2200235145,500,0,Payments to main contractor,,,,,,No
The Royal Borough of Kensington and Chelsea,RBKC,0,Statutory Year-End Adjustments,Statutory Year-End Adjustments,0,24 Seven Companies Ltd,1260952,0,0,0,23/03/2022,2200235146,500,0,Payments to main contractor,,,,,,No
The Royal Borough of Kensington and Chelsea,RBKC,0,Statutory Year-End Adjustments,Statutory Year-End Adjustments,0,24 Seven Companies Ltd,1260952,0,0,0,24/03/2022,2200235397,1500,0,Payments to main contractor,,,,,,No
The Royal Borough of Kensington and Chelsea,RBKC,0,Statutory Year-End Adjustments,Statutory Year-End Adjustments,0,3Bm Ltd,1232075,0,0,0,10/01/2022,2200217795,55504,0,B*Surveyors,,,,,,No
The Royal Borough of Kensington and Chelsea,RBKC,0,Statutory Year-End Adjustments,Statutory Year-End Adjustments,0,3Bm Ltd,1232075,0,0,0,19/01/2022,2200220745,3960,0,HCC - Architects,,,,,,No
The Royal Borough of Kensington and Chelsea,RBKC,0,Statutory Year-End Adjustments,Statutory Year-End Adjustments,0,3Bm Ltd,1232075,0,0,0,19/01/2022,2200220746,7150,0,HCC - Architects,,,,,,No
The Royal Borough of Kensington and Chelsea,RBKC,0,Statutory Year-End Adjustments,Statutory Year-End Adjustments,0,3Bm Ltd,1232075,0,0,0,19/01/2022,2200220747,11605,0,HCC - Architects,,,,,,No
The Royal Borough of Kensington and Chelsea,RBKC,0,Statutory Year-End Adjustments,Statutory Year-End Adjustments,0,3Bm Ltd,1232075,0,0,0,26/01/2022,2200222515,6437,0,HCC - Architects,,,,,,No
The Royal Borough of Kensington and Chelsea,RBKC,0,Statutory Year-End Adjustments,Statutory Year-End Adjustments,0,3Bm Ltd,1232075,0,0,0,26/01/2022,2200222515,644,0,HCC - Architects,,,,,,No
The Royal Borough of Kensington and Chelsea,RBKC,0,Statutory Year-End Adjustments,Statutory Year-End Adjustments,0,3Bm Ltd,1232075,0,0,0,26/01/2022,2200222516,700,0,HCC - Architects,,,,,,No
The Royal Borough of Kensington and Chelsea,RBKC,0,Statutory Year-End Adjustments,Statutory Year-End Adjustments,0,3Bm Ltd,1232075,0,0,0,26/01/2022,2200222516,6995,0,HCC - Architects,,,,,,No
The Royal Borough of Kensington and Chelsea,RBKC,0,Statutory Year-End Adjustments,Statutory Year-End Adjustments,0,3Bm Ltd,1232075,0,0,0,26/01/2022,2200222517,3450,0,HCC - Architects,,,,,,No
The Royal Borough of Kensington and Chelsea,RBKC,0,Statutory Year-End Adjustments,Statutory Year-End Adjustments,0,3Bm Ltd,1232075,0,0,0,26/01/2022,2200222518,6437,0,HCC - Architects,,,,,,No
The Royal Borough of Kensington and Chelsea,RBKC,0,Statutory Year-End Adjustments,Statutory Year-End Adjustments,0,3Bm Ltd,1232075,0,0,0,26/01/2022,2200222518,644,0,HCC - Architects,,,,,,No
The Royal Borough of Kensington and Chelsea,RBKC,0,Statutory Year-End Adjustments,Statutory Year-End Adjustments,0,3Bm Ltd,1232075,0,0,0,31/01/2022,2200223272,724,0,HCC - Architects,,,,,,No
The Royal Borough of Kensington and Chelsea,RBKC,0,Statutory Year-End Adjustments,Statutory Year-End Adjustments,0,3Bm Ltd,1232075,0,0,0,31/01/2022,2200223272,7240,0,HCC - Architects,,,,,,No
The Royal Borough of Kensington and Chelsea,RBKC,0,Statutory Year-End Adjustments,Statutory Year-End Adjustments,0,3Bm Ltd,1232075,0,0,0,10/02/2022,2200226269,4950,0,HCC - Architects,,,,,,No
The Royal Borough of Kensington and Chelsea,RBKC,0,Statutory Year-End Adjustments,Statutory Year-End Adjustments,0,3Bm Ltd,1232075,0,0,0,10/02/2022,2200226270,5000,0,HCC - Architects,,,,,,No
The Royal Borough of Kensington and Chelsea,RBKC,0,Statutory Year-End Adjustments,Statutory Year-End Adjustments,0,3Bm Ltd,1232075,0,0,0,11/02/2022,2200226503,800,0,HCC - Architects,,,,,,No
The Royal Borough of Kensington and Chelsea,RBKC,0,Statutory Year-End Adjustments,Statutory Year-End Adjustments,0,3Bm Ltd,1232075,0,0,0,11/02/2022,2200226503,7995,0,HCC - Architects,,,,,,No
The Royal Borough of Kensington and Chelsea,RBKC,0,Statutory Year-End Adjustments,Statutory Year-End Adjustments,0,3Bm Ltd,1232075,0,0,0,11/02/2022,2200226504,1469,0,HCC - Architects,,,,,,No
The Royal Borough of Kensington and Chelsea,RBKC,0,Statutory Year-End Adjustments,Statutory Year-End Adjustments,0,3Bm Ltd,1232075,0,0,0,11/02/2022,2200226505,19397,0,HCC - Architects,,,,,,No
The Royal Borough of Kensington and Chelsea,RBKC,0,Statutory Year-End Adjustments,Statutory Year-End Adjustments,0,3Bm Ltd,1232075,0,0,0,11/02/2022,2200226505,1940,0,HCC - Architects,,,,,,No
The Royal Borough of Kensington and Chelsea,RBKC,0,Statutory Year-End Adjustments,Statutory Year-End Adjustments,0,3Bm Ltd,1232075,0,0,0,16/02/2022,2200227432,2500,0,B*Surveyors,,,,,,No
The Royal Borough of Kensington and Chelsea,RBKC,0,Statutory Year-End Adjustments,Statutory Year-End Adjustments,0,3Bm Ltd,1232075,0,0,0,17/02/2022,2200227602,644,0,B*Surveyors,,,,,,No
The Royal Borough of Kensington and Chelsea,RBKC,0,Statutory Year-End Adjustments,Statutory Year-End Adjustments,0,3Bm Ltd,1232075,0,0,0,17/02/2022,2200227602,6437,0,B*Surveyors,,,,,,No
The Royal Borough of Kensington and Chelsea,RBKC,0,Statutory Year-End Adjustments,Statutory Year-End Adjustments,0,3Bm Ltd,1232075,0,0,0,22/03/2022,2200234674,88000,0,HCC - Architects,,,,,,No
The Royal Borough of Kensington and Chelsea,RBKC,0,Statutory Year-End Adjustments,Statutory Year-End Adjustments,0,4i Solutions Ltd,1232084,0,0,0,14/01/2022,2200219425,11760.89,0,Payments to main contractor,,,,,,No
The Royal Borough of Kensington and Chelsea,RBKC,0,Statutory Year-End Adjustments,Statutory Year-End Adjustments,0,4i Solutions Ltd,1232084,0,0,0,17/01/2022,2200219945,4952.35,0,Payments to main contractor,,,,,,No
The Royal Borough of Kensington and Chelsea,RBKC,0,Statutory Year-End Adjustments,Statutory Year-End Adjustments,0,4i Solutions Ltd,1232084,0,0,0,11/02/2022,2200226536,13522.26,0,Payments to main contractor,,,,,,No
The Royal Borough of Kensington and Chelsea,RBKC,0,Statutory Year-End Adjustments,Statutory Year-End Adjustments,0,4i Solutions Ltd,1232084,0,0,0,11/03/2022,2200232653,16438.05,0,Payments to main contractor,,,,,,No
The Royal Borough of Kensington and Chelsea,RBKC,0,Statutory Year-End Adjustments,Statutory Year-End Adjustments,0,99 Structural Engineers,1274678,0,0,0,21/01/2022,2200221436,3000,0,Romanse Expenses,,,,,,No
The Royal Borough of Kensington and Chelsea,RBKC,0,Statutory Year-End Adjustments,Statutory Year-End Adjustments,0,A J Oakes And Partners,1232092,0,0,0,14/02/2022,2200226836,950,0,Romanse Expenses,,,,,,No
The Royal Borough of Kensington and Chelsea,RBKC,0,Statutory Year-End Adjustments,Statutory Year-End Adjustments,0,A N Contract Service Ltd,1232095,0,0,0,31/01/2022,2200223244,2665,0,Planned Maintenance (CM),,,,,,No
The Royal Borough of Kensington and Chelsea,RBKC,0,Statutory Year-End Adjustments,Statutory Year-End Adjustments,0,A N Contract Service Ltd,1232095,0,0,0,01/02/2022,2200223817,5500,0,Planned Maintenance (CM),,,,,,No
The Royal Borough of Kensington and Chelsea,RBKC,0,Statutory Year-End Adjustments,Statutory Year-End Adjustments,0,A N Contract Service Ltd,1232095,0,0,0,01/02/2022,2200223818,6875,0,Planned Maintenance (CM),,,,,,No
The Royal Borough of Kensington and Chelsea,RBKC,0,Statutory Year-End Adjustments,Statutory Year-End Adjustments,0,A N Contract Service Ltd,1232095,0,0,0,02/02/2022,2200224113,25175,0,Other Consultants,,,,,,No
The Royal Borough of Kensington and Chelsea,RBKC,0,Statutory Year-End Adjustments,Statutory Year-End Adjustments,0,A N Contract Service Ltd,1232095,0,0,0,02/02/2022,2200224115,9510,0,Other Consultants,,,,,,No
The Royal Borough of Kensington and Chelsea,RBKC,0,Statutory Year-End Adjustments,Statutory Year-End Adjustments,0,A N Contract Service Ltd,1232095,0,0,0,02/02/2022,2200224128,9772,0,Planned Maintenance (CM),,,,,,No
The Royal Borough of Kensington and Chelsea,RBKC,0,Statutory Year-End Adjustments,Statutory Year-End Adjustments,0,A N Contract Service Ltd,1232095,0,0,0,02/02/2022,2200224129,9034.55,0,Planned Maintenance (CM),,,,,,No
The Royal Borough of Kensington and Chelsea,RBKC,0,Statutory Year-End Adjustments,Statutory Year-End Adjustments,0,A N Contract Service Ltd,1232095,0,0,0,02/02/2022,2200224466,120765.35,0,Planned Maintenance (CM),,,,,,No
The Royal Borough of Kensington and Chelsea,RBKC,0,Statutory Year-End Adjustments,Statutory Year-End Adjustments,0,A N Contract Service Ltd,1232095,0,0,0,16/02/2022,2200227426,7113.5,0,Planned Maintenance (CM),,,,,,No
The Royal Borough of Kensington and Chelsea,RBKC,0,Statutory Year-End Adjustments,Statutory Year-End Adjustments,0,A N Contract Service Ltd,1232095,0,0,0,23/02/2022,2200228562,22533,0,Planned Maintenance (CM),,,,,,No
The Royal Borough of Kensington and Chelsea,RBKC,0,Statutory Year-End Adjustments,Statutory Year-End Adjustments,0,A N Contract Service Ltd,1232095,0,0,0,23/02/2022,2200228727,69739.95,0,Planned Maintenance (CM),,,,,,No
The Royal Borough of Kensington and Chelsea,RBKC,0,Statutory Year-End Adjustments,Statutory Year-End Adjustments,0,A N Contract Service Ltd,1232095,0,0,0,14/03/2022,2200232959,3955,0,Planned Maintenance (CM),,,,,,No
The Royal Borough of Kensington and Chelsea,RBKC,0,Statutory Year-End Adjustments,Statutory Year-End Adjustments,0,A N Contract Service Ltd,1232095,0,0,0,14/03/2022,2200232960,4599,0,Planned Maintenance (CM),,,,,,No
The Royal Borough of Kensington and Chelsea,RBKC,0,Statutory Year-End Adjustments,Statutory Year-End Adjustments,0,A N Contract Service Ltd,1232095,0,0,0,14/03/2022,2200232961,17332,0,Planned Maintenance (CM),,,,,,No
The Royal Borough of Kensington and Chelsea,RBKC,0,Statutory Year-End Adjustments,Statutory Year-End Adjustments,0,ABCA Systems LTD,1252858,0,0,0,30/03/2022,2200237040,3825,0,Payments to main contractor,,,,,,No
The Royal Borough of Kensington and Chelsea,RBKC,0,Statutory Year-End Adjustments,Statutory Year-End Adjustments,0,Akdesign Consultants Ltd,1263929,0,0,0,04/02/2022,2200224850,1590,0,,,,,,,No
The Royal Borough of Kensington and Chelsea,RBKC,0,Statutory Year-End Adjustments,Statutory Year-End Adjustments,0,Akdesign Consultants Ltd,1263929,0,0,0,18/02/2022,2200227862,625,0,,,,,,,No
The Royal Borough of Kensington and Chelsea,RBKC,0,Statutory Year-End Adjustments,Statutory Year-End Adjustments,0,Akdesign Consultants Ltd,1263929,0,0,0,04/03/2022,2200230921,500,0,,,,,,,No
The Royal Borough of Kensington and Chelsea,RBKC,0,Statutory Year-End Adjustments,Statutory Year-End Adjustments,0,Akdesign Consultants Ltd,1263929,0,0,0,08/03/2022,2200231741,630,0,,,,,,,No
The Royal Borough of Kensington and Chelsea,RBKC,0,Statutory Year-End Adjustments,Statutory Year-End Adjustments,0,Ans Group Ltd,1265384,0,0,0,07/01/2022,2200217352,7500,0,Computer Software,,,,,,No
The Royal Borough of Kensington and Chelsea,RBKC,0,Statutory Year-End Adjustments,Statutory Year-End Adjustments,0,Ans Group Ltd,1265384,0,0,0,10/01/2022,2200217886,18914,0,Computer Software,,,,,,No
The Royal Borough of Kensington and Chelsea,RBKC,0,Statutory Year-End Adjustments,Statutory Year-End Adjustments,0,Ans Group Ltd,1265384,0,0,0,04/02/2022,2200224942,12427.22,0,Computer Software,,,,,,No
The Royal Borough of Kensington and Chelsea,RBKC,0,Statutory Year-End Adjustments,Statutory Year-End Adjustments,0,Ans Group Ltd,1265384,0,0,0,24/02/2022,2200228877,10500,0,Computer Software,,,,,,No
The Royal Borough of Kensington and Chelsea,RBKC,0,Statutory Year-End Adjustments,Statutory Year-End Adjustments,0,Ans Group Ltd,1265384,0,0,0,25/03/2022,2200235763,6558.9,0,Computer Software,,,,,,No
The Royal Borough of Kensington and Chelsea,RBKC,0,Statutory Year-End Adjustments,Statutory Year-End Adjustments,0,AO Business,1232416,0,0,0,25/01/2022,2200222405,798.34,0,Special Maintenance,,,,,,No
The Royal Borough of Kensington and Chelsea,RBKC,0,Statutory Year-End Adjustments,Statutory Year-End Adjustments,0,AO Business,1232416,0,0,0,18/02/2022,2200227911,665.83,0,Special Maintenance,,,,,,No
The Royal Borough of Kensington and Chelsea,RBKC,0,Statutory Year-End Adjustments,Statutory Year-End Adjustments,0,AO Business,1232416,0,0,0,21/02/2022,2200228159,574.16,0,Special Maintenance,,,,,,No
The Royal Borough of Kensington and Chelsea,RBKC,0,Statutory Year-End Adjustments,Statutory Year-End Adjustments,0,AO Business,1232416,0,0,0,21/02/2022,2200228173,11031.75,0,Special Maintenance,,,,,,No
The Royal Borough of Kensington and Chelsea,RBKC,0,Statutory Year-End Adjustments,Statutory Year-End Adjustments,0,AO Business,1232416,0,0,0,25/02/2022,2200229542,532.5,0,Special Maintenance,,,,,,No
The Royal Borough of Kensington and Chelsea,RBKC,0,Statutory Year-End Adjustments,Statutory Year-End Adjustments,0,AO Business,1232416,0,0,0,11/03/2022,2200232729,544.99,0,Special Maintenance,,,,,,No
The Royal Borough of Kensington and Chelsea,RBKC,0,Statutory Year-End Adjustments,Statutory Year-End Adjustments,0,AO Business,1232416,0,0,0,16/03/2022,2200233481,4281.67,0,Romanse Expenses,,,,,,No
The Royal Borough of Kensington and Chelsea,RBKC,0,Statutory Year-End Adjustments,Statutory Year-End Adjustments,0,AO Business,1232416,0,0,0,16/03/2022,2200233514,1747.5,0,Payments to main contractor,,,,,,No
The Royal Borough of Kensington and Chelsea,RBKC,0,Statutory Year-End Adjustments,Statutory Year-End Adjustments,0,AO Business,1232416,0,0,0,17/03/2022,2200233960,1393.65,0,Special Maintenance,,,,,,No
The Royal Borough of Kensington and Chelsea,RBKC,0,Statutory Year-End Adjustments,Statutory Year-End Adjustments,0,AO Business,1232416,0,0,0,17/03/2022,2200233961,5650.39,0,Special Maintenance,,,,,,No
The Royal Borough of Kensington and Chelsea,RBKC,0,Statutory Year-End Adjustments,Statutory Year-End Adjustments,0,AO Business,1232416,0,0,0,17/03/2022,2200233975,1110.4,0,Special Maintenance,,,,,,No
The Royal Borough of Kensington and Chelsea,RBKC,0,Statutory Year-End Adjustments,Statutory Year-End Adjustments,0,AO Business,1232416,0,0,0,24/03/2022,2200235563,2498.5,0,Special Maintenance,,,,,,No
The Royal Borough of Kensington and Chelsea,RBKC,0,Statutory Year-End Adjustments,Statutory Year-End Adjustments,0,AVVIQ Consulting Limited,1285113,0,0,0,08/03/2022,2200231880,1400,0,,,,,,,No
The Royal Borough of Kensington and Chelsea,RBKC,0,Statutory Year-End Adjustments,Statutory Year-End Adjustments,0,Abbey Builders Ltd ,1232102,0,0,0,20/01/2022,2200221116,1788.8,0,Payments to main contractor,,,,,,No
The Royal Borough of Kensington and Chelsea,RBKC,0,Statutory Year-End Adjustments,Statutory Year-End Adjustments,0,Abbey Builders Ltd ,1232102,0,0,0,15/02/2022,2200227161,4681,0,Payments to main contractor,,,,,,No
The Royal Borough of Kensington and Chelsea,RBKC,0,Statutory Year-End Adjustments,Statutory Year-End Adjustments,0,Abbey Builders Ltd ,1232102,0,0,0,23/02/2022,2200228751,5138,0,Payments to main contractor,,,,,,No
The Royal Borough of Kensington and Chelsea,RBKC,0,Statutory Year-End Adjustments,Statutory Year-End Adjustments,0,Abbey Builders Ltd ,1232102,0,0,0,24/03/2022,2200235608,7068.01,0,Payments to main contractor,,,,,,No
The Royal Borough of Kensington and Chelsea,RBKC,0,Statutory Year-End Adjustments,Statutory Year-End Adjustments,0,Academy Consulting Solutions Ltd ,1232117,0,0,0,21/02/2022,2200228127,17000,0,Other Consultants,,,,,,No
The Royal Borough of Kensington and Chelsea,RBKC,0,Statutory Year-End Adjustments,Statutory Year-End Adjustments,0,Academy Consulting Solutions Ltd ,1232117,0,0,0,04/03/2022,2200230974,3000,0,Other Consultants,,,,,,No
The Royal Borough of Kensington and Chelsea,RBKC,0,Statutory Year-End Adjustments,Statutory Year-End Adjustments,0,Academy Consulting Solutions Ltd ,1232117,0,0,0,04/03/2022,2200230980,2500,0,Other Consultants,,,,,,No
The Royal Borough of Kensington and Chelsea,RBKC,0,Statutory Year-End Adjustments,Statutory Year-End Adjustments,0,Academy Consulting Solutions Ltd ,1232117,0,0,0,15/03/2022,2200233314,16500,0,Other Consultants,,,,,,No
The Royal Borough of Kensington and Chelsea,RBKC,0,Statutory Year-End Adjustments,Statutory Year-End Adjustments,0,Academy Consulting Solutions Ltd ,1232117,0,0,0,17/03/2022,2200233645,3000,0,Other Consultants,,,,,,No
The Royal Borough of Kensington and Chelsea,RBKC,0,Statutory Year-End Adjustments,Statutory Year-End Adjustments,0,Adam Architecture Ltd ,1232322,0,0,0,04/01/2022,2200216459,880,0,Romanse Expenses,,,,,,No
The Royal Borough of Kensington and Chelsea,RBKC,0,Statutory Year-End Adjustments,Statutory Year-End Adjustments,0,Adam Architecture Ltd ,1232322,0,0,0,27/01/2022,2200222643,880,0,Romanse Expenses,,,,,,No
The Royal Borough of Kensington and Chelsea,RBKC,0,Statutory Year-End Adjustments,Statutory Year-End Adjustments,0,Adam Architecture Ltd ,1232322,0,0,0,04/03/2022,2200230989,880,0,Romanse Expenses,,,,,,No
The Royal Borough of Kensington and Chelsea,RBKC,0,Statutory Year-End Adjustments,Statutory Year-End Adjustments,0,Adaptations MW Ltd,1272466,0,0,0,28/02/2022,2200229722,6550,0,Payments to main contractor,,,,,,No
The Royal Borough of Kensington and Chelsea,RBKC,0,Statutory Year-End Adjustments,Statutory Year-End Adjustments,0,Adaptations MW Ltd,1272466,0,0,0,15/03/2022,2200233134,6279,0,Payments to main contractor,,,,,,No
The Royal Borough of Kensington and Chelsea,RBKC,0,Statutory Year-End Adjustments,Statutory Year-End Adjustments,0,Alexander Scaffold Ltd ,1231166,0,0,0,16/02/2022,2200227410,880,0,Payments to main contractor,,,,,,No
The Royal Borough of Kensington and Chelsea,RBKC,0,Statutory Year-End Adjustments,Statutory Year-End Adjustments,0,Allies & Morrison LLP ,1232371,0,0,0,13/01/2022,2200219095,3660.56,0,Payments to main contractor,,,,,,No
The Royal Borough of Kensington and Chelsea,RBKC,0,Statutory Year-End Adjustments,Statutory Year-End Adjustments,0,Allies & Morrison LLP ,1232371,0,0,0,13/01/2022,2200219097,6000,0,Payments to main contractor,,,,,,No
The Royal Borough of Kensington and Chelsea,RBKC,0,Statutory Year-End Adjustments,Statutory Year-End Adjustments,0,Allies & Morrison LLP ,1232371,0,0,0,02/02/2022,2200224215,6000,0,Payments to main contractor,,,,,,No
The Royal Borough of Kensington and Chelsea,RBKC,0,Statutory Year-End Adjustments,Statutory Year-End Adjustments,0,Allies & Morrison LLP ,1232371,0,0,0,04/03/2022,2200230983,6000,0,Payments to main contractor,,,,,,No
The Royal Borough of Kensington and Chelsea,RBKC,0,Statutory Year-End Adjustments,Statutory Year-End Adjustments,0,Allies & Morrison LLP ,1232371,0,0,0,04/03/2022,2200230984,996.19,0,Payments to main contractor,,,,,,No
The Royal Borough of Kensington and Chelsea,RBKC,0,Statutory Year-End Adjustments,Statutory Year-End Adjustments,0,Amwell Construction Ltd ,1231169,0,0,0,05/02/2022,2200225228,1756,0,Payments to main contractor,,,,,,No
The Royal Borough of Kensington and Chelsea,RBKC,0,Statutory Year-End Adjustments,Statutory Year-End Adjustments,0,Amwell Construction Ltd ,1231169,0,0,0,08/03/2022,2200231973,17199,0,Payments to main contractor,,,,,,No
The Royal Borough of Kensington and Chelsea,RBKC,0,Statutory Year-End Adjustments,Statutory Year-End Adjustments,0,Amwell Construction Ltd ,1231169,0,0,0,16/03/2022,2200233501,7136.95,0,Payments to main contractor,,,,,,No
The Royal Borough of Kensington and Chelsea,RBKC,0,Statutory Year-End Adjustments,Statutory Year-End Adjustments,0,Ansador Ltd ,1232405,0,0,0,11/01/2022,2200218212,37281.51,0,Payments to main contractor,,,,,,No
The Royal Borough of Kensington and Chelsea,RBKC,0,Statutory Year-End Adjustments,Statutory Year-End Adjustments,0,Ansador Ltd ,1232405,0,0,0,10/02/2022,2200226308,53955,0,Payments to main contractor,,,,,,No
The Royal Borough of Kensington and Chelsea,RBKC,0,Statutory Year-End Adjustments,Statutory Year-End Adjustments,0,Ansador Ltd ,1232405,0,0,0,14/02/2022,2200226936,17447.66,0,Payments to main contractor,,,,,,No
The Royal Borough of Kensington and Chelsea,RBKC,0,Statutory Year-End Adjustments,Statutory Year-End Adjustments,0,Aquaneed Ltd,1260944,0,0,0,01/02/2022,2200223981,1415.45,0,Payments to main contractor,,,,,,No
The Royal Borough of Kensington and Chelsea,RBKC,0,Statutory Year-End Adjustments,Statutory Year-End Adjustments,0,Aquaneed Ltd,1260944,0,0,0,17/03/2022,2200233976,7167.12,0,Payments to main contractor,,,,,,No
The Royal Borough of Kensington and Chelsea,RBKC,0,Statutory Year-End Adjustments,Statutory Year-End Adjustments,0,Arcadis Llp ,1232430,0,0,0,11/01/2022,2200218187,5000,0,,,,,,,No
The Royal Borough of Kensington and Chelsea,RBKC,0,Statutory Year-End Adjustments,Statutory Year-End Adjustments,0,Arcadis Llp ,1232430,0,0,0,02/02/2022,2200224451,5000,0,,,,,,,No
The Royal Borough of Kensington and Chelsea,RBKC,0,Statutory Year-End Adjustments,Statutory Year-End Adjustments,0,Arcadis Llp ,1232430,0,0,0,25/02/2022,2200229292,34860,0,Other Consultants,,,,,,No
The Royal Borough of Kensington and Chelsea,RBKC,0,Statutory Year-End Adjustments,Statutory Year-End Adjustments,0,Arcadis Llp ,1232430,0,0,0,04/03/2022,2200230996,5000,0,,,,,,,No
The Royal Borough of Kensington and Chelsea,RBKC,0,Statutory Year-End Adjustments,Statutory Year-End Adjustments,0,Arcus Consulting Llp,1265536,0,0,0,12/01/2022,2200218796,3323,0,Site Works,,,,,,No
The Royal Borough of Kensington and Chelsea,RBKC,0,Statutory Year-End Adjustments,Statutory Year-End Adjustments,0,Arcus Consulting Llp,1265536,0,0,0,12/01/2022,2200218820,2747.06,0,Payments to main contractor,,,,,,No
The Royal Borough of Kensington and Chelsea,RBKC,0,Statutory Year-End Adjustments,Statutory Year-End Adjustments,0,Arcus Consulting Llp,1265536,0,0,0,04/02/2022,2200225062,2747.06,0,Payments to main contractor,,,,,,No
The Royal Borough of Kensington and Chelsea,RBKC,0,Statutory Year-End Adjustments,Statutory Year-End Adjustments,0,Arcus Consulting Llp,1265536,0,0,0,04/02/2022,2200225063,2373.71,0,Site Works,,,,,,No
The Royal Borough of Kensington and Chelsea,RBKC,0,Statutory Year-End Adjustments,Statutory Year-End Adjustments,0,Arcus Consulting Llp,1265536,0,0,0,09/03/2022,2200232174,2848.45,0,Site Works,,,,,,No
The Royal Borough of Kensington and Chelsea,RBKC,0,Statutory Year-End Adjustments,Statutory Year-End Adjustments,0,Arcus Consulting Llp,1265536,0,0,0,09/03/2022,2200232175,3296.47,0,Payments to main contractor,,,,,,No
The Royal Borough of Kensington and Chelsea,RBKC,0,Statutory Year-End Adjustments,Statutory Year-End Adjustments,0,Arcus Consulting Llp,1265536,0,0,0,15/03/2022,2200233337,6646,0,Site Works,,,,,,No
The Royal Borough of Kensington and Chelsea,RBKC,0,Statutory Year-End Adjustments,Statutory Year-End Adjustments,0,Arcus Consulting Llp,1265536,0,0,0,17/03/2022,2200233921,2373.71,0,Site Works,,,,,,No
The Royal Borough of Kensington and Chelsea,RBKC,0,Statutory Year-End Adjustments,Statutory Year-End Adjustments,0,Arcus Consulting Llp,1265536,0,0,0,17/03/2022,2200233922,2747.06,0,Payments to main contractor,,,,,,No
The Royal Borough of Kensington and Chelsea,RBKC,0,Statutory Year-End Adjustments,Statutory Year-End Adjustments,0,Arcus Consulting Llp,1265536,0,0,0,21/03/2022,2200234317,2373.71,0,Site Works,,,,,,No
The Royal Borough of Kensington and Chelsea,RBKC,0,Statutory Year-End Adjustments,Statutory Year-End Adjustments,0,Arcus Consulting Llp,1265536,0,0,0,23/03/2022,2200235133,3323,0,Site Works,,,,,,No
The Royal Borough of Kensington and Chelsea,RBKC,0,Statutory Year-End Adjustments,Statutory Year-End Adjustments,0,Ark Build Plc ,1231173,0,0,0,24/01/2022,2200221695,71185.69,0,Payments to main contractor,,,,,,No
The Royal Borough of Kensington and Chelsea,RBKC,0,Statutory Year-End Adjustments,Statutory Year-End Adjustments,0,Ark Build Plc ,1231173,0,0,0,31/01/2022,2200223458,4671.5,0,,,,,,,No
The Royal Borough of Kensington and Chelsea,RBKC,0,Statutory Year-End Adjustments,Statutory Year-End Adjustments,0,Ark Build Plc ,1231173,0,0,0,01/02/2022,2200223991,11857,0,Payments to main contractor,,,,,,No
The Royal Borough of Kensington and Chelsea,RBKC,0,Statutory Year-End Adjustments,Statutory Year-End Adjustments,0,Ark Build Plc ,1231173,0,0,0,03/02/2022,2200224582,31771.9,0,Payments to main contractor,,,,,,No
The Royal Borough of Kensington and Chelsea,RBKC,0,Statutory Year-End Adjustments,Statutory Year-End Adjustments,0,Ark Build Plc ,1231173,0,0,0,24/02/2022,2200228882,36323,0,Payments to main contractor,,,,,,No
The Royal Borough of Kensington and Chelsea,RBKC,0,Statutory Year-End Adjustments,Statutory Year-End Adjustments,0,Ark Build Plc ,1231173,0,0,0,07/03/2022,2200231363,115271.76,0,Payments to main contractor,,,,,,No
The Royal Borough of Kensington and Chelsea,RBKC,0,Statutory Year-End Adjustments,Statutory Year-End Adjustments,0,Ark Build Plc ,1231173,0,0,0,31/03/2022,2200237553,27664.46,0,Payments to main contractor,,,,,,No
The Royal Borough of Kensington and Chelsea,RBKC,0,Statutory Year-End Adjustments,Statutory Year-End Adjustments,0,T/A Artelia UK,1232443,0,0,0,06/01/2022,2200217182,563.75,0,Payments to sub contractor,,,,,,No
The Royal Borough of Kensington and Chelsea,RBKC,0,Statutory Year-End Adjustments,Statutory Year-End Adjustments,0,T/A Artelia UK,1232443,0,0,0,04/03/2022,2200230987,631.25,0,Payments to sub contractor,,,,,,No
The Royal Borough of Kensington and Chelsea,RBKC,0,Statutory Year-End Adjustments,Statutory Year-End Adjustments,0,Ashfords Llp ,1232627,0,0,0,04/01/2022,2200216604,554,0,Legal Fees & expenses,,,,,,No
The Royal Borough of Kensington and Chelsea,RBKC,0,Statutory Year-End Adjustments,Statutory Year-End Adjustments,0,Ashfords Llp ,1232627,0,0,0,10/01/2022,2200217897,1656,0,,,,,,,No
The Royal Borough of Kensington and Chelsea,RBKC,0,Statutory Year-End Adjustments,Statutory Year-End Adjustments,0,Ashfords Llp ,1232627,0,0,0,19/01/2022,2200220654,2276.5,0,,,,,,,No
The Royal Borough of Kensington and Chelsea,RBKC,0,Statutory Year-End Adjustments,Statutory Year-End Adjustments,0,Ashfords Llp ,1232627,0,0,0,02/02/2022,2200224213,1504,0,Legal Fees & expenses,,,,,,No
The Royal Borough of Kensington and Chelsea,RBKC,0,Statutory Year-End Adjustments,Statutory Year-End Adjustments,0,Ashfords Llp ,1232627,0,0,0,01/03/2022,2200230007,1278,0,,,,,,,No
The Royal Borough of Kensington and Chelsea,RBKC,0,Statutory Year-End Adjustments,Statutory Year-End Adjustments,0,Ashfords Llp ,1232627,0,0,0,04/03/2022,2200230972,1254,0,Legal Fees & expenses,,,,,,No
The Royal Borough of Kensington and Chelsea,RBKC,0,Statutory Year-End Adjustments,Statutory Year-End Adjustments,0,Ashfords Llp ,1232627,0,0,0,04/03/2022,2200230976,664,0,Legal Fees & expenses,,,,,,No
The Royal Borough of Kensington and Chelsea,RBKC,0,Statutory Year-End Adjustments,Statutory Year-End Adjustments,0,Ashfords Llp ,1232627,0,0,0,04/03/2022,2200230977,4254,0,Legal Fees & expenses,,,,,,No
The Royal Borough of Kensington and Chelsea,RBKC,0,Statutory Year-End Adjustments,Statutory Year-End Adjustments,0,Ashfords Llp ,1232627,0,0,0,04/03/2022,2200230978,896,0,Legal Fees & expenses,,,,,,No
The Royal Borough of Kensington and Chelsea,RBKC,0,Statutory Year-End Adjustments,Statutory Year-End Adjustments,0,Ashfords Llp ,1232627,0,0,0,04/03/2022,2200231163,2784,0,,,,,,,No
The Royal Borough of Kensington and Chelsea,RBKC,0,Statutory Year-End Adjustments,Statutory Year-End Adjustments,0,Ashfords Llp ,1232627,0,0,0,25/03/2022,2200235800,1000,0,Design Consultant,,,,,,No
The Royal Borough of Kensington and Chelsea,RBKC,0,Statutory Year-End Adjustments,Statutory Year-End Adjustments,0,Ashtead Engineering Co Ltd,1286979,0,0,0,31/03/2022,2200237344,5670,0,Planned Maintenance (CM),,,,,,No
The Royal Borough of Kensington and Chelsea,RBKC,0,Statutory Year-End Adjustments,Statutory Year-End Adjustments,0,BT Global Services ,1233001,0,0,0,28/01/2022,2200222974,5126.3,0,Other capital equipment,,,,,,No
The Royal Borough of Kensington and Chelsea,RBKC,0,Statutory Year-End Adjustments,Statutory Year-End Adjustments,0,BT Global Services ,1233001,0,0,0,21/03/2022,2200234322,103631,0,Other capital equipment,,,,,,No
The Royal Borough of Kensington and Chelsea,RBKC,0,Statutory Year-End Adjustments,Statutory Year-End Adjustments,0,BT Global Services ,1233001,0,0,0,21/03/2022,2200234323,582.5,0,Other capital equipment,,,,,,No
The Royal Borough of Kensington and Chelsea,RBKC,0,Statutory Year-End Adjustments,Statutory Year-End Adjustments,0,BT Global Services ,1233001,0,0,0,21/03/2022,2200234323,751,0,Other capital equipment,,,,,,No
The Royal Borough of Kensington and Chelsea,RBKC,0,Statutory Year-End Adjustments,Statutory Year-End Adjustments,0,BT Global Services ,1233001,0,0,0,21/03/2022,2200234323,1501.8,0,Other capital equipment,,,,,,No
The Royal Borough of Kensington and Chelsea,RBKC,0,Statutory Year-End Adjustments,Statutory Year-End Adjustments,0,BT Global Services ,1233001,0,0,0,21/03/2022,2200234323,2252.7,0,Other capital equipment,,,,,,No
The Royal Borough of Kensington and Chelsea,RBKC,0,Statutory Year-End Adjustments,Statutory Year-End Adjustments,0,BT Global Services ,1233001,0,0,0,21/03/2022,2200234323,2611,0,Other capital equipment,,,,,,No
The Royal Borough of Kensington and Chelsea,RBKC,0,Statutory Year-End Adjustments,Statutory Year-End Adjustments,0,BT Global Services ,1233001,0,0,0,21/03/2022,2200234323,43291,0,Other capital equipment,,,,,,No
The Royal Borough of Kensington and Chelsea,RBKC,0,Statutory Year-End Adjustments,Statutory Year-End Adjustments,0,BT Global Services ,1233001,0,0,0,30/03/2022,2200237245,1235.93,0,Other capital equipment,,,,,,No
The Royal Borough of Kensington and Chelsea,RBKC,0,Statutory Year-End Adjustments,Statutory Year-End Adjustments,0,BT Global Services ,1233001,0,0,0,30/03/2022,2200237254,1794.65,0,Other capital equipment,,,,,,No
The Royal Borough of Kensington and Chelsea,RBKC,0,Statutory Year-End Adjustments,Statutory Year-End Adjustments,0,BT Global Services ,1233001,0,0,0,30/03/2022,2200237255,2788.96,0,Other capital equipment,,,,,,No
The Royal Borough of Kensington and Chelsea,RBKC,0,Statutory Year-End Adjustments,Statutory Year-End Adjustments,0,BT Global Services ,1233001,0,0,0,31/03/2022,2200237671,37211,0,Other capital equipment,,,,,,No
The Royal Borough of Kensington and Chelsea,RBKC,0,Statutory Year-End Adjustments,Statutory Year-End Adjustments,0,BT Global Services ,1233001,0,0,0,31/03/2022,2200237671,2611,0,Other capital equipment,,,,,,No
The Royal Borough of Kensington and Chelsea,RBKC,0,Statutory Year-End Adjustments,Statutory Year-End Adjustments,0,BT Global Services ,1233001,0,0,0,31/03/2022,2200237671,3754.5,0,Other capital equipment,,,,,,No
The Royal Borough of Kensington and Chelsea,RBKC,0,Statutory Year-End Adjustments,Statutory Year-End Adjustments,0,BT Global Services ,1233001,0,0,0,31/03/2022,2200237671,751,0,Other capital equipment,,,,,,No
The Royal Borough of Kensington and Chelsea,RBKC,0,Statutory Year-End Adjustments,Statutory Year-End Adjustments,0,Baily Garner LLP ,1232685,0,0,0,01/02/2022,2200223778,16119.09,0,,,,,,,No
The Royal Borough of Kensington and Chelsea,RBKC,0,Statutory Year-End Adjustments,Statutory Year-End Adjustments,0,Barlby Primary School ,1236061,0,0,0,17/03/2022,2200233652,4519,0,Other Consultants,,,,,,No
The Royal Borough of Kensington and Chelsea,RBKC,0,Statutory Year-End Adjustments,Statutory Year-End Adjustments,0,Barlby Primary School ,1236061,0,0,0,31/03/2022,2200237408,7320,0,Other Consultants,,,,,,No
The Royal Borough of Kensington and Chelsea,RBKC,0,Statutory Year-End Adjustments,Statutory Year-End Adjustments,0,Bell Decorating & Building Ltd ,1232723,0,0,0,07/01/2022,2200217557,94527.6,0,Payments to sub contractor,,,,,,No
The Royal Borough of Kensington and Chelsea,RBKC,0,Statutory Year-End Adjustments,Statutory Year-End Adjustments,0,Bell Decorating & Building Ltd ,1232723,0,0,0,11/01/2022,2200218470,63549,0,Romanse Expenses,,,,,,No
The Royal Borough of Kensington and Chelsea,RBKC,0,Statutory Year-End Adjustments,Statutory Year-End Adjustments,0,Bell Decorating & Building Ltd ,1232723,0,0,0,12/01/2022,2200218803,1126,0,Special Maintenance,,,,,,No
The Royal Borough of Kensington and Chelsea,RBKC,0,Statutory Year-End Adjustments,Statutory Year-End Adjustments,0,Bell Decorating & Building Ltd ,1232723,0,0,0,02/02/2022,2200224211,1560,0,Payments to sub contractor,,,,,,No
The Royal Borough of Kensington and Chelsea,RBKC,0,Statutory Year-End Adjustments,Statutory Year-End Adjustments,0,Bell Decorating & Building Ltd ,1232723,0,0,0,11/02/2022,2200226396,12976,0,Payments to sub contractor,,,,,,No
The Royal Borough of Kensington and Chelsea,RBKC,0,Statutory Year-End Adjustments,Statutory Year-End Adjustments,0,Bell Decorating & Building Ltd ,1232723,0,0,0,14/02/2022,2200226827,1230,0,Romanse Expenses,,,,,,No
The Royal Borough of Kensington and Chelsea,RBKC,0,Statutory Year-End Adjustments,Statutory Year-End Adjustments,0,Bell Decorating & Building Ltd ,1232723,0,0,0,14/02/2022,2200226828,9478.32,0,Romanse Expenses,,,,,,No
The Royal Borough of Kensington and Chelsea,RBKC,0,Statutory Year-End Adjustments,Statutory Year-End Adjustments,0,Bell Decorating & Building Ltd ,1232723,0,0,0,02/03/2022,2200230530,1150,0,Romanse Expenses,,,,,,No
The Royal Borough of Kensington and Chelsea,RBKC,0,Statutory Year-End Adjustments,Statutory Year-End Adjustments,0,Bell Decorating & Building Ltd ,1232723,0,0,0,04/03/2022,2200230878,1320,0,Site Works,,,,,,No
The Royal Borough of Kensington and Chelsea,RBKC,0,Statutory Year-End Adjustments,Statutory Year-End Adjustments,0,Bell Decorating & Building Ltd ,1232723,0,0,0,04/03/2022,2200230879,2690,0,Site Works,,,,,,No
The Royal Borough of Kensington and Chelsea,RBKC,0,Statutory Year-End Adjustments,Statutory Year-End Adjustments,0,Bell Decorating & Building Ltd ,1232723,0,0,0,10/03/2022,2200232411,46400.6,0,Payments to sub contractor,,,,,,No
The Royal Borough of Kensington and Chelsea,RBKC,0,Statutory Year-End Adjustments,Statutory Year-End Adjustments,0,Bell Decorating & Building Ltd ,1232723,0,0,0,22/03/2022,2200234715,28692,0,Major Roof Repairs - CM,,,,,,No
The Royal Borough of Kensington and Chelsea,RBKC,0,Statutory Year-End Adjustments,Statutory Year-End Adjustments,0,Bell Decorating & Building Ltd ,1232723,0,0,0,23/03/2022,2200235229,1485,0,Site Works,,,,,,No
The Royal Borough of Kensington and Chelsea,RBKC,0,Statutory Year-End Adjustments,Statutory Year-End Adjustments,0,Bell Decorating & Building Ltd ,1232723,0,0,0,23/03/2022,2200235231,1680,0,Site Works,,,,,,No
The Royal Borough of Kensington and Chelsea,RBKC,0,Statutory Year-End Adjustments,Statutory Year-End Adjustments,0,Bell Decorating & Building Ltd ,1232723,0,0,0,23/03/2022,2200235233,740,0,Site Works,,,,,,No
The Royal Borough of Kensington and Chelsea,RBKC,0,Statutory Year-End Adjustments,Statutory Year-End Adjustments,0,Bell Decorating & Building Ltd ,1232723,0,0,0,25/03/2022,2200235976,1200,0,Special Maintenance,,,,,,No
The Royal Borough of Kensington and Chelsea,RBKC,0,Statutory Year-End Adjustments,Statutory Year-End Adjustments,0,Bellrock Property & Facilities Man ,1255450,0,0,0,10/01/2022,2200217904,12870,0,Planned Maintenance (CM),,,,,,No
The Royal Borough of Kensington and Chelsea,RBKC,0,Statutory Year-End Adjustments,Statutory Year-End Adjustments,0,Bellrock Property & Facilities Man ,1255450,0,0,0,18/01/2022,2200220313,2530,0,Planned Maintenance (CM),,,,,,No
The Royal Borough of Kensington and Chelsea,RBKC,0,Statutory Year-End Adjustments,Statutory Year-End Adjustments,0,Bellrock Property & Facilities Man ,1255450,0,0,0,16/03/2022,2200233506,14520,0,Planned Maintenance (CM),,,,,,No
The Royal Borough of Kensington and Chelsea,RBKC,0,Statutory Year-End Adjustments,Statutory Year-End Adjustments,0,Bellrock Property & Facilities Man ,1255450,0,0,0,16/03/2022,2200233507,19005.46,0,Planned Maintenance (CM),,,,,,No
The Royal Borough of Kensington and Chelsea,RBKC,0,Statutory Year-End Adjustments,Statutory Year-End Adjustments,0,Bellrock Property & Facilities Man ,1255450,0,0,0,29/03/2022,2200236498,19831.35,0,Planned Maintenance (CM),,,,,,No
The Royal Borough of Kensington and Chelsea,RBKC,0,Statutory Year-End Adjustments,Statutory Year-End Adjustments,0,Benchmarx Kitchens and Joinery Ltd,1270136,0,0,0,11/02/2022,2200226476,531.45,0,Special Maintenance,,,,,,No
The Royal Borough of Kensington and Chelsea,RBKC,0,Statutory Year-End Adjustments,Statutory Year-End Adjustments,0,Benchmarx Kitchens and Joinery Ltd,1270136,0,0,0,11/02/2022,2200226483,1356.89,0,Special Maintenance,,,,,,No
The Royal Borough of Kensington and Chelsea,RBKC,0,Statutory Year-End Adjustments,Statutory Year-End Adjustments,0,Benchmarx Kitchens and Joinery Ltd,1270136,0,0,0,11/02/2022,2200226487,1224.14,0,Special Maintenance,,,,,,No
The Royal Borough of Kensington and Chelsea,RBKC,0,Statutory Year-End Adjustments,Statutory Year-End Adjustments,0,Benchmarx Kitchens and Joinery Ltd,1270136,0,0,0,11/02/2022,2200226489,1058.56,0,Special Maintenance,,,,,,No
The Royal Borough of Kensington and Chelsea,RBKC,0,Statutory Year-End Adjustments,Statutory Year-End Adjustments,0,Benchmarx Kitchens and Joinery Ltd,1270136,0,0,0,11/02/2022,2200226493,1414.81,0,Special Maintenance,,,,,,No
The Royal Borough of Kensington and Chelsea,RBKC,0,Statutory Year-End Adjustments,Statutory Year-End Adjustments,0,Benchmarx Kitchens and Joinery Ltd,1270136,0,0,0,11/02/2022,2200226494,640.65,0,Special Maintenance,,,,,,No
The Royal Borough of Kensington and Chelsea,RBKC,0,Statutory Year-End Adjustments,Statutory Year-End Adjustments,0,Benchmarx Kitchens and Joinery Ltd,1270136,0,0,0,11/02/2022,2200226495,2044.66,0,Special Maintenance,,,,,,No
The Royal Borough of Kensington and Chelsea,RBKC,0,Statutory Year-End Adjustments,Statutory Year-End Adjustments,0,Benchmarx Kitchens and Joinery Ltd,1270136,0,0,0,11/02/2022,2200226497,1419.64,0,Special Maintenance,,,,,,No
The Royal Borough of Kensington and Chelsea,RBKC,0,Statutory Year-End Adjustments,Statutory Year-End Adjustments,0,Benchmarx Kitchens and Joinery Ltd,1270136,0,0,0,25/02/2022,2200229517,2011.62,0,Special Maintenance,,,,,,No
The Royal Borough of Kensington and Chelsea,RBKC,0,Statutory Year-End Adjustments,Statutory Year-End Adjustments,0,Benchmarx Kitchens and Joinery Ltd,1270136,0,0,0,25/02/2022,2200229519,1734.83,0,Special Maintenance,,,,,,No
The Royal Borough of Kensington and Chelsea,RBKC,0,Statutory Year-End Adjustments,Statutory Year-End Adjustments,0,Benchmarx Kitchens and Joinery Ltd,1270136,0,0,0,25/02/2022,2200229530,2032.83,0,Special Maintenance,,,,,,No
The Royal Borough of Kensington and Chelsea,RBKC,0,Statutory Year-End Adjustments,Statutory Year-End Adjustments,0,Beta Distribution (South) Ltd,1234938,0,0,0,08/03/2022,2200231817,1420.12,0,Payments to main contractor,,,,,,No
The Royal Borough of Kensington and Chelsea,RBKC,0,Statutory Year-End Adjustments,Statutory Year-End Adjustments,0,Better Group Ltd,1232735,0,0,0,10/01/2022,2200217697,10000,0,Other Consultants,,,,,,No
The Royal Borough of Kensington and Chelsea,RBKC,0,Statutory Year-End Adjustments,Statutory Year-End Adjustments,0,Better Group Ltd,1232735,0,0,0,21/03/2022,2200234292,23500,0,Other Consultants,,,,,,No
The Royal Borough of Kensington and Chelsea,RBKC,0,Statutory Year-End Adjustments,Statutory Year-End Adjustments,0,Bevan Brittan Llp ,1232737,0,0,0,11/01/2022,2200218126,542.5,0,Other Consultants,,,,,,No
The Royal Borough of Kensington and Chelsea,RBKC,0,Statutory Year-End Adjustments,Statutory Year-End Adjustments,0,Bevan Brittan Llp ,1232737,0,0,0,15/02/2022,2200227175,11267,0,Payments to main contractor,,,,,,No
The Royal Borough of Kensington and Chelsea,RBKC,0,Statutory Year-End Adjustments,Statutory Year-End Adjustments,0,Bevan Brittan Llp ,1232737,0,0,0,31/03/2022,2200237683,8627.17,0,Payments to main contractor,,,,,,No
The Royal Borough of Kensington and Chelsea,RBKC,0,Statutory Year-End Adjustments,Statutory Year-End Adjustments,0,Bikeworks CIC ,1232746,0,0,0,26/01/2022,2200222573,6000,0,Payments to main contractor,,,,,,No
The Royal Borough of Kensington and Chelsea,RBKC,0,Statutory Year-End Adjustments,Statutory Year-End Adjustments,0,Bishop Creighton House Care & Repair Clients Account,1232751,0,0,0,31/01/2022,2200223375,13343,0,Payments to main contractor,,,,,,No
The Royal Borough of Kensington and Chelsea,RBKC,0,Statutory Year-End Adjustments,Statutory Year-End Adjustments,0,Bishop Creighton House Care & Repair Clients Account,1232751,0,0,0,04/02/2022,2200224804,5219,0,Payments to main contractor,,,,,,No
The Royal Borough of Kensington and Chelsea,RBKC,0,Statutory Year-End Adjustments,Statutory Year-End Adjustments,0,Bishop Creighton House Care & Repair Clients Account,1232751,0,0,0,04/02/2022,2200224805,782.85,0,Payments to main contractor,,,,,,No
The Royal Borough of Kensington and Chelsea,RBKC,0,Statutory Year-End Adjustments,Statutory Year-End Adjustments,0,Bishop Creighton House Care & Repair Clients Account,1232751,0,0,0,04/02/2022,2200224806,2001.45,0,Payments to main contractor,,,,,,No
The Royal Borough of Kensington and Chelsea,RBKC,0,Statutory Year-End Adjustments,Statutory Year-End Adjustments,0,Bishop Creighton House Care & Repair Clients Account,1232751,0,0,0,04/02/2022,2200224807,8112.5,0,Payments to main contractor,,,,,,No
The Royal Borough of Kensington and Chelsea,RBKC,0,Statutory Year-End Adjustments,Statutory Year-End Adjustments,0,Bishop Creighton House Care & Repair Clients Account,1232751,0,0,0,04/02/2022,2200224808,1216.88,0,Payments to main contractor,,,,,,No
The Royal Borough of Kensington and Chelsea,RBKC,0,Statutory Year-End Adjustments,Statutory Year-End Adjustments,0,Bishop Creighton House Care & Repair Clients Account,1232751,0,0,0,04/02/2022,2200224809,517.5,0,Payments to main contractor,,,,,,No
The Royal Borough of Kensington and Chelsea,RBKC,0,Statutory Year-End Adjustments,Statutory Year-End Adjustments,0,Bishop Creighton House Care & Repair Clients Account,1232751,0,0,0,24/02/2022,2200228918,1129.2,0,Payments to main contractor,,,,,,No
The Royal Borough of Kensington and Chelsea,RBKC,0,Statutory Year-End Adjustments,Statutory Year-End Adjustments,0,Bishop Creighton House Care & Repair Clients Account,1232751,0,0,0,24/02/2022,2200228919,7528,0,Payments to main contractor,,,,,,No
The Royal Borough of Kensington and Chelsea,RBKC,0,Statutory Year-End Adjustments,Statutory Year-End Adjustments,0,Bishop Creighton House Care & Repair Clients Account,1232751,0,0,0,25/02/2022,2200229495,883.95,0,Payments to main contractor,,,,,,No
The Royal Borough of Kensington and Chelsea,RBKC,0,Statutory Year-End Adjustments,Statutory Year-End Adjustments,0,Bishop Creighton House Care & Repair Clients Account,1232751,0,0,0,25/02/2022,2200229497,5893,0,Payments to main contractor,,,,,,No
The Royal Borough of Kensington and Chelsea,RBKC,0,Statutory Year-End Adjustments,Statutory Year-End Adjustments,0,Bishop Creighton House Care & Repair Clients Account,1232751,0,0,0,25/02/2022,2200229506,2900,0,Payments to main contractor,,,,,,No
The Royal Borough of Kensington and Chelsea,RBKC,0,Statutory Year-End Adjustments,Statutory Year-End Adjustments,0,Bishop Creighton House Care & Repair Clients Account,1232751,0,0,0,28/02/2022,2200229715,2605,0,Payments to main contractor,,,,,,No
The Royal Borough of Kensington and Chelsea,RBKC,0,Statutory Year-End Adjustments,Statutory Year-End Adjustments,0,Bishop Creighton House Care & Repair Clients Account,1232751,0,0,0,03/03/2022,2200230755,550,0,Payments to main contractor,,,,,,No
The Royal Borough of Kensington and Chelsea,RBKC,0,Statutory Year-End Adjustments,Statutory Year-End Adjustments,0,Bishop Creighton House Care & Repair Clients Account,1232751,0,0,0,25/03/2022,2200235789,2760,0,Payments to main contractor,,,,,,No
The Royal Borough of Kensington and Chelsea,RBKC,0,Statutory Year-End Adjustments,Statutory Year-End Adjustments,0,Bishop Creighton House Care & Repair Clients Account,1232751,0,0,0,25/03/2022,2200235856,6640,0,Payments to main contractor,,,,,,No
The Royal Borough of Kensington and Chelsea,RBKC,0,Statutory Year-End Adjustments,Statutory Year-End Adjustments,0,Blakedown Sport & Play Ltd,1278673,0,0,0,23/02/2022,2200228731,800,0,Romanse Expenses,,,,,,No
The Royal Borough of Kensington and Chelsea,RBKC,0,Statutory Year-End Adjustments,Statutory Year-End Adjustments,0,Bloom Procurement Services Ltd,1269893,0,0,0,05/01/2022,2200216663,4000,0,Legal Fees & expenses,,,,,,No
The Royal Borough of Kensington and Chelsea,RBKC,0,Statutory Year-End Adjustments,Statutory Year-End Adjustments,0,Bloom Procurement Services Ltd,1269893,0,0,0,20/01/2022,2200221308,9473.68,0,B*Surveyors,,,,,,No
The Royal Borough of Kensington and Chelsea,RBKC,0,Statutory Year-End Adjustments,Statutory Year-End Adjustments,0,Bloom Procurement Services Ltd,1269893,0,0,0,24/01/2022,2200221619,2651.4,0,,,,,,,No
The Royal Borough of Kensington and Chelsea,RBKC,0,Statutory Year-End Adjustments,Statutory Year-End Adjustments,0,Bloom Procurement Services Ltd,1269893,0,0,0,24/01/2022,2200221620,13428.57,0,,,,,,,No
The Royal Borough of Kensington and Chelsea,RBKC,0,Statutory Year-End Adjustments,Statutory Year-End Adjustments,0,Bloom Procurement Services Ltd,1269893,0,0,0,24/01/2022,2200221621,67320,0,,,,,,,No
The Royal Borough of Kensington and Chelsea,RBKC,0,Statutory Year-End Adjustments,Statutory Year-End Adjustments,0,Bloom Procurement Services Ltd,1269893,0,0,0,23/02/2022,2200228724,19073.68,0,B*Surveyors,,,,,,No
The Royal Borough of Kensington and Chelsea,RBKC,0,Statutory Year-End Adjustments,Statutory Year-End Adjustments,0,Bloom Procurement Services Ltd,1269893,0,0,0,28/02/2022,2200229886,9555,0,B*Surveyors,,,,,,No
The Royal Borough of Kensington and Chelsea,RBKC,0,Statutory Year-End Adjustments,Statutory Year-End Adjustments,0,Bloom Procurement Services Ltd,1269893,0,0,0,07/03/2022,2200231361,4000,0,Legal Fees & expenses,,,,,,No
The Royal Borough of Kensington and Chelsea,RBKC,0,Statutory Year-End Adjustments,Statutory Year-End Adjustments,0,Bloom Procurement Services Ltd,1269893,0,0,0,24/03/2022,2200235673,10547.37,0,B*Surveyors,,,,,,No
The Royal Borough of Kensington and Chelsea,RBKC,0,Statutory Year-End Adjustments,Statutory Year-End Adjustments,0,Borras Construction Ltd,1275543,0,0,0,13/01/2022,2200219094,113395.32,0,Payments to main contractor,,,,,,No
The Royal Borough of Kensington and Chelsea,RBKC,0,Statutory Year-End Adjustments,Statutory Year-End Adjustments,0,Borras Construction Ltd,1275543,0,0,0,21/02/2022,2200228126,10031.83,0,Payments to main contractor,,,,,,No
The Royal Borough of Kensington and Chelsea,RBKC,0,Statutory Year-End Adjustments,Statutory Year-End Adjustments,0,Borras Construction Ltd,1275543,0,0,0,04/03/2022,2200230966,223224.59,0,Payments to main contractor,,,,,,No
The Royal Borough of Kensington and Chelsea,RBKC,0,Statutory Year-End Adjustments,Statutory Year-End Adjustments,0,Borras Construction Ltd,1275543,0,0,0,31/03/2022,2200237581,66842.91,0,Payments to main contractor,,,,,,No
The Royal Borough of Kensington and Chelsea,RBKC,0,Statutory Year-End Adjustments,Statutory Year-End Adjustments,0,Broxap Ltd ,1255218,0,0,0,22/02/2022,2200228457,4167,0,Payments to main contractor,,,,,,No
The Royal Borough of Kensington and Chelsea,RBKC,0,Statutory Year-End Adjustments,Statutory Year-End Adjustments,0,Redact Details,1260368,0,0,0,14/02/2022,2200226834,6000,0,Planned Maintenance (CM),,,,,,No
The Royal Borough of Kensington and Chelsea,RBKC,0,Statutory Year-End Adjustments,Statutory Year-End Adjustments,0,Build Test Solutions Ltd,1271506,0,0,0,08/03/2022,2200231743,1500,0,Other capital equipment,,,,,,No
The Royal Borough of Kensington and Chelsea,RBKC,0,Statutory Year-End Adjustments,Statutory Year-End Adjustments,0,Building Design Partnership Ltd ,1233009,0,0,0,04/01/2022,2200216485,6000,0,Other Consultants,,,,,,No
The Royal Borough of Kensington and Chelsea,RBKC,0,Statutory Year-End Adjustments,Statutory Year-End Adjustments,0,Building Design Partnership Ltd ,1233009,0,0,0,04/01/2022,2200216486,5990,0,HCC - Architects,,,,,,No
The Royal Borough of Kensington and Chelsea,RBKC,0,Statutory Year-End Adjustments,Statutory Year-End Adjustments,0,Building Design Partnership Ltd ,1233009,0,0,0,28/01/2022,2200222928,12500,0,Other Consultants,,,,,,No
The Royal Borough of Kensington and Chelsea,RBKC,0,Statutory Year-End Adjustments,Statutory Year-End Adjustments,0,Building Design Partnership Ltd ,1233009,0,0,0,09/03/2022,2200232172,12060,0,Other Consultants,,,,,,No
The Royal Borough of Kensington and Chelsea,RBKC,0,Statutory Year-End Adjustments,Statutory Year-End Adjustments,0,Building Design Partnership Ltd ,1233009,0,0,0,31/03/2022,2200237452,5990,0,Planned Maintenance (CM),,,,,,No
The Royal Borough of Kensington and Chelsea,RBKC,0,Statutory Year-End Adjustments,Statutory Year-End Adjustments,0,Butler & Young Services Ltd,1272888,0,0,0,05/01/2022,2200216838,4415,0,,,,,,,No
The Royal Borough of Kensington and Chelsea,RBKC,0,Statutory Year-End Adjustments,Statutory Year-End Adjustments,0,Butler & Young Services Ltd,1272888,0,0,0,14/01/2022,2200219328,6840,0,,,,,,,No
The Royal Borough of Kensington and Chelsea,RBKC,0,Statutory Year-End Adjustments,Statutory Year-End Adjustments,0,Butler & Young Services Ltd,1272888,0,0,0,14/01/2022,2200219329,13680,0,,,,,,,No
The Royal Borough of Kensington and Chelsea,RBKC,0,Statutory Year-End Adjustments,Statutory Year-End Adjustments,0,Butler & Young Services Ltd,1272888,0,0,0,01/02/2022,2200223847,6622.5,0,,,,,,,No
The Royal Borough of Kensington and Chelsea,RBKC,0,Statutory Year-End Adjustments,Statutory Year-End Adjustments,0,Butler & Young Services Ltd,1272888,0,0,0,17/02/2022,2200227702,6840,0,,,,,,,No
The Royal Borough of Kensington and Chelsea,RBKC,0,Statutory Year-End Adjustments,Statutory Year-End Adjustments,0,Butler & Young Services Ltd,1272888,0,0,0,08/03/2022,2200231879,11037.5,0,,,,,,,No
The Royal Borough of Kensington and Chelsea,RBKC,0,Statutory Year-End Adjustments,Statutory Year-End Adjustments,0,Butler & Young Services Ltd,1272888,0,0,0,11/03/2022,2200232868,9387.5,0,,,,,,,No
The Royal Borough of Kensington and Chelsea,RBKC,0,Statutory Year-End Adjustments,Statutory Year-End Adjustments,0,C&C Builders Ltd,1274385,0,0,0,12/01/2022,2200218838,13135,0,Payments to main contractor,,,,,,No
The Royal Borough of Kensington and Chelsea,RBKC,0,Statutory Year-End Adjustments,Statutory Year-End Adjustments,0,CAN Structures Limited,1279387,0,0,0,11/02/2022,2200226412,39600,0,Payments to main contractor,,,,,,No
The Royal Borough of Kensington and Chelsea,RBKC,0,Statutory Year-End Adjustments,Statutory Year-End Adjustments,0,CBRE Ltd(CBRE Client Account - EA,1233315,0,0,0,04/01/2022,2200216556,6000,0,Other Consultants,,,,,,No
The Royal Borough of Kensington and Chelsea,RBKC,0,Statutory Year-End Adjustments,Statutory Year-End Adjustments,0,CBRE Ltd(CBRE Client Account - EA,1233315,0,0,0,11/01/2022,2200218127,3500,0,Other Consultants,,,,,,No
The Royal Borough of Kensington and Chelsea,RBKC,0,Statutory Year-End Adjustments,Statutory Year-End Adjustments,0,CBRE Ltd(CBRE Client Account - EA,1233315,0,0,0,11/01/2022,2200218128,3500,0,Other Consultants,,,,,,No
The Royal Borough of Kensington and Chelsea,RBKC,0,Statutory Year-End Adjustments,Statutory Year-End Adjustments,0,CBRE Ltd(CBRE Client Account - EA,1233315,0,0,0,11/01/2022,2200218129,3500,0,Other Consultants,,,,,,No
The Royal Borough of Kensington and Chelsea,RBKC,0,Statutory Year-End Adjustments,Statutory Year-End Adjustments,0,CBRE Ltd(CBRE Client Account - EA,1233315,0,0,0,11/01/2022,2200218130,3500,0,Other Consultants,,,,,,No
The Royal Borough of Kensington and Chelsea,RBKC,0,Statutory Year-End Adjustments,Statutory Year-End Adjustments,0,CBRE Ltd(CBRE Client Account - EA,1233315,0,0,0,11/01/2022,2200218131,5000,0,Other Consultants,,,,,,No
The Royal Borough of Kensington and Chelsea,RBKC,0,Statutory Year-End Adjustments,Statutory Year-End Adjustments,0,CBRE Ltd(CBRE Client Account - EA,1233315,0,0,0,11/01/2022,2200218132,2500,0,Other Consultants,,,,,,No
The Royal Borough of Kensington and Chelsea,RBKC,0,Statutory Year-End Adjustments,Statutory Year-End Adjustments,0,CBRE Ltd(CBRE Client Account - EA,1233315,0,0,0,11/01/2022,2200218133,3500,0,Other Consultants,,,,,,No
The Royal Borough of Kensington and Chelsea,RBKC,0,Statutory Year-End Adjustments,Statutory Year-End Adjustments,0,CBRE Ltd(CBRE Client Account - EA,1233315,0,0,0,11/01/2022,2200218134,3000,0,Other Consultants,,,,,,No
The Royal Borough of Kensington and Chelsea,RBKC,0,Statutory Year-End Adjustments,Statutory Year-End Adjustments,0,CBRE Ltd(CBRE Client Account - EA,1233315,0,0,0,11/01/2022,2200218137,2500,0,Other Consultants,,,,,,No
The Royal Borough of Kensington and Chelsea,RBKC,0,Statutory Year-End Adjustments,Statutory Year-End Adjustments,0,CBRE Ltd(CBRE Client Account - EA,1233315,0,0,0,17/01/2022,2200219956,6000,0,Other Consultants,,,,,,No
The Royal Borough of Kensington and Chelsea,RBKC,0,Statutory Year-End Adjustments,Statutory Year-End Adjustments,0,CWG Group Ltd,1281268,0,0,0,11/01/2022,2200218176,86473.06,0,Payments to main contractor,,,,,,No
The Royal Borough of Kensington and Chelsea,RBKC,0,Statutory Year-End Adjustments,Statutory Year-End Adjustments,0,CWG Group Ltd,1281268,0,0,0,15/02/2022,2200227169,145009.88,0,Payments to main contractor,,,,,,No
The Royal Borough of Kensington and Chelsea,RBKC,0,Statutory Year-End Adjustments,Statutory Year-End Adjustments,0,CWG Group Ltd,1281268,0,0,0,30/03/2022,2200237021,117409.98,0,Payments to main contractor,,,,,,No
The Royal Borough of Kensington and Chelsea,RBKC,0,Statutory Year-End Adjustments,Statutory Year-End Adjustments,0,CWG Group Ltd,1281268,0,0,0,31/03/2022,2200237700,27478.5,0,Payments to main contractor,,,,,,No
The Royal Borough of Kensington and Chelsea,RBKC,0,Statutory Year-End Adjustments,Statutory Year-End Adjustments,0,Cablesheer (Asbestos) Limited,1273893,0,0,0,10/01/2022,2200217974,3900,0,Payments to main contractor,,,,,,No
The Royal Borough of Kensington and Chelsea,RBKC,0,Statutory Year-End Adjustments,Statutory Year-End Adjustments,0,Cablesheer (Asbestos) Limited,1273893,0,0,0,10/01/2022,2200217978,2130,0,Payments to main contractor,,,,,,No
The Royal Borough of Kensington and Chelsea,RBKC,0,Statutory Year-End Adjustments,Statutory Year-End Adjustments,0,Cablesheer (Asbestos) Limited,1273893,0,0,0,10/01/2022,2200217979,7800,0,Payments to main contractor,,,,,,No
The Royal Borough of Kensington and Chelsea,RBKC,0,Statutory Year-End Adjustments,Statutory Year-End Adjustments,0,Cablesheer (Asbestos) Limited,1273893,0,0,0,10/01/2022,2200217981,10057,0,Payments to main contractor,,,,,,No
The Royal Borough of Kensington and Chelsea,RBKC,0,Statutory Year-End Adjustments,Statutory Year-End Adjustments,0,Cablesheer (Asbestos) Limited,1273893,0,0,0,03/03/2022,2200230632,10000,0,Payments to main contractor,,,,,,No
The Royal Borough of Kensington and Chelsea,RBKC,0,Statutory Year-End Adjustments,Statutory Year-End Adjustments,0,Calford Seadon (Health & Safety) Ltd,1233044,0,0,0,01/02/2022,2200223816,1800,0,,,,,,,No
The Royal Borough of Kensington and Chelsea,RBKC,0,Statutory Year-End Adjustments,Statutory Year-End Adjustments,0,Calford Seadon (Health & Safety) Ltd,1233044,0,0,0,01/02/2022,2200223837,13600,0,,,,,,,No
The Royal Borough of Kensington and Chelsea,RBKC,0,Statutory Year-End Adjustments,Statutory Year-End Adjustments,0,Calford Seadon (Health & Safety) Ltd,1233044,0,0,0,09/03/2022,2200232155,9332.57,0,,,,,,,No
The Royal Borough of Kensington and Chelsea,RBKC,0,Statutory Year-End Adjustments,Statutory Year-End Adjustments,0,Calford Seadon (Health & Safety) Ltd,1233044,0,0,0,09/03/2022,2200232156,7864.08,0,,,,,,,No
The Royal Borough of Kensington and Chelsea,RBKC,0,Statutory Year-End Adjustments,Statutory Year-End Adjustments,0,Calford Seadon (Health & Safety) Ltd,1233044,0,0,0,09/03/2022,2200232157,10728.4,0,,,,,,,No
The Royal Borough of Kensington and Chelsea,RBKC,0,Statutory Year-End Adjustments,Statutory Year-End Adjustments,0,Calford Seadon (Health & Safety) Ltd,1233044,0,0,0,09/03/2022,2200232158,12224.91,0,,,,,,,No
The Royal Borough of Kensington and Chelsea,RBKC,0,Statutory Year-End Adjustments,Statutory Year-End Adjustments,0,Calford Seadon (Health & Safety) Ltd,1233044,0,0,0,09/03/2022,2200232159,6120,0,,,,,,,No
The Royal Borough of Kensington and Chelsea,RBKC,0,Statutory Year-End Adjustments,Statutory Year-End Adjustments,0,Calford Seadon (Health & Safety) Ltd,1233044,0,0,0,16/03/2022,2200233535,1800,0,,,,,,,No
The Royal Borough of Kensington and Chelsea,RBKC,0,Statutory Year-End Adjustments,Statutory Year-End Adjustments,0,Calford Seadon (Health & Safety) Ltd,1233044,0,0,0,17/03/2022,2200233989,1800,0,,,,,,,No
The Royal Borough of Kensington and Chelsea,RBKC,0,Statutory Year-End Adjustments,Statutory Year-End Adjustments,0,Campbell Tickell Ltd ,1233060,0,0,0,17/01/2022,2200220138,700,0,Other Consultants,,,,,,No
The Royal Borough of Kensington and Chelsea,RBKC,0,Statutory Year-End Adjustments,Statutory Year-End Adjustments,0,Capital Property & Construction ,1256857,0,0,0,05/01/2022,2200216832,10288,0,,,,,,,No
The Royal Borough of Kensington and Chelsea,RBKC,0,Statutory Year-End Adjustments,Statutory Year-End Adjustments,0,Capital Property & Construction ,1256857,0,0,0,05/01/2022,2200216833,1915,0,,,,,,,No
The Royal Borough of Kensington and Chelsea,RBKC,0,Statutory Year-End Adjustments,Statutory Year-End Adjustments,0,Capital Property & Construction ,1256857,0,0,0,05/01/2022,2200216834,2088.5,0,,,,,,,No
The Royal Borough of Kensington and Chelsea,RBKC,0,Statutory Year-End Adjustments,Statutory Year-End Adjustments,0,Capital Property & Construction ,1256857,0,0,0,05/01/2022,2200216836,3400,0,,,,,,,No
The Royal Borough of Kensington and Chelsea,RBKC,0,Statutory Year-End Adjustments,Statutory Year-End Adjustments,0,Capital Property & Construction ,1256857,0,0,0,05/01/2022,2200216837,5000,0,,,,,,,No
The Royal Borough of Kensington and Chelsea,RBKC,0,Statutory Year-End Adjustments,Statutory Year-End Adjustments,0,Capital Property & Construction ,1256857,0,0,0,14/01/2022,2200219335,16654.16,0,,,,,,,No
The Royal Borough of Kensington and Chelsea,RBKC,0,Statutory Year-End Adjustments,Statutory Year-End Adjustments,0,Capital Property & Construction ,1256857,0,0,0,02/02/2022,2200224498,2088.5,0,,,,,,,No
The Royal Borough of Kensington and Chelsea,RBKC,0,Statutory Year-End Adjustments,Statutory Year-End Adjustments,0,Capital Property & Construction ,1256857,0,0,0,07/02/2022,2200225481,1915,0,,,,,,,No
The Royal Borough of Kensington and Chelsea,RBKC,0,Statutory Year-End Adjustments,Statutory Year-End Adjustments,0,Capital Property & Construction ,1256857,0,0,0,17/02/2022,2200227704,16654.16,0,,,,,,,No
The Royal Borough of Kensington and Chelsea,RBKC,0,Statutory Year-End Adjustments,Statutory Year-End Adjustments,0,Capital Property & Construction ,1256857,0,0,0,17/02/2022,2200227711,16654.16,0,,,,,,,No
The Royal Borough of Kensington and Chelsea,RBKC,0,Statutory Year-End Adjustments,Statutory Year-End Adjustments,0,Capital Property & Construction ,1256857,0,0,0,02/03/2022,2200230441,8953.49,0,,,,,,,No
The Royal Borough of Kensington and Chelsea,RBKC,0,Statutory Year-End Adjustments,Statutory Year-End Adjustments,0,Capital Property & Construction ,1256857,0,0,0,02/03/2022,2200230444,10613.66,0,,,,,,,No
The Royal Borough of Kensington and Chelsea,RBKC,0,Statutory Year-End Adjustments,Statutory Year-End Adjustments,0,Capital Property & Construction ,1256857,0,0,0,04/03/2022,2200231197,5000,0,,,,,,,No
The Royal Borough of Kensington and Chelsea,RBKC,0,Statutory Year-End Adjustments,Statutory Year-End Adjustments,0,Capital Property & Construction ,1256857,0,0,0,07/03/2022,2200231488,5983.68,0,,,,,,,No
The Royal Borough of Kensington and Chelsea,RBKC,0,Statutory Year-End Adjustments,Statutory Year-End Adjustments,0,Capital Property & Construction ,1256857,0,0,0,11/03/2022,2200232677,2088.5,0,,,,,,,No
The Royal Borough of Kensington and Chelsea,RBKC,0,Statutory Year-End Adjustments,Statutory Year-End Adjustments,0,Capital Property & Construction ,1256857,0,0,0,31/03/2022,2200237554,10288,0,,,,,,,No
The Royal Borough of Kensington and Chelsea,RBKC,0,Statutory Year-End Adjustments,Statutory Year-End Adjustments,0,Capital Property & Construction ,1256857,0,0,0,31/03/2022,2200237556,10288,0,,,,,,,No
The Royal Borough of Kensington and Chelsea,RBKC,0,Statutory Year-End Adjustments,Statutory Year-End Adjustments,0,Cappagh Contractors Construction (London) Ltd,1233084,0,0,0,24/01/2022,2200221745,750,0,Payments to main contractor,,,,,,No
The Royal Borough of Kensington and Chelsea,RBKC,0,Statutory Year-End Adjustments,Statutory Year-End Adjustments,0,Cardinal Vaughan Memorial School ,1232790,0,0,0,01/03/2022,2200230187,100000,0,Romanse Expenses,,,,,,No
The Royal Borough of Kensington and Chelsea,RBKC,0,Statutory Year-End Adjustments,Statutory Year-End Adjustments,0,Cavendish Construction LTD,1267193,0,0,0,11/01/2022,2200218523,15615.93,0,Special Maintenance,,,,,,No
The Royal Borough of Kensington and Chelsea,RBKC,0,Statutory Year-End Adjustments,Statutory Year-End Adjustments,0,Cavendish Construction LTD,1267193,0,0,0,11/01/2022,2200218524,34124.87,0,Special Maintenance,,,,,,No
The Royal Borough of Kensington and Chelsea,RBKC,0,Statutory Year-End Adjustments,Statutory Year-End Adjustments,0,Cavendish Construction LTD,1267193,0,0,0,11/01/2022,2200218526,39259.13,0,Special Maintenance,,,,,,No
The Royal Borough of Kensington and Chelsea,RBKC,0,Statutory Year-End Adjustments,Statutory Year-End Adjustments,0,Cavendish Construction LTD,1267193,0,0,0,21/01/2022,2200221368,17207.93,0,Special Maintenance,,,,,,No
The Royal Borough of Kensington and Chelsea,RBKC,0,Statutory Year-End Adjustments,Statutory Year-End Adjustments,0,Cavendish Construction LTD,1267193,0,0,0,21/01/2022,2200221370,19683.53,0,Special Maintenance,,,,,,No
The Royal Borough of Kensington and Chelsea,RBKC,0,Statutory Year-End Adjustments,Statutory Year-End Adjustments,0,Cavendish Construction LTD,1267193,0,0,0,04/02/2022,2200225103,29647.28,0,Special Maintenance,,,,,,No
The Royal Borough of Kensington and Chelsea,RBKC,0,Statutory Year-End Adjustments,Statutory Year-End Adjustments,0,Cavendish Construction LTD,1267193,0,0,0,04/02/2022,2200225104,32077.89,0,Special Maintenance,,,,,,No
The Royal Borough of Kensington and Chelsea,RBKC,0,Statutory Year-End Adjustments,Statutory Year-End Adjustments,0,Cavendish Construction LTD,1267193,0,0,0,04/02/2022,2200225105,21165.16,0,Special Maintenance,,,,,,No
The Royal Borough of Kensington and Chelsea,RBKC,0,Statutory Year-End Adjustments,Statutory Year-End Adjustments,0,Cavendish Construction LTD,1267193,0,0,0,04/03/2022,2200231048,17570.57,0,Special Maintenance,,,,,,No
The Royal Borough of Kensington and Chelsea,RBKC,0,Statutory Year-End Adjustments,Statutory Year-End Adjustments,0,Cavendish Construction LTD,1267193,0,0,0,04/03/2022,2200231218,4736.1,0,Special Maintenance,,,,,,No
The Royal Borough of Kensington and Chelsea,RBKC,0,Statutory Year-End Adjustments,Statutory Year-End Adjustments,0,Cavendish Construction LTD,1267193,0,0,0,08/03/2022,2200231824,13982.99,0,Romanse Expenses,,,,,,No
The Royal Borough of Kensington and Chelsea,RBKC,0,Statutory Year-End Adjustments,Statutory Year-End Adjustments,0,Cavendish Construction LTD,1267193,0,0,0,08/03/2022,2200231860,31870.39,0,Special Maintenance,,,,,,No
The Royal Borough of Kensington and Chelsea,RBKC,0,Statutory Year-End Adjustments,Statutory Year-End Adjustments,0,Cavendish Construction LTD,1267193,0,0,0,08/03/2022,2200231863,20626.52,0,Special Maintenance,,,,,,No
The Royal Borough of Kensington and Chelsea,RBKC,0,Statutory Year-End Adjustments,Statutory Year-End Adjustments,0,Cavendish Construction LTD,1267193,0,0,0,09/03/2022,2200232149,16979.88,0,Romanse Expenses,,,,,,No
The Royal Borough of Kensington and Chelsea,RBKC,0,Statutory Year-End Adjustments,Statutory Year-End Adjustments,0,Cavendish Construction LTD,1267193,0,0,0,11/03/2022,2200232720,23181.65,0,Special Maintenance,,,,,,No
The Royal Borough of Kensington and Chelsea,RBKC,0,Statutory Year-End Adjustments,Statutory Year-End Adjustments,0,Cavendish Construction LTD,1267193,0,0,0,11/03/2022,2200232722,29476.83,0,Special Maintenance,,,,,,No
The Royal Borough of Kensington and Chelsea,RBKC,0,Statutory Year-End Adjustments,Statutory Year-End Adjustments,0,Cavendish Construction LTD,1267193,0,0,0,22/03/2022,2200234732,19339.84,0,Special Maintenance,,,,,,No
The Royal Borough of Kensington and Chelsea,RBKC,0,Statutory Year-End Adjustments,Statutory Year-End Adjustments,0,Cavendish Construction LTD,1267193,0,0,0,22/03/2022,2200234734,31941.76,0,Special Maintenance,,,,,,No
The Royal Borough of Kensington and Chelsea,RBKC,0,Statutory Year-End Adjustments,Statutory Year-End Adjustments,0,Cavendish Construction LTD,1267193,0,0,0,24/03/2022,2200235404,26652.44,0,Special Maintenance,,,,,,No
The Royal Borough of Kensington and Chelsea,RBKC,0,Statutory Year-End Adjustments,Statutory Year-End Adjustments,0,Cavendish Construction LTD,1267193,0,0,0,24/03/2022,2200235406,24929.23,0,Special Maintenance,,,,,,No
The Royal Borough of Kensington and Chelsea,RBKC,0,Statutory Year-End Adjustments,Statutory Year-End Adjustments,0,Cavendish Construction LTD,1267193,0,0,0,24/03/2022,2200235408,37320.88,0,Special Maintenance,,,,,,No
The Royal Borough of Kensington and Chelsea,RBKC,0,Statutory Year-End Adjustments,Statutory Year-End Adjustments,0,Cavendish Construction LTD,1267193,0,0,0,24/03/2022,2200235409,27402.58,0,Special Maintenance,,,,,,No
The Royal Borough of Kensington and Chelsea,RBKC,0,Statutory Year-End Adjustments,Statutory Year-End Adjustments,0,Cavendish Construction LTD,1267193,0,0,0,24/03/2022,2200235413,31036.82,0,Special Maintenance,,,,,,No
The Royal Borough of Kensington and Chelsea,RBKC,0,Statutory Year-End Adjustments,Statutory Year-End Adjustments,0,Cavendish Construction LTD,1267193,0,0,0,24/03/2022,2200235416,42351.67,0,Special Maintenance,,,,,,No
The Royal Borough of Kensington and Chelsea,RBKC,0,Statutory Year-End Adjustments,Statutory Year-End Adjustments,0,Cavendish Construction LTD,1267193,0,0,0,24/03/2022,2200235419,27187.42,0,Special Maintenance,,,,,,No
The Royal Borough of Kensington and Chelsea,RBKC,0,Statutory Year-End Adjustments,Statutory Year-End Adjustments,0,Central Moves Uk Limited ,1233324,0,0,0,04/02/2022,2200225145,970,0,Payments to main contractor,,,,,,No
The Royal Borough of Kensington and Chelsea,RBKC,0,Statutory Year-End Adjustments,Statutory Year-End Adjustments,0,Central Moves Uk Limited ,1233324,0,0,0,04/02/2022,2200225146,1254.5,0,Payments to main contractor,,,,,,No
The Royal Borough of Kensington and Chelsea,RBKC,0,Statutory Year-End Adjustments,Statutory Year-End Adjustments,0,Central Moves Uk Limited ,1233324,0,0,0,25/02/2022,2200229569,616.25,0,Payments to main contractor,,,,,,No
The Royal Borough of Kensington and Chelsea,RBKC,0,Statutory Year-End Adjustments,Statutory Year-End Adjustments,0,Central Moves Uk Limited ,1233324,0,0,0,11/03/2022,2200232815,531.25,0,Payments to main contractor,,,,,,No
The Royal Borough of Kensington and Chelsea,RBKC,0,Statutory Year-End Adjustments,Statutory Year-End Adjustments,0,Central Moves Uk Limited ,1233324,0,0,0,24/03/2022,2200235580,950,0,Payments to main contractor,,,,,,No
The Royal Borough of Kensington and Chelsea,RBKC,0,Statutory Year-End Adjustments,Statutory Year-End Adjustments,0,Central Moves Uk Limited ,1233324,0,0,0,24/03/2022,2200235587,1222.5,0,Payments to main contractor,,,,,,No
The Royal Borough of Kensington and Chelsea,RBKC,0,Statutory Year-End Adjustments,Statutory Year-End Adjustments,0,Chapmanbdsp Limited,1270766,0,0,0,22/03/2022,2200234634,1012.5,0,Payments to main contractor,,,,,,No
The Royal Borough of Kensington and Chelsea,RBKC,0,Statutory Year-End Adjustments,Statutory Year-End Adjustments,0,Chapmanbdsp Limited,1270766,0,0,0,22/03/2022,2200234641,1012.5,0,Payments to main contractor,,,,,,No
The Royal Borough of Kensington and Chelsea,RBKC,0,Statutory Year-End Adjustments,Statutory Year-End Adjustments,0,Chapmanbdsp Limited,1270766,0,0,0,28/03/2022,2200236125,562.5,0,Payments to main contractor,,,,,,No
The Royal Borough of Kensington and Chelsea,RBKC,0,Statutory Year-End Adjustments,Statutory Year-End Adjustments,0,Chapmanbdsp Limited,1270766,0,0,0,31/03/2022,2200237645,1012.5,0,Payments to main contractor,,,,,,No
The Royal Borough of Kensington and Chelsea,RBKC,0,Statutory Year-End Adjustments,Statutory Year-End Adjustments,0,Checkmate Fire Solutions Ltd ,1231187,0,0,0,14/01/2022,2200219462,5727.94,0,Planned Maintenance (CM),,,,,,No
The Royal Borough of Kensington and Chelsea,RBKC,0,Statutory Year-End Adjustments,Statutory Year-End Adjustments,0,Checkmate Fire Solutions Ltd ,1231187,0,0,0,01/03/2022,2200229952,21487,0,Planned Maintenance (CM),,,,,,No
The Royal Borough of Kensington and Chelsea,RBKC,0,Statutory Year-End Adjustments,Statutory Year-End Adjustments,0,Chris Edge Tree Care Ltd ,1233369,0,0,0,31/01/2022,2200223278,2700,0,Payments to main contractor,,,,,,No
The Royal Borough of Kensington and Chelsea,RBKC,0,Statutory Year-End Adjustments,Statutory Year-End Adjustments,0,Chris Edge Tree Care Ltd ,1233369,0,0,0,09/02/2022,2200226032,1975,0,Payments to main contractor,,,,,,No
The Royal Borough of Kensington and Chelsea,RBKC,0,Statutory Year-End Adjustments,Statutory Year-End Adjustments,0,Chris Edge Tree Care Ltd ,1233369,0,0,0,02/03/2022,2200230361,10575,0,Payments to main contractor,,,,,,No
The Royal Borough of Kensington and Chelsea,RBKC,0,Statutory Year-End Adjustments,Statutory Year-End Adjustments,0,Chris Edge Tree Care Ltd ,1233369,0,0,0,03/03/2022,2200230604,4600,0,Romanse Expenses,,,,,,No
The Royal Borough of Kensington and Chelsea,RBKC,0,Statutory Year-End Adjustments,Statutory Year-End Adjustments,0,Chris Edge Tree Care Ltd ,1233369,0,0,0,16/03/2022,2200233529,24100,0,Payments to main contractor,,,,,,No
The Royal Borough of Kensington and Chelsea,RBKC,0,Statutory Year-End Adjustments,Statutory Year-End Adjustments,0,Chris Edge Tree Care Ltd ,1233369,0,0,0,21/03/2022,2200234366,995,0,Payments to main contractor,,,,,,No
The Royal Borough of Kensington and Chelsea,RBKC,0,Statutory Year-End Adjustments,Statutory Year-End Adjustments,0,City Electrical Factors,1263373,0,0,0,11/01/2022,2200218385,778.46,0,Special Maintenance,,,,,,No
The Royal Borough of Kensington and Chelsea,RBKC,0,Statutory Year-End Adjustments,Statutory Year-End Adjustments,0,City Electrical Factors,1263373,0,0,0,11/01/2022,2200218398,2000,0,Special Maintenance,,,,,,No
The Royal Borough of Kensington and Chelsea,RBKC,0,Statutory Year-End Adjustments,Statutory Year-End Adjustments,0,City Electrical Factors,1263373,0,0,0,04/03/2022,2200231182,515,0,Special Maintenance,,,,,,No
The Royal Borough of Kensington and Chelsea,RBKC,0,Statutory Year-End Adjustments,Statutory Year-End Adjustments,0,City Electrical Factors,1263373,0,0,0,04/03/2022,2200231183,619.5,0,Special Maintenance,,,,,,No
The Royal Borough of Kensington and Chelsea,RBKC,0,Statutory Year-End Adjustments,Statutory Year-End Adjustments,0,City Electrical Factors,1263373,0,0,0,04/03/2022,2200231188,1847.55,0,Special Maintenance,,,,,,No
The Royal Borough of Kensington and Chelsea,RBKC,0,Statutory Year-End Adjustments,Statutory Year-End Adjustments,0,City Electrical Factors,1263373,0,0,0,04/03/2022,2200231193,1239.24,0,Special Maintenance,,,,,,No
The Royal Borough of Kensington and Chelsea,RBKC,0,Statutory Year-End Adjustments,Statutory Year-End Adjustments,0,City Electrical Factors,1263373,0,0,0,04/03/2022,2200231194,4092.9,0,Special Maintenance,,,,,,No
The Royal Borough of Kensington and Chelsea,RBKC,0,Statutory Year-End Adjustments,Statutory Year-End Adjustments,0,City Electrical Factors,1263373,0,0,0,04/03/2022,2200231203,509.61,0,Special Maintenance,,,,,,No
The Royal Borough of Kensington and Chelsea,RBKC,0,Statutory Year-End Adjustments,Statutory Year-End Adjustments,0,City Electrical Factors,1263373,0,0,0,04/03/2022,2200231204,2381.5,0,Special Maintenance,,,,,,No
The Royal Borough of Kensington and Chelsea,RBKC,0,Statutory Year-End Adjustments,Statutory Year-End Adjustments,0,City Electrical Factors,1263373,0,0,0,04/03/2022,2200231207,970.6,0,Special Maintenance,,,,,,No
The Royal Borough of Kensington and Chelsea,RBKC,0,Statutory Year-End Adjustments,Statutory Year-End Adjustments,0,City Of Westminster ,1231771,0,0,0,24/03/2022,2200235663,38795,0,Computer Equipment,,,,,,No
The Royal Borough of Kensington and Chelsea,RBKC,0,Statutory Year-End Adjustments,Statutory Year-End Adjustments,0,City Of Westminster ,1231771,0,0,0,31/03/2022,2200237557,15230.3,0,Computer Software,,,,,,No
The Royal Borough of Kensington and Chelsea,RBKC,0,Statutory Year-End Adjustments,Statutory Year-End Adjustments,0,City Of Westminster ,1231771,0,0,0,31/03/2022,2200237590,8450,0,Computer Software,,,,,,No
The Royal Borough of Kensington and Chelsea,RBKC,0,Statutory Year-End Adjustments,Statutory Year-End Adjustments,0,City Of Westminster ,1231771,0,0,0,31/03/2022,2200237590,47584.38,0,Computer Software,,,,,,No
The Royal Borough of Kensington and Chelsea,RBKC,0,Statutory Year-End Adjustments,Statutory Year-End Adjustments,0,City Of Westminster ,1231771,0,0,0,31/03/2022,2200237697,11934,0,Computer Software,,,,,,No
The Royal Borough of Kensington and Chelsea,RBKC,0,Statutory Year-End Adjustments,Statutory Year-End Adjustments,0,Civica Uk Ltd ,1233395,0,0,0,04/01/2022,2200216413,858,0,Other capital equipment,,,,,,No
The Royal Borough of Kensington and Chelsea,RBKC,0,Statutory Year-End Adjustments,Statutory Year-End Adjustments,0,Classic Security Solutions Ltd,1256301,0,0,0,10/01/2022,2200217703,1000,0,Planned Maintenance (CM),,,,,,No
The Royal Borough of Kensington and Chelsea,RBKC,0,Statutory Year-End Adjustments,Statutory Year-End Adjustments,0,Clean and Serene Ltd ,1233399,0,0,0,29/03/2022,2200236530,2852,0,Payments to main contractor,,,,,,No
The Royal Borough of Kensington and Chelsea,RBKC,0,Statutory Year-End Adjustments,Statutory Year-End Adjustments,0,Clockwork Removals ,1233410,0,0,0,24/01/2022,2200221686,550,0,Planned Maintenance (CM),,,,,,No
The Royal Borough of Kensington and Chelsea,RBKC,0,Statutory Year-End Adjustments,Statutory Year-End Adjustments,0,Closomat Ltd ,1233412,0,0,0,16/03/2022,2200233498,4568,0,Payments to main contractor,,,,,,No
The Royal Borough of Kensington and Chelsea,RBKC,0,Statutory Year-End Adjustments,Statutory Year-End Adjustments,0,Connect Survey Services Ltd ,1233656,0,0,0,22/03/2022,2200234889,1125,0,Payments to main contractor,,,,,,No
The Royal Borough of Kensington and Chelsea,RBKC,0,Statutory Year-End Adjustments,Statutory Year-End Adjustments,0,Connected Response Limite,1265273,0,0,0,07/01/2022,2200217491,1627.5,0,Payments to main contractor,,,,,,No
The Royal Borough of Kensington and Chelsea,RBKC,0,Statutory Year-End Adjustments,Statutory Year-End Adjustments,0,Connected Response Limite,1265273,0,0,0,10/01/2022,2200217828,1627.5,0,Payments to main contractor,,,,,,No
The Royal Borough of Kensington and Chelsea,RBKC,0,Statutory Year-End Adjustments,Statutory Year-End Adjustments,0,Constellia Public Limited,1279396,0,0,0,10/02/2022,2200226335,4035.94,0,Legal Fees & expenses,,,,,,No
The Royal Borough of Kensington and Chelsea,RBKC,0,Statutory Year-End Adjustments,Statutory Year-End Adjustments,0,Consult Construct Limited,1281093,0,0,0,21/02/2022,2200228125,5850,0,Other Consultants,,,,,,No
The Royal Borough of Kensington and Chelsea,RBKC,0,Statutory Year-End Adjustments,Statutory Year-End Adjustments,0,Contour Planning Services Limited,1274959,0,0,0,31/03/2022,2200237577,1748,0,Planned Maintenance (CM),,,,,,No
The Royal Borough of Kensington and Chelsea,RBKC,0,Statutory Year-End Adjustments,Statutory Year-End Adjustments,0,Core Projects Ltd ,1233682,0,0,0,09/02/2022,2200226009,12141,0,Planned Maintenance (CM),,,,,,No
The Royal Borough of Kensington and Chelsea,RBKC,0,Statutory Year-End Adjustments,Statutory Year-End Adjustments,0,Core Projects Ltd ,1233682,0,0,0,28/03/2022,2200236101,10120,0,Site Works,,,,,,No
The Royal Borough of Kensington and Chelsea,RBKC,0,Statutory Year-End Adjustments,Statutory Year-End Adjustments,0,Cromwell Engineering Ltd,1283342,0,0,0,04/01/2022,2200216564,18467.5,0,Other Consultants,,,,,,No
The Royal Borough of Kensington and Chelsea,RBKC,0,Statutory Year-End Adjustments,Statutory Year-End Adjustments,0,Cromwell Engineering Ltd,1283342,0,0,0,20/01/2022,2200221234,1173,0,Other Consultants,,,,,,No
The Royal Borough of Kensington and Chelsea,RBKC,0,Statutory Year-End Adjustments,Statutory Year-End Adjustments,0,Cromwell Engineering Ltd,1283342,0,0,0,20/01/2022,2200221235,3450,0,Other Consultants,,,,,,No
The Royal Borough of Kensington and Chelsea,RBKC,0,Statutory Year-End Adjustments,Statutory Year-End Adjustments,0,Cromwell Engineering Ltd,1283342,0,0,0,27/01/2022,2200222846,2250,0,Planned Maintenance (CM),,,,,,No
The Royal Borough of Kensington and Chelsea,RBKC,0,Statutory Year-End Adjustments,Statutory Year-End Adjustments,0,Cromwell Engineering Ltd,1283342,0,0,0,03/03/2022,2200230741,8293.7,0,Other Consultants,,,,,,No
The Royal Borough of Kensington and Chelsea,RBKC,0,Statutory Year-End Adjustments,Statutory Year-End Adjustments,0,Cromwell Engineering Ltd,1283342,0,0,0,16/03/2022,2200233526,11928.98,0,Planned Maintenance (CM),,,,,,No
The Royal Borough of Kensington and Chelsea,RBKC,0,Statutory Year-End Adjustments,Statutory Year-End Adjustments,0,Cupaz ,1233737,0,0,0,04/01/2022,2200216585,19332.38,0,Other Consultants,,,,,,No
The Royal Borough of Kensington and Chelsea,RBKC,0,Statutory Year-End Adjustments,Statutory Year-End Adjustments,0,Currie & Brown UK Ltd ,1233738,0,0,0,04/01/2022,2200216434,1465,0,Payments to main contractor,,,,,,No
The Royal Borough of Kensington and Chelsea,RBKC,0,Statutory Year-End Adjustments,Statutory Year-End Adjustments,0,Currie & Brown UK Ltd ,1233738,0,0,0,04/01/2022,2200216435,979,0,Site Works,,,,,,No
The Royal Borough of Kensington and Chelsea,RBKC,0,Statutory Year-End Adjustments,Statutory Year-End Adjustments,0,Currie & Brown UK Ltd ,1233738,0,0,0,04/01/2022,2200216446,11000,0,Payments to main contractor,,,,,,No
The Royal Borough of Kensington and Chelsea,RBKC,0,Statutory Year-End Adjustments,Statutory Year-End Adjustments,0,Currie & Brown UK Ltd ,1233738,0,0,0,26/01/2022,2200222507,979,0,Site Works,,,,,,No
The Royal Borough of Kensington and Chelsea,RBKC,0,Statutory Year-End Adjustments,Statutory Year-End Adjustments,0,Currie & Brown UK Ltd ,1233738,0,0,0,22/02/2022,2200228419,979,0,Site Works,,,,,,No
The Royal Borough of Kensington and Chelsea,RBKC,0,Statutory Year-End Adjustments,Statutory Year-End Adjustments,0,Currie & Brown UK Ltd ,1233738,0,0,0,23/02/2022,2200228579,2525,0,Other Consultants,,,,,,No
The Royal Borough of Kensington and Chelsea,RBKC,0,Statutory Year-End Adjustments,Statutory Year-End Adjustments,0,Currie & Brown UK Ltd ,1233738,0,0,0,31/03/2022,2200237562,979,0,Site Works,,,,,,No
The Royal Borough of Kensington and Chelsea,RBKC,0,Statutory Year-End Adjustments,Statutory Year-End Adjustments,0,Currie & Brown UK Ltd ,1233738,0,0,0,31/03/2022,2200237564,1465,0,Other Consultants,,,,,,No
The Royal Borough of Kensington and Chelsea,RBKC,0,Statutory Year-End Adjustments,Statutory Year-End Adjustments,0,Decontaminate UK Limited,1280985,0,0,0,04/02/2022,2200225091,597.87,0,Payments to main contractor,,,,,,No
The Royal Borough of Kensington and Chelsea,RBKC,0,Statutory Year-End Adjustments,Statutory Year-End Adjustments,0,Decontaminate UK Limited,1280985,0,0,0,04/03/2022,2200231050,4508.87,0,Payments to main contractor,,,,,,No
The Royal Borough of Kensington and Chelsea,RBKC,0,Statutory Year-End Adjustments,Statutory Year-End Adjustments,0,Decontaminate UK Limited,1280985,0,0,0,04/03/2022,2200231054,2691.78,0,Payments to main contractor,,,,,,No
The Royal Borough of Kensington and Chelsea,RBKC,0,Statutory Year-End Adjustments,Statutory Year-End Adjustments,0,Decontaminate UK Limited,1280985,0,0,0,04/03/2022,2200231173,1162.98,0,Payments to main contractor,,,,,,No
The Royal Borough of Kensington and Chelsea,RBKC,0,Statutory Year-End Adjustments,Statutory Year-End Adjustments,0,Decontaminate UK Limited,1280985,0,0,0,04/03/2022,2200231174,5978.7,0,Payments to main contractor,,,,,,No
The Royal Borough of Kensington and Chelsea,RBKC,0,Statutory Year-End Adjustments,Statutory Year-End Adjustments,0,Decontaminate UK Limited,1280985,0,0,0,04/03/2022,2200231175,3261.53,0,Payments to main contractor,,,,,,No
The Royal Borough of Kensington and Chelsea,RBKC,0,Statutory Year-End Adjustments,Statutory Year-End Adjustments,0,Decontaminate UK Limited,1280985,0,0,0,04/03/2022,2200231177,2309.58,0,Payments to main contractor,,,,,,No
The Royal Borough of Kensington and Chelsea,RBKC,0,Statutory Year-End Adjustments,Statutory Year-End Adjustments,0,Decontaminate UK Limited,1280985,0,0,0,04/03/2022,2200231181,1131.31,0,Payments to main contractor,,,,,,No
The Royal Borough of Kensington and Chelsea,RBKC,0,Statutory Year-End Adjustments,Statutory Year-End Adjustments,0,Decontaminate UK Limited,1280985,0,0,0,11/03/2022,2200232717,1787.6,0,Payments to main contractor,,,,,,No
The Royal Borough of Kensington and Chelsea,RBKC,0,Statutory Year-End Adjustments,Statutory Year-End Adjustments,0,Decontaminate UK Limited,1280985,0,0,0,11/03/2022,2200232813,3848.21,0,Payments to main contractor,,,,,,No
The Royal Borough of Kensington and Chelsea,RBKC,0,Statutory Year-End Adjustments,Statutory Year-End Adjustments,0,Decontaminate UK Limited,1280985,0,0,0,16/03/2022,2200233508,2479.93,0,Payments to main contractor,,,,,,No
The Royal Borough of Kensington and Chelsea,RBKC,0,Statutory Year-End Adjustments,Statutory Year-End Adjustments,0,Decontaminate UK Limited,1280985,0,0,0,16/03/2022,2200233509,4622.44,0,Payments to main contractor,,,,,,No
The Royal Borough of Kensington and Chelsea,RBKC,0,Statutory Year-End Adjustments,Statutory Year-End Adjustments,0,Decontaminate UK Limited,1280985,0,0,0,17/03/2022,2200233648,4707.61,0,Payments to main contractor,,,,,,No
The Royal Borough of Kensington and Chelsea,RBKC,0,Statutory Year-End Adjustments,Statutory Year-End Adjustments,0,Decontaminate UK Limited,1280985,0,0,0,24/03/2022,2200235434,4565.65,0,Payments to main contractor,,,,,,No
The Royal Borough of Kensington and Chelsea,RBKC,0,Statutory Year-End Adjustments,Statutory Year-End Adjustments,0,Derisk (UK) Limited ,1233980,0,0,0,01/02/2022,2200223858,4680,0,,,,,,,No
The Royal Borough of Kensington and Chelsea,RBKC,0,Statutory Year-End Adjustments,Statutory Year-End Adjustments,0,Derisk (UK) Limited ,1233980,0,0,0,01/02/2022,2200223866,1836.84,0,,,,,,,No
The Royal Borough of Kensington and Chelsea,RBKC,0,Statutory Year-End Adjustments,Statutory Year-End Adjustments,0,Derisk (UK) Limited ,1233980,0,0,0,01/02/2022,2200223871,1560,0,,,,,,,No
The Royal Borough of Kensington and Chelsea,RBKC,0,Statutory Year-End Adjustments,Statutory Year-End Adjustments,0,Derisk (UK) Limited ,1233980,0,0,0,01/02/2022,2200223880,5850,0,,,,,,,No
The Royal Borough of Kensington and Chelsea,RBKC,0,Statutory Year-End Adjustments,Statutory Year-End Adjustments,0,Derisk (UK) Limited ,1233980,0,0,0,01/02/2022,2200223889,1424.62,0,,,,,,,No
The Royal Borough of Kensington and Chelsea,RBKC,0,Statutory Year-End Adjustments,Statutory Year-End Adjustments,0,Derisk (UK) Limited ,1233980,0,0,0,01/02/2022,2200223891,774.08,0,,,,,,,No
The Royal Borough of Kensington and Chelsea,RBKC,0,Statutory Year-End Adjustments,Statutory Year-End Adjustments,0,Derisk (UK) Limited ,1233980,0,0,0,02/02/2022,2200224452,876.19,0,Payments to main contractor,,,,,,No
The Royal Borough of Kensington and Chelsea,RBKC,0,Statutory Year-End Adjustments,Statutory Year-End Adjustments,0,Derisk (UK) Limited ,1233980,0,0,0,02/02/2022,2200224458,558.73,0,Payments to main contractor,,,,,,No
The Royal Borough of Kensington and Chelsea,RBKC,0,Statutory Year-End Adjustments,Statutory Year-End Adjustments,0,Derisk (UK) Limited ,1233980,0,0,0,02/02/2022,2200224483,2300,0,Payments to main contractor,,,,,,No
The Royal Borough of Kensington and Chelsea,RBKC,0,Statutory Year-End Adjustments,Statutory Year-End Adjustments,0,Derisk (UK) Limited ,1233980,0,0,0,04/02/2022,2200224851,515.74,0,,,,,,,No
The Royal Borough of Kensington and Chelsea,RBKC,0,Statutory Year-End Adjustments,Statutory Year-End Adjustments,0,Derisk (UK) Limited ,1233980,0,0,0,07/02/2022,2200225333,876.19,0,Payments to main contractor,,,,,,No
The Royal Borough of Kensington and Chelsea,RBKC,0,Statutory Year-End Adjustments,Statutory Year-End Adjustments,0,Derisk (UK) Limited ,1233980,0,0,0,07/02/2022,2200225338,558.73,0,Payments to main contractor,,,,,,No
The Royal Borough of Kensington and Chelsea,RBKC,0,Statutory Year-End Adjustments,Statutory Year-End Adjustments,0,Derisk (UK) Limited ,1233980,0,0,0,07/02/2022,2200225478,1616.52,0,,,,,,,No
The Royal Borough of Kensington and Chelsea,RBKC,0,Statutory Year-End Adjustments,Statutory Year-End Adjustments,0,Derisk (UK) Limited ,1233980,0,0,0,07/02/2022,2200225479,1358.25,0,,,,,,,No
The Royal Borough of Kensington and Chelsea,RBKC,0,Statutory Year-End Adjustments,Statutory Year-End Adjustments,0,Derisk (UK) Limited ,1233980,0,0,0,04/03/2022,2200231186,2716.5,0,,,,,,,No
The Royal Borough of Kensington and Chelsea,RBKC,0,Statutory Year-End Adjustments,Statutory Year-End Adjustments,0,Derisk (UK) Limited ,1233980,0,0,0,10/03/2022,2200232589,1155.16,0,Design Consultant,,,,,,No
The Royal Borough of Kensington and Chelsea,RBKC,0,Statutory Year-End Adjustments,Statutory Year-End Adjustments,0,Derisk (UK) Limited ,1233980,0,0,0,22/03/2022,2200234742,876.19,0,Payments to main contractor,,,,,,No
The Royal Borough of Kensington and Chelsea,RBKC,0,Statutory Year-End Adjustments,Statutory Year-End Adjustments,0,Derisk (UK) Limited ,1233980,0,0,0,22/03/2022,2200234744,876.19,0,Payments to main contractor,,,,,,No
The Royal Borough of Kensington and Chelsea,RBKC,0,Statutory Year-End Adjustments,Statutory Year-End Adjustments,0,Derisk (UK) Limited ,1233980,0,0,0,22/03/2022,2200234747,558.73,0,Payments to main contractor,,,,,,No
The Royal Borough of Kensington and Chelsea,RBKC,0,Statutory Year-End Adjustments,Statutory Year-End Adjustments,0,Derisk (UK) Limited ,1233980,0,0,0,22/03/2022,2200234762,558.73,0,Payments to main contractor,,,,,,No
The Royal Borough of Kensington and Chelsea,RBKC,0,Statutory Year-End Adjustments,Statutory Year-End Adjustments,0,Derisk (UK) Limited ,1233980,0,0,0,22/03/2022,2200234781,2300,0,Payments to main contractor,,,,,,No
The Royal Borough of Kensington and Chelsea,RBKC,0,Statutory Year-End Adjustments,Statutory Year-End Adjustments,0,Derisk (UK) Limited ,1233980,0,0,0,25/03/2022,2200235825,3456.46,0,Design Consultant,,,,,,No
The Royal Borough of Kensington and Chelsea,RBKC,0,Statutory Year-End Adjustments,Statutory Year-End Adjustments,0,Derisk (UK) Limited ,1233980,0,0,0,28/03/2022,2200236439,809.76,0,,,,,,,No
The Royal Borough of Kensington and Chelsea,RBKC,0,Statutory Year-End Adjustments,Statutory Year-End Adjustments,0,Derisk (UK) Limited ,1233980,0,0,0,29/03/2022,2200236526,2300,0,Payments to main contractor,,,,,,No
The Royal Borough of Kensington and Chelsea,RBKC,0,Statutory Year-End Adjustments,Statutory Year-End Adjustments,0,Derisk (UK) Limited ,1233980,0,0,0,29/03/2022,2200236527,2300,0,Payments to main contractor,,,,,,No
The Royal Borough of Kensington and Chelsea,RBKC,0,Statutory Year-End Adjustments,Statutory Year-End Adjustments,0,Derisk (UK) Limited ,1233980,0,0,0,29/03/2022,2200236565,876.19,0,Payments to main contractor,,,,,,No
The Royal Borough of Kensington and Chelsea,RBKC,0,Statutory Year-End Adjustments,Statutory Year-End Adjustments,0,Derisk (UK) Limited ,1233980,0,0,0,29/03/2022,2200236566,558.73,0,Payments to main contractor,,,,,,No
The Royal Borough of Kensington and Chelsea,RBKC,0,Statutory Year-End Adjustments,Statutory Year-End Adjustments,0,Derisk (UK) Limited ,1233980,0,0,0,29/03/2022,2200236575,2300,0,Payments to main contractor,,,,,,No
The Royal Borough of Kensington and Chelsea,RBKC,0,Statutory Year-End Adjustments,Statutory Year-End Adjustments,0,Derisk (UK) Limited ,1233980,0,0,0,29/03/2022,2200236672,3791.2,0,,,,,,,No
The Royal Borough of Kensington and Chelsea,RBKC,0,Statutory Year-End Adjustments,Statutory Year-End Adjustments,0,Derisk (UK) Limited ,1233980,0,0,0,30/03/2022,2200236908,687.66,0,,,,,,,No
The Royal Borough of Kensington and Chelsea,RBKC,0,Statutory Year-End Adjustments,Statutory Year-End Adjustments,0,Diocese of Westminster,1259151,0,0,0,10/01/2022,2200217694,8316,0,Other Consultants,,,,,,No
The Royal Borough of Kensington and Chelsea,RBKC,0,Statutory Year-End Adjustments,Statutory Year-End Adjustments,0,Diocese of Westminster,1259151,0,0,0,10/01/2022,2200217695,6000,0,Other Consultants,,,,,,No
The Royal Borough of Kensington and Chelsea,RBKC,0,Statutory Year-End Adjustments,Statutory Year-End Adjustments,0,District Energy Development Ltd,1275886,0,0,0,25/01/2022,2200222416,2000,0,Design Consultant,,,,,,No
The Royal Borough of Kensington and Chelsea,RBKC,0,Statutory Year-End Adjustments,Statutory Year-End Adjustments,0,District Energy Development Ltd,1275886,0,0,0,11/02/2022,2200226502,2000,0,Design Consultant,,,,,,No
The Royal Borough of Kensington and Chelsea,RBKC,0,Statutory Year-End Adjustments,Statutory Year-End Adjustments,0,District Energy Development Ltd,1275886,0,0,0,09/03/2022,2200232247,2000,0,Design Consultant,,,,,,No
The Royal Borough of Kensington and Chelsea,RBKC,0,Statutory Year-End Adjustments,Statutory Year-End Adjustments,0,District Energy Development Ltd,1275886,0,0,0,29/03/2022,2200236605,2400,0,Design Consultant,,,,,,No
The Royal Borough of Kensington and Chelsea,RBKC,0,Statutory Year-End Adjustments,Statutory Year-End Adjustments,0,Dma Signs Ltd ,1234013,0,0,0,03/02/2022,2200224670,619.25,0,Site Works,,,,,,No
The Royal Borough of Kensington and Chelsea,RBKC,0,Statutory Year-End Adjustments,Statutory Year-End Adjustments,0,Door Plus Ltd,1265703,0,0,0,02/03/2022,2200230424,1845.8,0,Payments to main contractor,,,,,,No
The Royal Borough of Kensington and Chelsea,RBKC,0,Statutory Year-End Adjustments,Statutory Year-End Adjustments,0,Door Plus Ltd,1265703,0,0,0,30/03/2022,2200237087,3776.97,0,Site Works,,,,,,No
The Royal Borough of Kensington and Chelsea,RBKC,0,Statutory Year-End Adjustments,Statutory Year-End Adjustments,0,Doorway Maintenance Co ,1231196,0,0,0,07/01/2022,2200217363,591,0,Payments to main contractor,,,,,,No
The Royal Borough of Kensington and Chelsea,RBKC,0,Statutory Year-End Adjustments,Statutory Year-End Adjustments,0,Doorway Maintenance Co ,1231196,0,0,0,01/02/2022,2200223881,6985,0,Payments to main contractor,,,,,,No
The Royal Borough of Kensington and Chelsea,RBKC,0,Statutory Year-End Adjustments,Statutory Year-End Adjustments,0,Doorway Maintenance Co ,1231196,0,0,0,08/02/2022,2200225638,5990,0,Payments to main contractor,,,,,,No
The Royal Borough of Kensington and Chelsea,RBKC,0,Statutory Year-End Adjustments,Statutory Year-End Adjustments,0,Doorway Maintenance Co ,1231196,0,0,0,08/02/2022,2200225640,5981.2,0,Payments to main contractor,,,,,,No
The Royal Borough of Kensington and Chelsea,RBKC,0,Statutory Year-End Adjustments,Statutory Year-End Adjustments,0,Doorway Maintenance Co ,1231196,0,0,0,01/03/2022,2200230030,9281.2,0,Payments to main contractor,,,,,,No
The Royal Borough of Kensington and Chelsea,RBKC,0,Statutory Year-End Adjustments,Statutory Year-End Adjustments,0,Doorway Maintenance Co ,1231196,0,0,0,07/03/2022,2200231527,12000,0,Payments to main contractor,,,,,,No
The Royal Borough of Kensington and Chelsea,RBKC,0,Statutory Year-End Adjustments,Statutory Year-End Adjustments,0,Doorway Maintenance Co ,1231196,0,0,0,23/03/2022,2200235166,13995,0,Payments to main contractor,,,,,,No
The Royal Borough of Kensington and Chelsea,RBKC,0,Statutory Year-End Adjustments,Statutory Year-End Adjustments,0,Doorway Maintenance Co ,1231196,0,0,0,28/03/2022,2200236253,12000,0,Payments to main contractor,,,,,,No
The Royal Borough of Kensington and Chelsea,RBKC,0,Statutory Year-End Adjustments,Statutory Year-End Adjustments,0,Doorway Maintenance Co ,1231196,0,0,0,28/03/2022,2200236270,10000,0,Payments to main contractor,,,,,,No
The Royal Borough of Kensington and Chelsea,RBKC,0,Statutory Year-End Adjustments,Statutory Year-End Adjustments,0,ECD Architects Ltd,1234067,0,0,0,11/01/2022,2200218123,11446.54,0,Payments to main contractor,,,,,,No
The Royal Borough of Kensington and Chelsea,RBKC,0,Statutory Year-End Adjustments,Statutory Year-End Adjustments,0,ECD Architects Ltd,1234067,0,0,0,11/01/2022,2200218124,15262.06,0,Payments to main contractor,,,,,,No
The Royal Borough of Kensington and Chelsea,RBKC,0,Statutory Year-End Adjustments,Statutory Year-End Adjustments,0,ECD Architects Ltd,1234067,0,0,0,12/01/2022,2200218624,6325.13,0,Payments to main contractor,,,,,,No
The Royal Borough of Kensington and Chelsea,RBKC,0,Statutory Year-End Adjustments,Statutory Year-End Adjustments,0,ECD Architects Ltd,1234067,0,0,0,12/01/2022,2200218862,4000,0,Payments to main contractor,,,,,,No
The Royal Borough of Kensington and Chelsea,RBKC,0,Statutory Year-End Adjustments,Statutory Year-End Adjustments,0,ECD Architects Ltd,1234067,0,0,0,14/01/2022,2200219522,550,0,Other Consultants,,,,,,No
The Royal Borough of Kensington and Chelsea,RBKC,0,Statutory Year-End Adjustments,Statutory Year-End Adjustments,0,ECD Architects Ltd,1234067,0,0,0,19/01/2022,2200220625,6794.37,0,Payments to main contractor,,,,,,No
The Royal Borough of Kensington and Chelsea,RBKC,0,Statutory Year-End Adjustments,Statutory Year-End Adjustments,0,ECD Architects Ltd,1234067,0,0,0,20/01/2022,2200221151,9059.19,0,Payments to main contractor,,,,,,No
The Royal Borough of Kensington and Chelsea,RBKC,0,Statutory Year-End Adjustments,Statutory Year-End Adjustments,0,ECD Architects Ltd,1234067,0,0,0,28/01/2022,2200223078,21610.89,0,,,,,,,No
The Royal Borough of Kensington and Chelsea,RBKC,0,Statutory Year-End Adjustments,Statutory Year-End Adjustments,0,ECD Architects Ltd,1234067,0,0,0,28/01/2022,2200223081,30099.4,0,,,,,,,No
The Royal Borough of Kensington and Chelsea,RBKC,0,Statutory Year-End Adjustments,Statutory Year-End Adjustments,0,ECD Architects Ltd,1234067,0,0,0,28/01/2022,2200223083,45115.95,0,,,,,,,No
The Royal Borough of Kensington and Chelsea,RBKC,0,Statutory Year-End Adjustments,Statutory Year-End Adjustments,0,ECD Architects Ltd,1234067,0,0,0,01/02/2022,2200224018,12650.26,0,Payments to main contractor,,,,,,No
The Royal Borough of Kensington and Chelsea,RBKC,0,Statutory Year-End Adjustments,Statutory Year-End Adjustments,0,ECD Architects Ltd,1234067,0,0,0,04/02/2022,2200224873,1056,0,Other Consultants,,,,,,No
The Royal Borough of Kensington and Chelsea,RBKC,0,Statutory Year-End Adjustments,Statutory Year-End Adjustments,0,ECD Architects Ltd,1234067,0,0,0,04/02/2022,2200225116,20192.55,0,,,,,,,No
The Royal Borough of Kensington and Chelsea,RBKC,0,Statutory Year-End Adjustments,Statutory Year-End Adjustments,0,ECD Architects Ltd,1234067,0,0,0,15/02/2022,2200227118,2533.21,0,Payments to main contractor,,,,,,No
The Royal Borough of Kensington and Chelsea,RBKC,0,Statutory Year-End Adjustments,Statutory Year-End Adjustments,0,ECD Architects Ltd,1234067,0,0,0,15/02/2022,2200227143,2533.22,0,Payments to main contractor,,,,,,No
The Royal Borough of Kensington and Chelsea,RBKC,0,Statutory Year-End Adjustments,Statutory Year-End Adjustments,0,ECD Architects Ltd,1234067,0,0,0,15/02/2022,2200227149,2533.22,0,Payments to main contractor,,,,,,No
The Royal Borough of Kensington and Chelsea,RBKC,0,Statutory Year-End Adjustments,Statutory Year-End Adjustments,0,ECD Architects Ltd,1234067,0,0,0,15/02/2022,2200227157,13761.36,0,Payments to main contractor,,,,,,No
The Royal Borough of Kensington and Chelsea,RBKC,0,Statutory Year-End Adjustments,Statutory Year-End Adjustments,0,ECD Architects Ltd,1234067,0,0,0,15/02/2022,2200227160,11009.09,0,Payments to main contractor,,,,,,No
The Royal Borough of Kensington and Chelsea,RBKC,0,Statutory Year-End Adjustments,Statutory Year-End Adjustments,0,ECD Architects Ltd,1234067,0,0,0,08/03/2022,2200231744,4000,0,Payments to main contractor,,,,,,No
The Royal Borough of Kensington and Chelsea,RBKC,0,Statutory Year-End Adjustments,Statutory Year-End Adjustments,0,ECD Architects Ltd,1234067,0,0,0,08/03/2022,2200231772,19882.56,0,Payments to main contractor,,,,,,No
The Royal Borough of Kensington and Chelsea,RBKC,0,Statutory Year-End Adjustments,Statutory Year-End Adjustments,0,ECD Architects Ltd,1234067,0,0,0,08/03/2022,2200231774,6627.52,0,Payments to main contractor,,,,,,No
The Royal Borough of Kensington and Chelsea,RBKC,0,Statutory Year-End Adjustments,Statutory Year-End Adjustments,0,ECD Architects Ltd,1234067,0,0,0,08/03/2022,2200231775,6627.52,0,Payments to main contractor,,,,,,No
The Royal Borough of Kensington and Chelsea,RBKC,0,Statutory Year-End Adjustments,Statutory Year-End Adjustments,0,ECD Architects Ltd,1234067,0,0,0,08/03/2022,2200231791,6627.4,0,Payments to main contractor,,,,,,No
The Royal Borough of Kensington and Chelsea,RBKC,0,Statutory Year-End Adjustments,Statutory Year-End Adjustments,0,ECD Architects Ltd,1234067,0,0,0,09/03/2022,2200232239,20192.55,0,,,,,,,No
The Royal Borough of Kensington and Chelsea,RBKC,0,Statutory Year-End Adjustments,Statutory Year-End Adjustments,0,ECD Architects Ltd,1234067,0,0,0,14/03/2022,2200232992,770,0,Other Consultants,,,,,,No
The Royal Borough of Kensington and Chelsea,RBKC,0,Statutory Year-End Adjustments,Statutory Year-End Adjustments,0,ECD Architects Ltd,1234067,0,0,0,16/03/2022,2200233533,3000,0,Other Consultants,,,,,,No
The Royal Borough of Kensington and Chelsea,RBKC,0,Statutory Year-End Adjustments,Statutory Year-End Adjustments,0,ECD Architects Ltd,1234067,0,0,0,16/03/2022,2200233534,1000,0,Other Consultants,,,,,,No
The Royal Borough of Kensington and Chelsea,RBKC,0,Statutory Year-End Adjustments,Statutory Year-End Adjustments,0,ECD Architects Ltd,1234067,0,0,0,21/03/2022,2200234324,4000,0,Payments to main contractor,,,,,,No
The Royal Borough of Kensington and Chelsea,RBKC,0,Statutory Year-End Adjustments,Statutory Year-End Adjustments,0,ECD Architects Ltd,1234067,0,0,0,22/03/2022,2200234848,3168,0,Other Consultants,,,,,,No
The Royal Borough of Kensington and Chelsea,RBKC,0,Statutory Year-End Adjustments,Statutory Year-End Adjustments,0,ECD Architects Ltd,1234067,0,0,0,22/03/2022,2200234850,2387,0,Other Consultants,,,,,,No
The Royal Borough of Kensington and Chelsea,RBKC,0,Statutory Year-End Adjustments,Statutory Year-End Adjustments,0,ECD Architects Ltd,1234067,0,0,0,23/03/2022,2200234952,6281,0,Payments to main contractor,,,,,,No
The Royal Borough of Kensington and Chelsea,RBKC,0,Statutory Year-End Adjustments,Statutory Year-End Adjustments,0,ECD Architects Ltd,1234067,0,0,0,23/03/2022,2200234966,1100,0,Payments to main contractor,,,,,,No
The Royal Borough of Kensington and Chelsea,RBKC,0,Statutory Year-End Adjustments,Statutory Year-End Adjustments,0,ECD Architects Ltd,1234067,0,0,0,31/03/2022,2200237487,20192.55,0,,,,,,,No
The Royal Borough of Kensington and Chelsea,RBKC,0,Statutory Year-End Adjustments,Statutory Year-End Adjustments,0,ECD Architects Ltd,1234067,0,0,0,31/03/2022,2200237647,15262.06,0,Payments to main contractor,,,,,,No
The Royal Borough of Kensington and Chelsea,RBKC,0,Statutory Year-End Adjustments,Statutory Year-End Adjustments,0,ECD Architects Ltd,1234067,0,0,0,31/03/2022,2200237654,18494.55,0,Payments to main contractor,,,,,,No
The Royal Borough of Kensington and Chelsea,RBKC,0,Statutory Year-End Adjustments,Statutory Year-End Adjustments,0,ECD Architects Ltd,1234067,0,0,0,31/03/2022,2200237657,9059.19,0,Payments to main contractor,,,,,,No
The Royal Borough of Kensington and Chelsea,RBKC,0,Statutory Year-End Adjustments,Statutory Year-End Adjustments,0,ECD Architects Ltd,1234067,0,0,0,31/03/2022,2200237663,10063.05,0,Payments to main contractor,,,,,,No
The Royal Borough of Kensington and Chelsea,RBKC,0,Statutory Year-End Adjustments,Statutory Year-End Adjustments,0,ECD Architects Ltd,1234067,0,0,0,31/03/2022,2200237675,3465,0,Other Consultants,,,,,,No
The Royal Borough of Kensington and Chelsea,RBKC,0,Statutory Year-End Adjustments,Statutory Year-End Adjustments,0,ECD Architects Ltd,1234067,0,0,0,31/03/2022,2200237679,5925,0,Payments to main contractor,,,,,,No
The Royal Borough of Kensington and Chelsea,RBKC,0,Statutory Year-End Adjustments,Statutory Year-End Adjustments,0,ECD Architects Ltd,1234067,0,0,0,31/03/2022,2200237681,2700,0,Payments to main contractor,,,,,,No
The Royal Borough of Kensington and Chelsea,RBKC,0,Statutory Year-End Adjustments,Statutory Year-End Adjustments,0,ECD Architects Ltd,1234067,0,0,0,31/03/2022,2200237689,11009.09,0,Payments to main contractor,,,,,,No
The Royal Borough of Kensington and Chelsea,RBKC,0,Statutory Year-End Adjustments,Statutory Year-End Adjustments,0,Electrical Contracting Partners Lim,1282293,0,0,0,08/02/2022,2200225694,10800,0,Other Consultants,,,,,,No
The Royal Borough of Kensington and Chelsea,RBKC,0,Statutory Year-End Adjustments,Statutory Year-End Adjustments,0,Electrical Contracting Partners Lim,1282293,0,0,0,08/02/2022,2200225695,10800,0,Other Consultants,,,,,,No
The Royal Borough of Kensington and Chelsea,RBKC,0,Statutory Year-End Adjustments,Statutory Year-End Adjustments,0,Emisphere Ltd ,1231200,0,0,0,08/03/2022,2200231963,6735,0,Payments to main contractor,,,,,,No
The Royal Borough of Kensington and Chelsea,RBKC,0,Statutory Year-End Adjustments,Statutory Year-End Adjustments,0,Energiesprong UK Ltd,1276664,0,0,0,13/01/2022,2200218920,50000,0,Design Consultant,,,,,,No
The Royal Borough of Kensington and Chelsea,RBKC,0,Statutory Year-End Adjustments,Statutory Year-End Adjustments,0,Erect Architecture Ltd ,1234339,0,0,0,28/03/2022,2200236147,631.4,0,Payments to main contractor,,,,,,No
The Royal Borough of Kensington and Chelsea,RBKC,0,Statutory Year-End Adjustments,Statutory Year-End Adjustments,0,Etude Consulting Limited,1269026,0,0,0,04/01/2022,2200216574,1000,0,Site Works,,,,,,No
The Royal Borough of Kensington and Chelsea,RBKC,0,Statutory Year-End Adjustments,Statutory Year-End Adjustments,0,Etude Consulting Limited,1269026,0,0,0,04/03/2022,2200230968,1100,0,Site Works,,,,,,No
The Royal Borough of Kensington and Chelsea,RBKC,0,Statutory Year-End Adjustments,Statutory Year-End Adjustments,0,Express Environmental ,1256411,0,0,0,30/03/2022,2200237234,1800,0,Payments to main contractor,,,,,,No
The Royal Borough of Kensington and Chelsea,RBKC,0,Statutory Year-End Adjustments,Statutory Year-End Adjustments,0,Express Environmental ,1256411,0,0,0,30/03/2022,2200237236,4277.6,0,Payments to main contractor,,,,,,No
The Royal Borough of Kensington and Chelsea,RBKC,0,Statutory Year-End Adjustments,Statutory Year-End Adjustments,0,Express Environmental ,1256411,0,0,0,30/03/2022,2200237237,1141.44,0,Payments to main contractor,,,,,,No
The Royal Borough of Kensington and Chelsea,RBKC,0,Statutory Year-End Adjustments,Statutory Year-End Adjustments,0,Express Environmental ,1256411,0,0,0,30/03/2022,2200237241,2774.4,0,Payments to main contractor,,,,,,No
The Royal Borough of Kensington and Chelsea,RBKC,0,Statutory Year-End Adjustments,Statutory Year-End Adjustments,0,Exterior Architecture Limited,1287337,0,0,0,24/02/2022,2200229121,4000,0,Other Consultants,,,,,,No
The Royal Borough of Kensington and Chelsea,RBKC,0,Statutory Year-End Adjustments,Statutory Year-End Adjustments,0,Exterior Architecture Limited,1287337,0,0,0,31/03/2022,2200237574,1900,0,Other Consultants,,,,,,No
The Royal Borough of Kensington and Chelsea,RBKC,0,Statutory Year-End Adjustments,Statutory Year-End Adjustments,0,F.M Conway Ltd ,1231208,0,0,0,04/01/2022,2200216424,38219.74,0,Romanse Expenses,,,,,,No
The Royal Borough of Kensington and Chelsea,RBKC,0,Statutory Year-End Adjustments,Statutory Year-End Adjustments,0,F.M Conway Ltd ,1231208,0,0,0,11/01/2022,2200218353,986,0,Romanse Expenses,,,,,,No
The Royal Borough of Kensington and Chelsea,RBKC,0,Statutory Year-End Adjustments,Statutory Year-End Adjustments,0,F.M Conway Ltd ,1231208,0,0,0,13/01/2022,2200219158,920,0,Payments to main contractor,,,,,,No
The Royal Borough of Kensington and Chelsea,RBKC,0,Statutory Year-End Adjustments,Statutory Year-End Adjustments,0,F.M Conway Ltd ,1231208,0,0,0,04/02/2022,2200224838,5897.9,0,Payments to main contractor,,,,,,No
The Royal Borough of Kensington and Chelsea,RBKC,0,Statutory Year-End Adjustments,Statutory Year-End Adjustments,0,F.M Conway Ltd ,1231208,0,0,0,04/02/2022,2200224843,1224.61,0,Romanse Expenses,,,,,,No
The Royal Borough of Kensington and Chelsea,RBKC,0,Statutory Year-End Adjustments,Statutory Year-End Adjustments,0,F.M Conway Ltd ,1231208,0,0,0,04/02/2022,2200224859,1152.41,0,Romanse Expenses,,,,,,No
The Royal Borough of Kensington and Chelsea,RBKC,0,Statutory Year-End Adjustments,Statutory Year-End Adjustments,0,F.M Conway Ltd ,1231208,0,0,0,08/02/2022,2200225855,697.7,0,Payments to main contractor,,,,,,No
The Royal Borough of Kensington and Chelsea,RBKC,0,Statutory Year-End Adjustments,Statutory Year-End Adjustments,0,F.M Conway Ltd ,1231208,0,0,0,22/02/2022,2200228383,30000,0,Romanse Expenses,,,,,,No
The Royal Borough of Kensington and Chelsea,RBKC,0,Statutory Year-End Adjustments,Statutory Year-End Adjustments,0,F.M Conway Ltd ,1231208,0,0,0,24/02/2022,2200229063,38911,0,Resurfacing,,,,,,No
The Royal Borough of Kensington and Chelsea,RBKC,0,Statutory Year-End Adjustments,Statutory Year-End Adjustments,0,F.M Conway Ltd ,1231208,0,0,0,24/02/2022,2200229064,42642,0,Resurfacing,,,,,,No
The Royal Borough of Kensington and Chelsea,RBKC,0,Statutory Year-End Adjustments,Statutory Year-End Adjustments,0,F.M Conway Ltd ,1231208,0,0,0,25/02/2022,2200229254,1698.86,0,Romanse Expenses,,,,,,No
The Royal Borough of Kensington and Chelsea,RBKC,0,Statutory Year-End Adjustments,Statutory Year-End Adjustments,0,F.M Conway Ltd ,1231208,0,0,0,01/03/2022,2200230154,3314,0,Payments to main contractor,,,,,,No
The Royal Borough of Kensington and Chelsea,RBKC,0,Statutory Year-End Adjustments,Statutory Year-End Adjustments,0,F.M Conway Ltd ,1231208,0,0,0,04/03/2022,2200230913,8131,0,Romanse Expenses,,,,,,No
The Royal Borough of Kensington and Chelsea,RBKC,0,Statutory Year-End Adjustments,Statutory Year-End Adjustments,0,F.M Conway Ltd ,1231208,0,0,0,14/03/2022,2200232927,1888.32,0,Romanse Expenses,,,,,,No
The Royal Borough of Kensington and Chelsea,RBKC,0,Statutory Year-End Adjustments,Statutory Year-End Adjustments,0,F.M Conway Ltd ,1231208,0,0,0,17/03/2022,2200233700,4333.94,0,Romanse Expenses,,,,,,No
The Royal Borough of Kensington and Chelsea,RBKC,0,Statutory Year-End Adjustments,Statutory Year-End Adjustments,0,F.M Conway Ltd ,1231208,0,0,0,17/03/2022,2200233986,7000,0,Footway Repairs,,,,,,No
The Royal Borough of Kensington and Chelsea,RBKC,0,Statutory Year-End Adjustments,Statutory Year-End Adjustments,0,F.M Conway Ltd ,1231208,0,0,0,17/03/2022,2200233987,11544,0,Footway Repairs,,,,,,No
The Royal Borough of Kensington and Chelsea,RBKC,0,Statutory Year-End Adjustments,Statutory Year-End Adjustments,0,F.M Conway Ltd ,1231208,0,0,0,18/03/2022,2200234176,25279.12,0,Romanse Expenses,,,,,,No
The Royal Borough of Kensington and Chelsea,RBKC,0,Statutory Year-End Adjustments,Statutory Year-End Adjustments,0,F.M Conway Ltd ,1231208,0,0,0,24/03/2022,2200235706,2088.59,0,Romanse Expenses,,,,,,No
The Royal Borough of Kensington and Chelsea,RBKC,0,Statutory Year-End Adjustments,Statutory Year-End Adjustments,0,F.M Conway Ltd ,1231208,0,0,0,31/03/2022,2200237384,1646,0,Site Works,,,,,,No
The Royal Borough of Kensington and Chelsea,RBKC,0,Statutory Year-End Adjustments,Statutory Year-End Adjustments,0,Faithful and Gould Limited,1234387,0,0,0,18/02/2022,2200227888,6240,0,,,,,,,No
The Royal Borough of Kensington and Chelsea,RBKC,0,Statutory Year-End Adjustments,Statutory Year-End Adjustments,0,Falck Fire Consulting Ltd ,1254122,0,0,0,24/03/2022,2200235405,2100,0,,,,,,,No
The Royal Borough of Kensington and Chelsea,RBKC,0,Statutory Year-End Adjustments,Statutory Year-End Adjustments,0,T/A Fisk Group,1277295,0,0,0,04/01/2022,2200216586,1020,0,Other Consultants,,,,,,No
The Royal Borough of Kensington and Chelsea,RBKC,0,Statutory Year-End Adjustments,Statutory Year-End Adjustments,0,Focus Furnishing ,1234438,0,0,0,03/02/2022,2200224631,1280,0,Payments to main contractor,,,,,,No
The Royal Borough of Kensington and Chelsea,RBKC,0,Statutory Year-End Adjustments,Statutory Year-End Adjustments,0,Focus Furnishing ,1234438,0,0,0,25/02/2022,2200229513,1433.3,0,Payments to main contractor,,,,,,No
The Royal Borough of Kensington and Chelsea,RBKC,0,Statutory Year-End Adjustments,Statutory Year-End Adjustments,0,Frame Projects Ltd,1269840,0,0,0,25/02/2022,2200229289,4500,0,Other Consultants,,,,,,No
The Royal Borough of Kensington and Chelsea,RBKC,0,Statutory Year-End Adjustments,Statutory Year-End Adjustments,0,Frankham Consultancy Group Ltd ,1234583,0,0,0,23/02/2022,2200228606,4160,0,Planned Maintenance (CM),,,,,,No
The Royal Borough of Kensington and Chelsea,RBKC,0,Statutory Year-End Adjustments,Statutory Year-End Adjustments,0,Freeway Lift Services Ltd ,1231213,0,0,0,18/02/2022,2200227841,6210,0,Payments to main contractor,,,,,,No
The Royal Borough of Kensington and Chelsea,RBKC,0,Statutory Year-End Adjustments,Statutory Year-End Adjustments,0,Furness Partnership Limited ,1256658,0,0,0,10/03/2022,2200232316,750,0,Engineering Consultancy Fees,,,,,,No
The Royal Borough of Kensington and Chelsea,RBKC,0,Statutory Year-End Adjustments,Statutory Year-End Adjustments,0,Fusion Project Management Ltd,1268369,0,0,0,17/01/2022,2200219970,3470,0,,,,,,,No
The Royal Borough of Kensington and Chelsea,RBKC,0,Statutory Year-End Adjustments,Statutory Year-End Adjustments,0,Fusion Project Management Ltd,1268369,0,0,0,08/02/2022,2200225600,3000,0,,,,,,,No
The Royal Borough of Kensington and Chelsea,RBKC,0,Statutory Year-End Adjustments,Statutory Year-End Adjustments,0,Fusion Project Management Ltd,1268369,0,0,0,10/03/2022,2200232552,5000,0,Design Consultant,,,,,,No
The Royal Borough of Kensington and Chelsea,RBKC,0,Statutory Year-End Adjustments,Statutory Year-End Adjustments,0,Fusion Project Management Ltd,1268369,0,0,0,15/03/2022,2200233360,12500,0,Other Consultants,,,,,,No
The Royal Borough of Kensington and Chelsea,RBKC,0,Statutory Year-End Adjustments,Statutory Year-End Adjustments,0,Fusion Project Management Ltd,1268369,0,0,0,29/03/2022,2200236580,2500,0,Other Consultants,,,,,,No
The Royal Borough of Kensington and Chelsea,RBKC,0,Statutory Year-End Adjustments,Statutory Year-End Adjustments,0,Fusion Project Management Ltd,1268369,0,0,0,30/03/2022,2200237044,4000,0,HCC - Architects,,,,,,No
The Royal Borough of Kensington and Chelsea,RBKC,0,Statutory Year-End Adjustments,Statutory Year-End Adjustments,0,G & S Hutchinson Ltd,1281748,0,0,0,14/01/2022,2200219326,26608.6,0,Planned Maintenance (CM),,,,,,No
The Royal Borough of Kensington and Chelsea,RBKC,0,Statutory Year-End Adjustments,Statutory Year-End Adjustments,0,G & S Hutchinson Ltd,1281748,0,0,0,14/01/2022,2200219327,1084.77,0,Planned Maintenance (CM),,,,,,No
The Royal Borough of Kensington and Chelsea,RBKC,0,Statutory Year-End Adjustments,Statutory Year-End Adjustments,0,G & S Hutchinson Ltd,1281748,0,0,0,15/03/2022,2200233332,42323.02,0,Planned Maintenance (CM),,,,,,No
The Royal Borough of Kensington and Chelsea,RBKC,0,Statutory Year-End Adjustments,Statutory Year-End Adjustments,0,G & S Hutchinson Ltd,1281748,0,0,0,22/03/2022,2200234687,1220,0,Planned Maintenance (CM),,,,,,No
The Royal Borough of Kensington and Chelsea,RBKC,0,Statutory Year-End Adjustments,Statutory Year-End Adjustments,0,G & S Hutchinson Ltd,1281748,0,0,0,22/03/2022,2200234688,13286,0,Planned Maintenance (CM),,,,,,No
The Royal Borough of Kensington and Chelsea,RBKC,0,Statutory Year-End Adjustments,Statutory Year-End Adjustments,0,UK Power Network,D000000023,0,0,0,21/01/2022,3110381818,9242.4,0,Romanse Expenses,,,,,,No
The Royal Borough of Kensington and Chelsea,RBKC,0,Statutory Year-End Adjustments,Statutory Year-End Adjustments,0,Dixon Jones Limited - in Liquidatio,D000000023,0,0,0,10/02/2022,3110387340,1200,0,Design Consultant,,,,,,No
The Royal Borough of Kensington and Chelsea,RBKC,0,Statutory Year-End Adjustments,Statutory Year-End Adjustments,0,Eversheds Sutherland (International,D000000023,0,0,0,21/02/2022,3110390458,1527.2,0,Legal Fees & expenses,,,,,,No
The Royal Borough of Kensington and Chelsea,RBKC,0,Statutory Year-End Adjustments,Statutory Year-End Adjustments,0,TBD Legal Ltd,D000000023,0,0,0,07/03/2022,3110395216,164300,0,Acquisition of Land & Buildings,,,,,,No
The Royal Borough of Kensington and Chelsea,RBKC,0,Statutory Year-End Adjustments,Statutory Year-End Adjustments,0,Redact Details,D000000023,0,0,0,10/03/2022,3110396022,500,0,Other Consultants,,,,,,No
The Royal Borough of Kensington and Chelsea,RBKC,0,Statutory Year-End Adjustments,Statutory Year-End Adjustments,0,Redact Details,D000000023,0,0,0,11/03/2022,3110396417,9750,0,Other Consultants,,,,,,No
The Royal Borough of Kensington and Chelsea,RBKC,0,Statutory Year-End Adjustments,Statutory Year-End Adjustments,0,BidX1 UK Ltd,D000000023,0,0,0,11/03/2022,3110396420,72500,0,Acquisition of Land & Buildings,,,,,,No
The Royal Borough of Kensington and Chelsea,RBKC,0,Statutory Year-End Adjustments,Statutory Year-End Adjustments,0,Redact Details,D000000023,0,0,0,15/03/2022,3110398619,5000,0,Other Consultants,,,,,,No
The Royal Borough of Kensington and Chelsea,RBKC,0,Statutory Year-End Adjustments,Statutory Year-End Adjustments,0,Russell-Cooke LLP,D000000023,0,0,0,23/03/2022,3110400336,1301200,0,Acquisition of Land & Buildings,,,,,,No
The Royal Borough of Kensington and Chelsea,RBKC,0,Statutory Year-End Adjustments,Statutory Year-End Adjustments,0,Simply Conveyancing Property Lawyer,D000000023,0,0,0,24/03/2022,3110400905,634500,0,Acquisition of Land & Buildings,,,,,,No
The Royal Borough of Kensington and Chelsea,RBKC,0,Statutory Year-End Adjustments,Statutory Year-End Adjustments,0,Pars Rug Gallery,D000000023,0,0,0,25/03/2022,3110401230,7916.67,0,Other capital equipment,,,,,,No
The Royal Borough of Kensington and Chelsea,RBKC,0,Statutory Year-End Adjustments,Statutory Year-End Adjustments,0,Eversheds Sutherland LLP,D000000023,0,0,0,28/03/2022,3110401363,6600,0,Acquisition of Land & Buildings,,,,,,No
The Royal Borough of Kensington and Chelsea,RBKC,0,Statutory Year-End Adjustments,Statutory Year-End Adjustments,0,Euro Car Parks,D000000023,0,0,0,30/03/2022,3110403531,2761.4,0,Payments to main contractor,,,,,,No
The Royal Borough of Kensington and Chelsea,RBKC,0,Statutory Year-End Adjustments,Statutory Year-End Adjustments,0,GGS Solutions Ltd ,1234644,0,0,0,23/02/2022,2200228580,8785,0,Payments to sub contractor,,,,,,No
The Royal Borough of Kensington and Chelsea,RBKC,0,Statutory Year-End Adjustments,Statutory Year-End Adjustments,0,GGS Solutions Ltd ,1234644,0,0,0,04/03/2022,2200230967,6695,0,Payments to sub contractor,,,,,,No
The Royal Borough of Kensington and Chelsea,RBKC,0,Statutory Year-End Adjustments,Statutory Year-End Adjustments,0,GGS Solutions Ltd ,1234644,0,0,0,24/03/2022,2200235420,9773,0,Romanse Expenses,,,,,,No
The Royal Borough of Kensington and Chelsea,RBKC,0,Statutory Year-End Adjustments,Statutory Year-End Adjustments,0,GIA ,1234645,0,0,0,09/02/2022,2200226030,1431,0,Legal Fees & expenses,,,,,,No
The Royal Borough of Kensington and Chelsea,RBKC,0,Statutory Year-End Adjustments,Statutory Year-End Adjustments,0,GIA ,1234645,0,0,0,22/03/2022,2200234645,1200,0,Other Consultants,,,,,,No
The Royal Borough of Kensington and Chelsea,RBKC,0,Statutory Year-End Adjustments,Statutory Year-End Adjustments,0,GIA ,1234645,0,0,0,31/03/2022,2200237575,1548.25,0,Other Consultants,,,,,,No
The Royal Borough of Kensington and Chelsea,RBKC,0,Statutory Year-End Adjustments,Statutory Year-End Adjustments,0,Global Radio Services Ltd ,1234658,0,0,0,24/01/2022,2200221732,5446,0,Payments to main contractor,,,,,,No
The Royal Borough of Kensington and Chelsea,RBKC,0,Statutory Year-End Adjustments,Statutory Year-End Adjustments,0,Gardiner & Theobald LLP ,1234613,0,0,0,05/01/2022,2200216738,8860,0,Payments to main contractor,,,,,,No
The Royal Borough of Kensington and Chelsea,RBKC,0,Statutory Year-End Adjustments,Statutory Year-End Adjustments,0,Gardiner & Theobald LLP ,1234613,0,0,0,06/01/2022,2200217184,4500,0,Payments to main contractor,,,,,,No
The Royal Borough of Kensington and Chelsea,RBKC,0,Statutory Year-End Adjustments,Statutory Year-End Adjustments,0,Gardiner & Theobald LLP ,1234613,0,0,0,31/01/2022,2200223264,4500,0,Other Consultants,,,,,,No
The Royal Borough of Kensington and Chelsea,RBKC,0,Statutory Year-End Adjustments,Statutory Year-End Adjustments,0,Gardiner & Theobald LLP ,1234613,0,0,0,01/02/2022,2200224035,8860,0,Payments to main contractor,,,,,,No
The Royal Borough of Kensington and Chelsea,RBKC,0,Statutory Year-End Adjustments,Statutory Year-End Adjustments,0,Gardiner & Theobald LLP ,1234613,0,0,0,04/03/2022,2200230995,4500,0,Other Consultants,,,,,,No
The Royal Borough of Kensington and Chelsea,RBKC,0,Statutory Year-End Adjustments,Statutory Year-End Adjustments,0,Gardiner & Theobald LLP ,1234613,0,0,0,07/03/2022,2200231380,8860,0,Payments to main contractor,,,,,,No
The Royal Borough of Kensington and Chelsea,RBKC,0,Statutory Year-End Adjustments,Statutory Year-End Adjustments,0,Garvey Bros Builders Ltd,1288238,0,0,0,28/02/2022,2200229719,2700,0,Payments to main contractor,,,,,,No
The Royal Borough of Kensington and Chelsea,RBKC,0,Statutory Year-End Adjustments,Statutory Year-End Adjustments,0,Garvey Bros Builders Ltd,1288238,0,0,0,28/02/2022,2200229720,2610,0,Payments to main contractor,,,,,,No
The Royal Borough of Kensington and Chelsea,RBKC,0,Statutory Year-End Adjustments,Statutory Year-End Adjustments,0,Garvey Bros Builders Ltd,1288238,0,0,0,03/03/2022,2200230828,2870,0,Payments to main contractor,,,,,,No
The Royal Borough of Kensington and Chelsea,RBKC,0,Statutory Year-End Adjustments,Statutory Year-End Adjustments,0,Garvey Bros Builders Ltd,1288238,0,0,0,03/03/2022,2200230829,6680,0,Payments to main contractor,,,,,,No
The Royal Borough of Kensington and Chelsea,RBKC,0,Statutory Year-End Adjustments,Statutory Year-End Adjustments,0,Garvey Bros Builders Ltd,1288238,0,0,0,09/03/2022,2200232230,8013,0,Payments to main contractor,,,,,,No
The Royal Borough of Kensington and Chelsea,RBKC,0,Statutory Year-End Adjustments,Statutory Year-End Adjustments,0,Garvey Bros Builders Ltd,1288238,0,0,0,28/03/2022,2200236283,8005,0,Payments to main contractor,,,,,,No
The Royal Borough of Kensington and Chelsea,RBKC,0,Statutory Year-End Adjustments,Statutory Year-End Adjustments,0,Garvey Bros Builders Ltd,1288238,0,0,0,31/03/2022,2200237419,10975,0,Payments to main contractor,,,,,,No
The Royal Borough of Kensington and Chelsea,RBKC,0,Statutory Year-End Adjustments,Statutory Year-End Adjustments,0,Geotechnical and Environmental,1234639,0,0,0,06/01/2022,2200217188,3900,0,Payments to sub contractor,,,,,,No
The Royal Borough of Kensington and Chelsea,RBKC,0,Statutory Year-End Adjustments,Statutory Year-End Adjustments,0,Geotechnical and Environmental,1234639,0,0,0,10/02/2022,2200226196,871,0,B*Surveyors,,,,,,No
The Royal Borough of Kensington and Chelsea,RBKC,0,Statutory Year-End Adjustments,Statutory Year-End Adjustments,0,Geotechnical and Environmental,1234639,0,0,0,15/02/2022,2200227270,4200,0,Other Consultants,,,,,,No
The Royal Borough of Kensington and Chelsea,RBKC,0,Statutory Year-End Adjustments,Statutory Year-End Adjustments,0,Gerda Security Products Ltd ,1234642,0,0,0,11/01/2022,2200218472,1454.75,0,Planned Maintenance (CM),,,,,,No
The Royal Borough of Kensington and Chelsea,RBKC,0,Statutory Year-End Adjustments,Statutory Year-End Adjustments,0,Gerda Security Products Ltd ,1234642,0,0,0,18/01/2022,2200220320,817,0,Planned Maintenance (CM),,,,,,No
The Royal Borough of Kensington and Chelsea,RBKC,0,Statutory Year-End Adjustments,Statutory Year-End Adjustments,0,Gerda Security Products Ltd ,1234642,0,0,0,27/01/2022,2200222770,700,0,Payments to main contractor,,,,,,No
The Royal Borough of Kensington and Chelsea,RBKC,0,Statutory Year-End Adjustments,Statutory Year-End Adjustments,0,Gerda Security Products Ltd ,1234642,0,0,0,27/01/2022,2200222771,700,0,Payments to main contractor,,,,,,No
The Royal Borough of Kensington and Chelsea,RBKC,0,Statutory Year-End Adjustments,Statutory Year-End Adjustments,0,Gerda Security Products Ltd ,1234642,0,0,0,27/01/2022,2200222772,1750,0,Payments to main contractor,,,,,,No
The Royal Borough of Kensington and Chelsea,RBKC,0,Statutory Year-End Adjustments,Statutory Year-End Adjustments,0,Gerda Security Products Ltd ,1234642,0,0,0,27/01/2022,2200222773,700,0,Payments to main contractor,,,,,,No
The Royal Borough of Kensington and Chelsea,RBKC,0,Statutory Year-End Adjustments,Statutory Year-End Adjustments,0,Gerda Security Products Ltd ,1234642,0,0,0,27/01/2022,2200222775,700,0,Payments to main contractor,,,,,,No
The Royal Borough of Kensington and Chelsea,RBKC,0,Statutory Year-End Adjustments,Statutory Year-End Adjustments,0,Gerda Security Products Ltd ,1234642,0,0,0,27/01/2022,2200222833,10756.12,0,Payments to main contractor,,,,,,No
The Royal Borough of Kensington and Chelsea,RBKC,0,Statutory Year-End Adjustments,Statutory Year-End Adjustments,0,Gerda Security Products Ltd ,1234642,0,0,0,27/01/2022,2200222848,1400,0,Payments to main contractor,,,,,,No
The Royal Borough of Kensington and Chelsea,RBKC,0,Statutory Year-End Adjustments,Statutory Year-End Adjustments,0,Gerda Security Products Ltd ,1234642,0,0,0,27/01/2022,2200222849,2450,0,Payments to main contractor,,,,,,No
The Royal Borough of Kensington and Chelsea,RBKC,0,Statutory Year-End Adjustments,Statutory Year-End Adjustments,0,Gerda Security Products Ltd ,1234642,0,0,0,31/01/2022,2200223342,1294.21,0,Payments to main contractor,,,,,,No
The Royal Borough of Kensington and Chelsea,RBKC,0,Statutory Year-End Adjustments,Statutory Year-End Adjustments,0,Gerda Security Products Ltd ,1234642,0,0,0,31/01/2022,2200223510,2059.2,0,Payments to main contractor,,,,,,No
The Royal Borough of Kensington and Chelsea,RBKC,0,Statutory Year-End Adjustments,Statutory Year-End Adjustments,0,Gerda Security Products Ltd ,1234642,0,0,0,31/01/2022,2200223571,23646.81,0,Payments to main contractor,,,,,,No
The Royal Borough of Kensington and Chelsea,RBKC,0,Statutory Year-End Adjustments,Statutory Year-End Adjustments,0,Gerda Security Products Ltd ,1234642,0,0,0,31/01/2022,2200223572,47914.88,0,Payments to main contractor,,,,,,No
The Royal Borough of Kensington and Chelsea,RBKC,0,Statutory Year-End Adjustments,Statutory Year-End Adjustments,0,Gerda Security Products Ltd ,1234642,0,0,0,31/01/2022,2200223573,32214.97,0,Payments to main contractor,,,,,,No
The Royal Borough of Kensington and Chelsea,RBKC,0,Statutory Year-End Adjustments,Statutory Year-End Adjustments,0,Gerda Security Products Ltd ,1234642,0,0,0,01/02/2022,2200224007,700,0,Payments to main contractor,,,,,,No
The Royal Borough of Kensington and Chelsea,RBKC,0,Statutory Year-End Adjustments,Statutory Year-End Adjustments,0,Gerda Security Products Ltd ,1234642,0,0,0,01/02/2022,2200224009,9858.33,0,Payments to main contractor,,,,,,No
The Royal Borough of Kensington and Chelsea,RBKC,0,Statutory Year-End Adjustments,Statutory Year-End Adjustments,0,Gerda Security Products Ltd ,1234642,0,0,0,01/02/2022,2200224036,549,0,Planned Maintenance (CM),,,,,,No
The Royal Borough of Kensington and Chelsea,RBKC,0,Statutory Year-End Adjustments,Statutory Year-End Adjustments,0,Gerda Security Products Ltd ,1234642,0,0,0,11/02/2022,2200226411,700,0,Payments to main contractor,,,,,,No
The Royal Borough of Kensington and Chelsea,RBKC,0,Statutory Year-End Adjustments,Statutory Year-End Adjustments,0,Gerda Security Products Ltd ,1234642,0,0,0,14/02/2022,2200226947,61731.46,0,Payments to main contractor,,,,,,No
The Royal Borough of Kensington and Chelsea,RBKC,0,Statutory Year-End Adjustments,Statutory Year-End Adjustments,0,Gerda Security Products Ltd ,1234642,0,0,0,14/02/2022,2200226948,90923.63,0,Payments to main contractor,,,,,,No
The Royal Borough of Kensington and Chelsea,RBKC,0,Statutory Year-End Adjustments,Statutory Year-End Adjustments,0,Gerda Security Products Ltd ,1234642,0,0,0,18/02/2022,2200227917,1715.13,0,Payments to main contractor,,,,,,No
The Royal Borough of Kensington and Chelsea,RBKC,0,Statutory Year-End Adjustments,Statutory Year-End Adjustments,0,Gerda Security Products Ltd ,1234642,0,0,0,28/02/2022,2200229871,7056.44,0,Payments to main contractor,,,,,,No
The Royal Borough of Kensington and Chelsea,RBKC,0,Statutory Year-End Adjustments,Statutory Year-End Adjustments,0,Gerda Security Products Ltd ,1234642,0,0,0,28/02/2022,2200229872,2180.35,0,Payments to main contractor,,,,,,No
The Royal Borough of Kensington and Chelsea,RBKC,0,Statutory Year-End Adjustments,Statutory Year-End Adjustments,0,Gerda Security Products Ltd ,1234642,0,0,0,28/02/2022,2200229873,5583.4,0,Payments to main contractor,,,,,,No
The Royal Borough of Kensington and Chelsea,RBKC,0,Statutory Year-End Adjustments,Statutory Year-End Adjustments,0,Gerda Security Products Ltd ,1234642,0,0,0,28/02/2022,2200229874,8887.03,0,Payments to main contractor,,,,,,No
The Royal Borough of Kensington and Chelsea,RBKC,0,Statutory Year-End Adjustments,Statutory Year-End Adjustments,0,Gerda Security Products Ltd ,1234642,0,0,0,28/02/2022,2200229876,14928.94,0,Payments to main contractor,,,,,,No
The Royal Borough of Kensington and Chelsea,RBKC,0,Statutory Year-End Adjustments,Statutory Year-End Adjustments,0,Gerda Security Products Ltd ,1234642,0,0,0,28/02/2022,2200229877,6271.55,0,Payments to main contractor,,,,,,No
The Royal Borough of Kensington and Chelsea,RBKC,0,Statutory Year-End Adjustments,Statutory Year-End Adjustments,0,Gerda Security Products Ltd ,1234642,0,0,0,28/02/2022,2200229878,20805.85,0,Payments to main contractor,,,,,,No
The Royal Borough of Kensington and Chelsea,RBKC,0,Statutory Year-End Adjustments,Statutory Year-End Adjustments,0,Gerda Security Products Ltd ,1234642,0,0,0,28/02/2022,2200229879,6300,0,Payments to main contractor,,,,,,No
The Royal Borough of Kensington and Chelsea,RBKC,0,Statutory Year-End Adjustments,Statutory Year-End Adjustments,0,Gerda Security Products Ltd ,1234642,0,0,0,28/02/2022,2200229880,2450,0,Payments to main contractor,,,,,,No
The Royal Borough of Kensington and Chelsea,RBKC,0,Statutory Year-End Adjustments,Statutory Year-End Adjustments,0,Gerda Security Products Ltd ,1234642,0,0,0,28/02/2022,2200229881,3850,0,Payments to main contractor,,,,,,No
The Royal Borough of Kensington and Chelsea,RBKC,0,Statutory Year-End Adjustments,Statutory Year-End Adjustments,0,Gerda Security Products Ltd ,1234642,0,0,0,28/02/2022,2200229882,1050,0,Payments to main contractor,,,,,,No
The Royal Borough of Kensington and Chelsea,RBKC,0,Statutory Year-End Adjustments,Statutory Year-End Adjustments,0,Gerda Security Products Ltd ,1234642,0,0,0,28/02/2022,2200229883,2800,0,Payments to main contractor,,,,,,No
The Royal Borough of Kensington and Chelsea,RBKC,0,Statutory Year-End Adjustments,Statutory Year-End Adjustments,0,Gerda Security Products Ltd ,1234642,0,0,0,01/03/2022,2200229962,1750,0,Payments to main contractor,,,,,,No
The Royal Borough of Kensington and Chelsea,RBKC,0,Statutory Year-End Adjustments,Statutory Year-End Adjustments,0,Gerda Security Products Ltd ,1234642,0,0,0,01/03/2022,2200230132,49140.12,0,Payments to main contractor,,,,,,No
The Royal Borough of Kensington and Chelsea,RBKC,0,Statutory Year-End Adjustments,Statutory Year-End Adjustments,0,Gerda Security Products Ltd ,1234642,0,0,0,21/03/2022,2200234329,2061.32,0,Payments to main contractor,,,,,,No
The Royal Borough of Kensington and Chelsea,RBKC,0,Statutory Year-End Adjustments,Statutory Year-End Adjustments,0,Gerda Security Products Ltd ,1234642,0,0,0,24/03/2022,2200235491,1686.99,0,Payments to main contractor,,,,,,No
The Royal Borough of Kensington and Chelsea,RBKC,0,Statutory Year-End Adjustments,Statutory Year-End Adjustments,0,Gerda Security Products Ltd ,1234642,0,0,0,31/03/2022,2200237547,10500,0,Payments to main contractor,,,,,,No
The Royal Borough of Kensington and Chelsea,RBKC,0,Statutory Year-End Adjustments,Statutory Year-End Adjustments,0,Gerda Security Products Ltd ,1234642,0,0,0,31/03/2022,2200237623,700,0,Payments to main contractor,,,,,,No
The Royal Borough of Kensington and Chelsea,RBKC,0,Statutory Year-End Adjustments,Statutory Year-End Adjustments,0,Gerda Security Products Ltd ,1234642,0,0,0,31/03/2022,2200237625,5600,0,Payments to main contractor,,,,,,No
The Royal Borough of Kensington and Chelsea,RBKC,0,Statutory Year-End Adjustments,Statutory Year-End Adjustments,0,Gerda Security Products Ltd ,1234642,0,0,0,31/03/2022,2200237629,5250,0,Payments to main contractor,,,,,,No
The Royal Borough of Kensington and Chelsea,RBKC,0,Statutory Year-End Adjustments,Statutory Year-End Adjustments,0,Gerda Security Products Ltd ,1234642,0,0,0,31/03/2022,2200237632,9100,0,Payments to main contractor,,,,,,No
The Royal Borough of Kensington and Chelsea,RBKC,0,Statutory Year-End Adjustments,Statutory Year-End Adjustments,0,Gerda Security Products Ltd ,1234642,0,0,0,31/03/2022,2200237634,1750,0,Payments to main contractor,,,,,,No
The Royal Borough of Kensington and Chelsea,RBKC,0,Statutory Year-End Adjustments,Statutory Year-End Adjustments,0,Gerda Security Products Ltd ,1234642,0,0,0,31/03/2022,2200237759,89021.35,0,Payments to main contractor,,,,,,No
The Royal Borough of Kensington and Chelsea,RBKC,0,Statutory Year-End Adjustments,Statutory Year-End Adjustments,0,Gerda Security Products Ltd ,1234642,0,0,0,31/03/2022,2200237760,56892.18,0,Payments to main contractor,,,,,,No
The Royal Borough of Kensington and Chelsea,RBKC,0,Statutory Year-End Adjustments,Statutory Year-End Adjustments,0,Greenacre Recruitment,1258089,0,0,0,10/01/2022,2200217780,2362.5,0,B*Strategic Building Maintenance,,,,,,No
The Royal Borough of Kensington and Chelsea,RBKC,0,Statutory Year-End Adjustments,Statutory Year-End Adjustments,0,Greenacre Recruitment,1258089,0,0,0,10/01/2022,2200217783,2625,0,B*Strategic Building Maintenance,,,,,,No
The Royal Borough of Kensington and Chelsea,RBKC,0,Statutory Year-End Adjustments,Statutory Year-End Adjustments,0,Greenacre Recruitment,1258089,0,0,0,10/01/2022,2200217784,2625,0,B*Strategic Building Maintenance,,,,,,No
The Royal Borough of Kensington and Chelsea,RBKC,0,Statutory Year-End Adjustments,Statutory Year-End Adjustments,0,Greenacre Recruitment,1258089,0,0,0,10/01/2022,2200217785,2625,0,B*Strategic Building Maintenance,,,,,,No
The Royal Borough of Kensington and Chelsea,RBKC,0,Statutory Year-End Adjustments,Statutory Year-End Adjustments,0,Greenacre Recruitment,1258089,0,0,0,10/01/2022,2200217788,1575,0,B*Strategic Building Maintenance,,,,,,No
The Royal Borough of Kensington and Chelsea,RBKC,0,Statutory Year-End Adjustments,Statutory Year-End Adjustments,0,Greenacre Recruitment,1258089,0,0,0,11/01/2022,2200218194,4000,0,B*Strategic Building Maintenance,,,,,,No
The Royal Borough of Kensington and Chelsea,RBKC,0,Statutory Year-End Adjustments,Statutory Year-End Adjustments,0,Greenacre Recruitment,1258089,0,0,0,01/02/2022,2200223790,2376,0,B*Strategic Building Maintenance,,,,,,No
The Royal Borough of Kensington and Chelsea,RBKC,0,Statutory Year-End Adjustments,Statutory Year-End Adjustments,0,Guideline Lift Services Ltd ,1231219,0,0,0,11/01/2022,2200218535,55676.52,0,Payments to main contractor,,,,,,No
The Royal Borough of Kensington and Chelsea,RBKC,0,Statutory Year-End Adjustments,Statutory Year-End Adjustments,0,Guideline Lift Services Ltd ,1231219,0,0,0,07/02/2022,2200225455,9485.49,0,Payments to main contractor,,,,,,No
The Royal Borough of Kensington and Chelsea,RBKC,0,Statutory Year-End Adjustments,Statutory Year-End Adjustments,0,Guideline Lift Services Ltd ,1231219,0,0,0,07/02/2022,2200225456,7558.95,0,Payments to main contractor,,,,,,No
The Royal Borough of Kensington and Chelsea,RBKC,0,Statutory Year-End Adjustments,Statutory Year-End Adjustments,0,Guideline Lift Services Ltd ,1231219,0,0,0,07/02/2022,2200225457,17278.92,0,Payments to main contractor,,,,,,No
The Royal Borough of Kensington and Chelsea,RBKC,0,Statutory Year-End Adjustments,Statutory Year-End Adjustments,0,Guideline Lift Services Ltd ,1231219,0,0,0,07/02/2022,2200225458,9721.91,0,Payments to main contractor,,,,,,No
The Royal Borough of Kensington and Chelsea,RBKC,0,Statutory Year-End Adjustments,Statutory Year-End Adjustments,0,Guideline Lift Services Ltd ,1231219,0,0,0,07/02/2022,2200225459,11792,0,Payments to main contractor,,,,,,No
The Royal Borough of Kensington and Chelsea,RBKC,0,Statutory Year-End Adjustments,Statutory Year-End Adjustments,0,Guideline Lift Services Ltd ,1231219,0,0,0,07/02/2022,2200225460,59526.72,0,Payments to main contractor,,,,,,No
The Royal Borough of Kensington and Chelsea,RBKC,0,Statutory Year-End Adjustments,Statutory Year-End Adjustments,0,Guideline Lift Services Ltd ,1231219,0,0,0,07/02/2022,2200225461,50872.8,0,Payments to main contractor,,,,,,No
The Royal Borough of Kensington and Chelsea,RBKC,0,Statutory Year-End Adjustments,Statutory Year-End Adjustments,0,Guideline Lift Services Ltd ,1231219,0,0,0,07/02/2022,2200225462,11792,0,Payments to main contractor,,,,,,No
The Royal Borough of Kensington and Chelsea,RBKC,0,Statutory Year-End Adjustments,Statutory Year-End Adjustments,0,Guideline Lift Services Ltd ,1231219,0,0,0,07/02/2022,2200225463,9721.91,0,Payments to main contractor,,,,,,No
The Royal Borough of Kensington and Chelsea,RBKC,0,Statutory Year-End Adjustments,Statutory Year-End Adjustments,0,Guideline Lift Services Ltd ,1231219,0,0,0,07/02/2022,2200225464,50872.8,0,Payments to main contractor,,,,,,No
The Royal Borough of Kensington and Chelsea,RBKC,0,Statutory Year-End Adjustments,Statutory Year-End Adjustments,0,Guideline Lift Services Ltd ,1231219,0,0,0,21/03/2022,2200234519,23908.85,0,Payments to main contractor,,,,,,No
The Royal Borough of Kensington and Chelsea,RBKC,0,Statutory Year-End Adjustments,Statutory Year-End Adjustments,0,Guideline Lift Services Ltd ,1231219,0,0,0,21/03/2022,2200234521,23351.99,0,Payments to main contractor,,,,,,No
The Royal Borough of Kensington and Chelsea,RBKC,0,Statutory Year-End Adjustments,Statutory Year-End Adjustments,0,Guideline Lift Services Ltd ,1231219,0,0,0,21/03/2022,2200234522,71996,0,Payments to main contractor,,,,,,No
The Royal Borough of Kensington and Chelsea,RBKC,0,Statutory Year-End Adjustments,Statutory Year-End Adjustments,0,Guideline Lift Services Ltd ,1231219,0,0,0,21/03/2022,2200234523,110825.66,0,Payments to main contractor,,,,,,No
The Royal Borough of Kensington and Chelsea,RBKC,0,Statutory Year-End Adjustments,Statutory Year-End Adjustments,0,Guideline Lift Services Ltd ,1231219,0,0,0,21/03/2022,2200234524,48833.61,0,Payments to main contractor,,,,,,No
The Royal Borough of Kensington and Chelsea,RBKC,0,Statutory Year-End Adjustments,Statutory Year-End Adjustments,0,Guideline Lift Services Ltd ,1231219,0,0,0,21/03/2022,2200234525,60949.65,0,Payments to main contractor,,,,,,No
The Royal Borough of Kensington and Chelsea,RBKC,0,Statutory Year-End Adjustments,Statutory Year-End Adjustments,0,Guideline Lift Services Ltd ,1231219,0,0,0,21/03/2022,2200234526,18422.92,0,Payments to main contractor,,,,,,No
The Royal Borough of Kensington and Chelsea,RBKC,0,Statutory Year-End Adjustments,Statutory Year-End Adjustments,0,Harmony Fire Ltd,1282704,0,0,0,08/02/2022,2200225811,10935.52,0,Payments to main contractor,,,,,,No
The Royal Borough of Kensington and Chelsea,RBKC,0,Statutory Year-End Adjustments,Statutory Year-End Adjustments,0,Harmony Fire Ltd,1282704,0,0,0,21/03/2022,2200234528,15779.62,0,Payments to main contractor,,,,,,No
The Royal Borough of Kensington and Chelsea,RBKC,0,Statutory Year-End Adjustments,Statutory Year-End Adjustments,0,Harmony Fire Ltd,1282704,0,0,0,21/03/2022,2200234530,33708.6,0,Payments to main contractor,,,,,,No
The Royal Borough of Kensington and Chelsea,RBKC,0,Statutory Year-End Adjustments,Statutory Year-End Adjustments,0,Harris Hill Limited,1283188,0,0,0,10/01/2022,2200217765,872.32,0,B*Strategic Building Maintenance,,,,,,No
The Royal Borough of Kensington and Chelsea,RBKC,0,Statutory Year-End Adjustments,Statutory Year-End Adjustments,0,Harris Hill Limited,1283188,0,0,0,14/01/2022,2200219463,1090.4,0,B*Strategic Building Maintenance,,,,,,No
The Royal Borough of Kensington and Chelsea,RBKC,0,Statutory Year-End Adjustments,Statutory Year-End Adjustments,0,Harris Hill Limited,1283188,0,0,0,14/01/2022,2200219468,872.32,0,B*Strategic Building Maintenance,,,,,,No
The Royal Borough of Kensington and Chelsea,RBKC,0,Statutory Year-End Adjustments,Statutory Year-End Adjustments,0,Harris Hill Limited,1283188,0,0,0,21/01/2022,2200221507,1308.45,0,B*Strategic Building Maintenance,,,,,,No
The Royal Borough of Kensington and Chelsea,RBKC,0,Statutory Year-End Adjustments,Statutory Year-End Adjustments,0,Harris Hill Limited,1283188,0,0,0,01/02/2022,2200224008,1090.4,0,B*Strategic Building Maintenance,,,,,,No
The Royal Borough of Kensington and Chelsea,RBKC,0,Statutory Year-End Adjustments,Statutory Year-End Adjustments,0,Harris Hill Limited,1283188,0,0,0,03/02/2022,2200224608,1090.4,0,B*Strategic Building Maintenance,,,,,,No
The Royal Borough of Kensington and Chelsea,RBKC,0,Statutory Year-End Adjustments,Statutory Year-End Adjustments,0,Harris Hill Limited,1283188,0,0,0,11/02/2022,2200226532,1121.55,0,B*Strategic Building Maintenance,,,,,,No
The Royal Borough of Kensington and Chelsea,RBKC,0,Statutory Year-End Adjustments,Statutory Year-End Adjustments,0,Harris Hill Limited,1283188,0,0,0,17/02/2022,2200227670,1090.4,0,B*Strategic Building Maintenance,,,,,,No
The Royal Borough of Kensington and Chelsea,RBKC,0,Statutory Year-End Adjustments,Statutory Year-End Adjustments,0,Harris Hill Limited,1283188,0,0,0,03/03/2022,2200230782,1090.4,0,B*Strategic Building Maintenance,,,,,,No
The Royal Borough of Kensington and Chelsea,RBKC,0,Statutory Year-End Adjustments,Statutory Year-End Adjustments,0,Harris Hill Limited,1283188,0,0,0,08/03/2022,2200231749,965.77,0,B*Strategic Building Maintenance,,,,,,No
The Royal Borough of Kensington and Chelsea,RBKC,0,Statutory Year-End Adjustments,Statutory Year-End Adjustments,0,Harris Hill Limited,1283188,0,0,0,14/03/2022,2200232947,872.32,0,B*Strategic Building Maintenance,,,,,,No
The Royal Borough of Kensington and Chelsea,RBKC,0,Statutory Year-End Adjustments,Statutory Year-End Adjustments,0,Harris Hill Limited,1283188,0,0,0,28/03/2022,2200236131,1090.4,0,B*Strategic Building Maintenance,,,,,,No
The Royal Borough of Kensington and Chelsea,RBKC,0,Statutory Year-End Adjustments,Statutory Year-End Adjustments,0,Helix Construct Limited,1270811,0,0,0,05/01/2022,2200216737,145125.93,0,Payments to main contractor,,,,,,No
The Royal Borough of Kensington and Chelsea,RBKC,0,Statutory Year-End Adjustments,Statutory Year-End Adjustments,0,Helix Construct Limited,1270811,0,0,0,27/01/2022,2200222645,46562.79,0,Payments to main contractor,,,,,,No
The Royal Borough of Kensington and Chelsea,RBKC,0,Statutory Year-End Adjustments,Statutory Year-End Adjustments,0,Helix Construct Limited,1270811,0,0,0,21/02/2022,2200228121,56670.54,0,Payments to main contractor,,,,,,No
The Royal Borough of Kensington and Chelsea,RBKC,0,Statutory Year-End Adjustments,Statutory Year-End Adjustments,0,Helix Construct Limited,1270811,0,0,0,24/02/2022,2200228884,44875.87,0,Payments to main contractor,,,,,,No
The Royal Borough of Kensington and Chelsea,RBKC,0,Statutory Year-End Adjustments,Statutory Year-End Adjustments,0,Helix Construct Limited,1270811,0,0,0,22/03/2022,2200234705,36304.12,0,Payments to main contractor,,,,,,No
The Royal Borough of Kensington and Chelsea,RBKC,0,Statutory Year-End Adjustments,Statutory Year-End Adjustments,0,Henry Riley LLP ,1230402,0,0,0,04/01/2022,2200216557,6600,0,Other Consultants,,,,,,No
The Royal Borough of Kensington and Chelsea,RBKC,0,Statutory Year-End Adjustments,Statutory Year-End Adjustments,0,Henry Riley LLP ,1230402,0,0,0,01/03/2022,2200230275,4600,0,Other Consultants,,,,,,No
The Royal Borough of Kensington and Chelsea,RBKC,0,Statutory Year-End Adjustments,Statutory Year-End Adjustments,0,Hickton Consultants Ltd,1279547,0,0,0,07/01/2022,2200217488,736,0,,,,,,,No
The Royal Borough of Kensington and Chelsea,RBKC,0,Statutory Year-End Adjustments,Statutory Year-End Adjustments,0,Hickton Consultants Ltd,1279547,0,0,0,07/01/2022,2200217490,552,0,,,,,,,No
The Royal Borough of Kensington and Chelsea,RBKC,0,Statutory Year-End Adjustments,Statutory Year-End Adjustments,0,Hickton Consultants Ltd,1279547,0,0,0,13/01/2022,2200218964,736,0,,,,,,,No
The Royal Borough of Kensington and Chelsea,RBKC,0,Statutory Year-End Adjustments,Statutory Year-End Adjustments,0,Hickton Consultants Ltd,1279547,0,0,0,13/01/2022,2200219178,2208,0,,,,,,,No
The Royal Borough of Kensington and Chelsea,RBKC,0,Statutory Year-End Adjustments,Statutory Year-End Adjustments,0,Hickton Consultants Ltd,1279547,0,0,0,13/01/2022,2200219180,1840,0,,,,,,,No
The Royal Borough of Kensington and Chelsea,RBKC,0,Statutory Year-End Adjustments,Statutory Year-End Adjustments,0,Hickton Consultants Ltd,1279547,0,0,0,18/01/2022,2200220355,2576,0,,,,,,,No
The Royal Borough of Kensington and Chelsea,RBKC,0,Statutory Year-End Adjustments,Statutory Year-End Adjustments,0,Hickton Consultants Ltd,1279547,0,0,0,03/02/2022,2200224643,1840,0,,,,,,,No
The Royal Borough of Kensington and Chelsea,RBKC,0,Statutory Year-End Adjustments,Statutory Year-End Adjustments,0,Hickton Consultants Ltd,1279547,0,0,0,03/02/2022,2200224757,736,0,,,,,,,No
The Royal Borough of Kensington and Chelsea,RBKC,0,Statutory Year-End Adjustments,Statutory Year-End Adjustments,0,Hickton Consultants Ltd,1279547,0,0,0,07/02/2022,2200225503,1610,0,,,,,,,No
The Royal Borough of Kensington and Chelsea,RBKC,0,Statutory Year-End Adjustments,Statutory Year-End Adjustments,0,Hickton Consultants Ltd,1279547,0,0,0,07/02/2022,2200225504,920,0,,,,,,,No
The Royal Borough of Kensington and Chelsea,RBKC,0,Statutory Year-End Adjustments,Statutory Year-End Adjustments,0,Hickton Consultants Ltd,1279547,0,0,0,04/03/2022,2200231166,598,0,,,,,,,No
The Royal Borough of Kensington and Chelsea,RBKC,0,Statutory Year-End Adjustments,Statutory Year-End Adjustments,0,Hickton Consultants Ltd,1279547,0,0,0,04/03/2022,2200231169,2208,0,,,,,,,No
The Royal Borough of Kensington and Chelsea,RBKC,0,Statutory Year-End Adjustments,Statutory Year-End Adjustments,0,Hickton Consultants Ltd,1279547,0,0,0,04/03/2022,2200231171,920,0,,,,,,,No
The Royal Borough of Kensington and Chelsea,RBKC,0,Statutory Year-End Adjustments,Statutory Year-End Adjustments,0,Higham Flat Roofing Ltd ,1252605,0,0,0,14/01/2022,2200219312,995,0,Planned Maintenance (CM),,,,,,No
The Royal Borough of Kensington and Chelsea,RBKC,0,Statutory Year-End Adjustments,Statutory Year-End Adjustments,0,Higham Flat Roofing Ltd ,1252605,0,0,0,14/01/2022,2200219342,1295,0,Planned Maintenance (CM),,,,,,No
The Royal Borough of Kensington and Chelsea,RBKC,0,Statutory Year-End Adjustments,Statutory Year-End Adjustments,0,Idverde Ltd ,1231380,0,0,0,17/03/2022,2200233988,1878.85,0,Site Works,,,,,,No
The Royal Borough of Kensington and Chelsea,RBKC,0,Statutory Year-End Adjustments,Statutory Year-End Adjustments,0,Idverde Ltd ,1231380,0,0,0,31/03/2022,2200237762,76213,0,Payments to main contractor,,,,,,No
The Royal Borough of Kensington and Chelsea,RBKC,0,Statutory Year-End Adjustments,Statutory Year-End Adjustments,0,T/A Drayton Fencing,1231381,0,0,0,07/01/2022,2200217516,945,0,Romanse Expenses,,,,,,No
The Royal Borough of Kensington and Chelsea,RBKC,0,Statutory Year-End Adjustments,Statutory Year-End Adjustments,0,T/A Drayton Fencing,1231381,0,0,0,21/01/2022,2200221438,20637,0,Romanse Expenses,,,,,,No
The Royal Borough of Kensington and Chelsea,RBKC,0,Statutory Year-End Adjustments,Statutory Year-End Adjustments,0,JH Crawford Security Ltd ,1234817,0,0,0,14/01/2022,2200219303,1714,0,Payments to main contractor,,,,,,No
The Royal Borough of Kensington and Chelsea,RBKC,0,Statutory Year-End Adjustments,Statutory Year-End Adjustments,0,JH Crawford Security Ltd ,1234817,0,0,0,07/02/2022,2200225358,2132.9,0,Payments to main contractor,,,,,,No
The Royal Borough of Kensington and Chelsea,RBKC,0,Statutory Year-End Adjustments,Statutory Year-End Adjustments,0,JH Crawford Security Ltd ,1234817,0,0,0,22/02/2022,2200228417,1287.07,0,Payments to main contractor,,,,,,No
The Royal Borough of Kensington and Chelsea,RBKC,0,Statutory Year-End Adjustments,Statutory Year-End Adjustments,0,Jmw Solicitors Llp,1270862,0,0,0,04/01/2022,2200216426,3150,0,Legal Fees & expenses,,,,,,No
The Royal Borough of Kensington and Chelsea,RBKC,0,Statutory Year-End Adjustments,Statutory Year-End Adjustments,0,Jmw Solicitors Llp,1270862,0,0,0,04/01/2022,2200216428,2750,0,Legal Fees & expenses,,,,,,No
The Royal Borough of Kensington and Chelsea,RBKC,0,Statutory Year-End Adjustments,Statutory Year-End Adjustments,0,Jackson Coles LLP ,1230491,0,0,0,10/02/2022,2200226192,3189,0,Other Consultants,,,,,,No
The Royal Borough of Kensington and Chelsea,RBKC,0,Statutory Year-End Adjustments,Statutory Year-End Adjustments,0,Jacobs UK Ltd,1230492,0,0,0,18/03/2022,2200234136,14856.99,0,Design Consultant,,,,,,No
The Royal Borough of Kensington and Chelsea,RBKC,0,Statutory Year-End Adjustments,Statutory Year-End Adjustments,0,Redact Details,1277228,0,0,0,31/01/2022,2200223268,1624,0,Design Consultant,,,,,,No
The Royal Borough of Kensington and Chelsea,RBKC,0,Statutory Year-End Adjustments,Statutory Year-End Adjustments,0,Redact Details,1277228,0,0,0,28/03/2022,2200236121,4728.5,0,Design Consultant,,,,,,No
The Royal Borough of Kensington and Chelsea,RBKC,0,Statutory Year-End Adjustments,Statutory Year-End Adjustments,0,Redact Details,1277228,0,0,0,28/03/2022,2200236353,5288.5,0,Design Consultant,,,,,,No
The Royal Borough of Kensington and Chelsea,RBKC,0,Statutory Year-End Adjustments,Statutory Year-End Adjustments,0,Jj Integrated Solutions Ltd ,1234819,0,0,0,31/03/2022,2200237589,3460,0,Other Consultants,,,,,,No
The Royal Borough of Kensington and Chelsea,RBKC,0,Statutory Year-End Adjustments,Statutory Year-End Adjustments,0,K & T Heating Services Ltd ,1231384,0,0,0,13/01/2022,2200219109,89207.8,0,Payments to main contractor,,,,,,No
The Royal Borough of Kensington and Chelsea,RBKC,0,Statutory Year-End Adjustments,Statutory Year-End Adjustments,0,K & T Heating Services Ltd ,1231384,0,0,0,14/01/2022,2200219627,7465.6,0,Payments to main contractor,,,,,,No
The Royal Borough of Kensington and Chelsea,RBKC,0,Statutory Year-End Adjustments,Statutory Year-End Adjustments,0,K & T Heating Services Ltd ,1231384,0,0,0,14/01/2022,2200219629,7329.43,0,Payments to main contractor,,,,,,No
The Royal Borough of Kensington and Chelsea,RBKC,0,Statutory Year-End Adjustments,Statutory Year-End Adjustments,0,K & T Heating Services Ltd ,1231384,0,0,0,19/01/2022,2200220503,37781.36,0,Payments to main contractor,,,,,,No
The Royal Borough of Kensington and Chelsea,RBKC,0,Statutory Year-End Adjustments,Statutory Year-End Adjustments,0,K & T Heating Services Ltd ,1231384,0,0,0,04/02/2022,2200225166,111161.6,0,Payments to main contractor,,,,,,No
The Royal Borough of Kensington and Chelsea,RBKC,0,Statutory Year-End Adjustments,Statutory Year-End Adjustments,0,K & T Heating Services Ltd ,1231384,0,0,0,21/02/2022,2200228131,7329.43,0,Payments to main contractor,,,,,,No
The Royal Borough of Kensington and Chelsea,RBKC,0,Statutory Year-End Adjustments,Statutory Year-End Adjustments,0,K & T Heating Services Ltd ,1231384,0,0,0,04/03/2022,2200231042,5415.9,0,Heating System Replacement - CM,,,,,,No
The Royal Borough of Kensington and Chelsea,RBKC,0,Statutory Year-End Adjustments,Statutory Year-End Adjustments,0,K & T Heating Services Ltd ,1231384,0,0,0,04/03/2022,2200231043,2200,0,Heating System Replacement - CM,,,,,,No
The Royal Borough of Kensington and Chelsea,RBKC,0,Statutory Year-End Adjustments,Statutory Year-End Adjustments,0,K & T Heating Services Ltd ,1231384,0,0,0,08/03/2022,2200231876,139751,0,Payments to main contractor,,,,,,No
The Royal Borough of Kensington and Chelsea,RBKC,0,Statutory Year-End Adjustments,Statutory Year-End Adjustments,0,KBH Building Services Ltd,1276614,0,0,0,25/01/2022,2200222399,45056.96,0,Special Maintenance,,,,,,No
The Royal Borough of Kensington and Chelsea,RBKC,0,Statutory Year-End Adjustments,Statutory Year-End Adjustments,0,KBH Building Services Ltd,1276614,0,0,0,25/02/2022,2200229548,37849.44,0,Special Maintenance,,,,,,No
The Royal Borough of Kensington and Chelsea,RBKC,0,Statutory Year-End Adjustments,Statutory Year-End Adjustments,0,KBH Building Services Ltd,1276614,0,0,0,25/02/2022,2200229565,37849.44,0,Special Maintenance,,,,,,No
The Royal Borough of Kensington and Chelsea,RBKC,0,Statutory Year-End Adjustments,Statutory Year-End Adjustments,0,KBH Building Services Ltd,1276614,0,0,0,04/03/2022,2200231023,1000,0,Special Maintenance,,,,,,No
The Royal Borough of Kensington and Chelsea,RBKC,0,Statutory Year-End Adjustments,Statutory Year-End Adjustments,0,KBH Building Services Ltd,1276614,0,0,0,11/03/2022,2200232718,34709.12,0,Special Maintenance,,,,,,No
The Royal Borough of Kensington and Chelsea,RBKC,0,Statutory Year-End Adjustments,Statutory Year-End Adjustments,0,KBH Building Services Ltd,1276614,0,0,0,11/03/2022,2200232719,39356.22,0,Special Maintenance,,,,,,No
The Royal Borough of Kensington and Chelsea,RBKC,0,Statutory Year-End Adjustments,Statutory Year-End Adjustments,0,KBH Building Services Ltd,1276614,0,0,0,16/03/2022,2200233512,35308.53,0,Special Maintenance,,,,,,No
The Royal Borough of Kensington and Chelsea,RBKC,0,Statutory Year-End Adjustments,Statutory Year-End Adjustments,0,KP Acoustics Ltd,1230564,0,0,0,25/01/2022,2200222385,1250,0,Design Consultant,,,,,,No
The Royal Borough of Kensington and Chelsea,RBKC,0,Statutory Year-End Adjustments,Statutory Year-End Adjustments,0,T/A Kaner Olette Architects,1234833,0,0,0,06/01/2022,2200217209,1594.12,0,Payments to main contractor,,,,,,No
The Royal Borough of Kensington and Chelsea,RBKC,0,Statutory Year-End Adjustments,Statutory Year-End Adjustments,0,Kani Associates Limited,1285336,0,0,0,21/02/2022,2200228078,3400,0,Planned Maintenance (CM),,,,,,No
The Royal Borough of Kensington and Chelsea,RBKC,0,Statutory Year-End Adjustments,Statutory Year-End Adjustments,0,Karakusevic Carson Architects LLP,1273973,0,0,0,25/03/2022,2200235798,8223.75,0,Other Consultants,,,,,,No
The Royal Borough of Kensington and Chelsea,RBKC,0,Statutory Year-End Adjustments,Statutory Year-End Adjustments,0,Karakusevic Carson Architects LLP,1273973,0,0,0,25/03/2022,2200235966,7488,0,Other Consultants,,,,,,No
The Royal Borough of Kensington and Chelsea,RBKC,0,Statutory Year-End Adjustments,Statutory Year-End Adjustments,0,Karakusevic Carson Architects LLP,1273973,0,0,0,25/03/2022,2200235985,15624,0,Other Consultants,,,,,,No
The Royal Borough of Kensington and Chelsea,RBKC,0,Statutory Year-End Adjustments,Statutory Year-End Adjustments,0,Kensington +Chelsea Art Weekend Ltd,1268762,0,0,0,15/03/2022,2200233264,4835,0,Site Works,,,,,,No
The Royal Borough of Kensington and Chelsea,RBKC,0,Statutory Year-End Adjustments,Statutory Year-End Adjustments,0,Khipu Networks ,1230544,0,0,0,24/01/2022,2200221635,5166,0,Other capital equipment,,,,,,No
The Royal Borough of Kensington and Chelsea,RBKC,0,Statutory Year-End Adjustments,Statutory Year-End Adjustments,0,Khipu Networks ,1230544,0,0,0,04/03/2022,2200230888,9000,0,Other capital equipment,,,,,,No
The Royal Borough of Kensington and Chelsea,RBKC,0,Statutory Year-End Adjustments,Statutory Year-End Adjustments,0,Landmark Environmental Ltd,1272305,0,0,0,10/01/2022,2200217919,1517,0,Other Consultants,,,,,,No
The Royal Borough of Kensington and Chelsea,RBKC,0,Statutory Year-End Adjustments,Statutory Year-End Adjustments,0,Landmark Environmental Ltd,1272305,0,0,0,11/02/2022,2200226452,1517,0,Other Consultants,,,,,,No
The Royal Borough of Kensington and Chelsea,RBKC,0,Statutory Year-End Adjustments,Statutory Year-End Adjustments,0,Landmark Environmental Ltd,1272305,0,0,0,14/03/2022,2200232977,1517,0,Other Consultants,,,,,,No
The Royal Borough of Kensington and Chelsea,RBKC,0,Statutory Year-End Adjustments,Statutory Year-End Adjustments,0,Landrock Phillips Ltd ,1230566,0,0,0,31/03/2022,2200237763,860.4,0,Romanse Expenses,,,,,,No
The Royal Borough of Kensington and Chelsea,RBKC,0,Statutory Year-End Adjustments,Statutory Year-End Adjustments,0,Lawtech Group Ltd,1273996,0,0,0,05/01/2022,2200216835,277955.58,0,Payments to main contractor,,,,,,No
The Royal Borough of Kensington and Chelsea,RBKC,0,Statutory Year-End Adjustments,Statutory Year-End Adjustments,0,Lawtech Group Ltd,1273996,0,0,0,10/02/2022,2200226221,217963.13,0,Payments to main contractor,,,,,,No
The Royal Borough of Kensington and Chelsea,RBKC,0,Statutory Year-End Adjustments,Statutory Year-End Adjustments,0,Lawtech Group Ltd,1273996,0,0,0,08/03/2022,2200231865,201008.41,0,Payments to main contractor,,,,,,No
The Royal Borough of Kensington and Chelsea,RBKC,0,Statutory Year-End Adjustments,Statutory Year-End Adjustments,0,Lawtech Group Ltd,1273996,0,0,0,29/03/2022,2200236643,772033.81,0,Payments to main contractor,,,,,,No
The Royal Borough of Kensington and Chelsea,RBKC,0,Statutory Year-End Adjustments,Statutory Year-End Adjustments,0,Leafield Environmental Ltd,1282989,0,0,0,23/03/2022,2200235018,556,0,Health and Safety Alterations,,,,,,No
The Royal Borough of Kensington and Chelsea,RBKC,0,Statutory Year-End Adjustments,Statutory Year-End Adjustments,0,Redact Details,1231389,0,0,0,03/03/2022,2200230757,9410,0,Payments to main contractor,,,,,,No
The Royal Borough of Kensington and Chelsea,RBKC,0,Statutory Year-End Adjustments,Statutory Year-End Adjustments,0,Redact Details,1231389,0,0,0,03/03/2022,2200230805,7145,0,Payments to main contractor,,,,,,No
The Royal Borough of Kensington and Chelsea,RBKC,0,Statutory Year-End Adjustments,Statutory Year-End Adjustments,0,Redact Details,1231389,0,0,0,08/03/2022,2200231986,7220,0,Payments to main contractor,,,,,,No
The Royal Borough of Kensington and Chelsea,RBKC,0,Statutory Year-End Adjustments,Statutory Year-End Adjustments,0,Lend Lease Consulting (Emea) Ltd ,1234899,0,0,0,06/01/2022,2200217187,6000,0,Payments to sub contractor,,,,,,No
The Royal Borough of Kensington and Chelsea,RBKC,0,Statutory Year-End Adjustments,Statutory Year-End Adjustments,0,Lend Lease Consulting (Emea) Ltd ,1234899,0,0,0,01/02/2022,2200223980,6500,0,Payments to sub contractor,,,,,,No
The Royal Borough of Kensington and Chelsea,RBKC,0,Statutory Year-End Adjustments,Statutory Year-End Adjustments,0,Lend Lease Consulting (Emea) Ltd ,1234899,0,0,0,04/03/2022,2200230999,7000,0,Payments to sub contractor,,,,,,No
The Royal Borough of Kensington and Chelsea,RBKC,0,Statutory Year-End Adjustments,Statutory Year-End Adjustments,0,Lend Lease Consulting (Emea) Ltd ,1234899,0,0,0,31/03/2022,2200237722,1000,0,Payments to sub contractor,,,,,,No
The Royal Borough of Kensington and Chelsea,RBKC,0,Statutory Year-End Adjustments,Statutory Year-End Adjustments,0,Liberty Adaptations Ltd,1277725,0,0,0,31/03/2022,2200237428,5970,0,Payments to main contractor,,,,,,No
The Royal Borough of Kensington and Chelsea,RBKC,0,Statutory Year-End Adjustments,Statutory Year-End Adjustments,0,Liberty Adaptations Ltd,1277725,0,0,0,31/03/2022,2200237429,8605,0,Payments to main contractor,,,,,,No
The Royal Borough of Kensington and Chelsea,RBKC,0,Statutory Year-End Adjustments,Statutory Year-End Adjustments,0,London Fire Solutions LLP ,1231392,0,0,0,17/03/2022,2200233917,27365,0,Site Works,,,,,,No
The Royal Borough of Kensington and Chelsea,RBKC,0,Statutory Year-End Adjustments,Statutory Year-End Adjustments,0,London Underground Ltd ,1230631,0,0,0,25/01/2022,2200222275,2172.5,0,Payments to sub contractor,,,,,,No
The Royal Borough of Kensington and Chelsea,RBKC,0,Statutory Year-End Adjustments,Statutory Year-End Adjustments,0,Lorensbergs Ltd ,1234943,0,0,0,25/02/2022,2200229378,500,0,Other capital equipment,,,,,,No
The Royal Borough of Kensington and Chelsea,RBKC,0,Statutory Year-End Adjustments,Statutory Year-End Adjustments,0,Redact Details,1231393,0,0,0,31/01/2022,2200223236,1710,0,Romanse Expenses,,,,,,No
The Royal Borough of Kensington and Chelsea,RBKC,0,Statutory Year-End Adjustments,Statutory Year-End Adjustments,0,MDA Consulting Limited ,1234989,0,0,0,04/01/2022,2200216469,800,0,Payments to main contractor,,,,,,No
The Royal Borough of Kensington and Chelsea,RBKC,0,Statutory Year-End Adjustments,Statutory Year-End Adjustments,0,MDA Consulting Limited ,1234989,0,0,0,04/01/2022,2200216474,800,0,Payments to main contractor,,,,,,No
The Royal Borough of Kensington and Chelsea,RBKC,0,Statutory Year-End Adjustments,Statutory Year-End Adjustments,0,MDA Consulting Limited ,1234989,0,0,0,28/01/2022,2200222926,900,0,Payments to sub contractor,,,,,,No
The Royal Borough of Kensington and Chelsea,RBKC,0,Statutory Year-End Adjustments,Statutory Year-End Adjustments,0,MDA Consulting Limited ,1234989,0,0,0,28/01/2022,2200222927,600,0,Payments to main contractor,,,,,,No
The Royal Borough of Kensington and Chelsea,RBKC,0,Statutory Year-End Adjustments,Statutory Year-End Adjustments,0,MDA Consulting Limited ,1234989,0,0,0,01/02/2022,2200223873,660,0,,,,,,,No
The Royal Borough of Kensington and Chelsea,RBKC,0,Statutory Year-End Adjustments,Statutory Year-End Adjustments,0,MDA Consulting Limited ,1234989,0,0,0,04/02/2022,2200225087,1040,0,B*Surveyors,,,,,,No
The Royal Borough of Kensington and Chelsea,RBKC,0,Statutory Year-End Adjustments,Statutory Year-End Adjustments,0,MDA Consulting Limited ,1234989,0,0,0,25/02/2022,2200229293,800,0,Payments to main contractor,,,,,,No
The Royal Borough of Kensington and Chelsea,RBKC,0,Statutory Year-End Adjustments,Statutory Year-End Adjustments,0,MDA Consulting Limited ,1234989,0,0,0,25/02/2022,2200229295,800,0,Payments to main contractor,,,,,,No
The Royal Borough of Kensington and Chelsea,RBKC,0,Statutory Year-End Adjustments,Statutory Year-End Adjustments,0,MDA Consulting Limited ,1234989,0,0,0,25/02/2022,2200229296,880,0,Payments to sub contractor,,,,,,No
The Royal Borough of Kensington and Chelsea,RBKC,0,Statutory Year-End Adjustments,Statutory Year-End Adjustments,0,MDA Consulting Limited ,1234989,0,0,0,18/03/2022,2200234046,600,0,Payments to sub contractor,,,,,,No
The Royal Borough of Kensington and Chelsea,RBKC,0,Statutory Year-End Adjustments,Statutory Year-End Adjustments,0,MDA Consulting Limited ,1234989,0,0,0,31/03/2022,2200237582,800,0,Payments to main contractor,,,,,,No
The Royal Borough of Kensington and Chelsea,RBKC,0,Statutory Year-End Adjustments,Statutory Year-End Adjustments,0,MDA Consulting Limited ,1234989,0,0,0,31/03/2022,2200237584,800,0,Payments to main contractor,,,,,,No
The Royal Borough of Kensington and Chelsea,RBKC,0,Statutory Year-End Adjustments,Statutory Year-End Adjustments,0,MDA Consulting Limited ,1234989,0,0,0,31/03/2022,2200237585,900,0,Payments to sub contractor,,,,,,No
The Royal Borough of Kensington and Chelsea,RBKC,0,Statutory Year-End Adjustments,Statutory Year-End Adjustments,0,ME Construction Limited,1278687,0,0,0,24/01/2022,2200221761,28137.8,0,Planned Maintenance (CM),,,,,,No
The Royal Borough of Kensington and Chelsea,RBKC,0,Statutory Year-End Adjustments,Statutory Year-End Adjustments,0,ME Construction Limited,1278687,0,0,0,24/02/2022,2200228873,9826.34,0,Planned Maintenance (CM),,,,,,No
The Royal Borough of Kensington and Chelsea,RBKC,0,Statutory Year-End Adjustments,Statutory Year-End Adjustments,0,ME Construction Limited,1278687,0,0,0,24/02/2022,2200228874,47876.17,0,Planned Maintenance (CM),,,,,,No
The Royal Borough of Kensington and Chelsea,RBKC,0,Statutory Year-End Adjustments,Statutory Year-End Adjustments,0,MEC London Ltd ,1231398,0,0,0,21/02/2022,2200228079,3885,0,Planned Maintenance (CM),,,,,,No
The Royal Borough of Kensington and Chelsea,RBKC,0,Statutory Year-End Adjustments,Statutory Year-End Adjustments,0,MEC London Ltd ,1231398,0,0,0,29/03/2022,2200236682,62450,0,Planned Maintenance (CM),,,,,,No
The Royal Borough of Kensington and Chelsea,RBKC,0,Statutory Year-End Adjustments,Statutory Year-End Adjustments,0,MMM Architects Ltd,1259041,0,0,0,04/01/2022,2200216437,1500,0,Payments to sub contractor,,,,,,No
The Royal Borough of Kensington and Chelsea,RBKC,0,Statutory Year-End Adjustments,Statutory Year-End Adjustments,0,MMM Architects Ltd,1259041,0,0,0,09/02/2022,2200226028,1500,0,HCC - Architects,,,,,,No
The Royal Borough of Kensington and Chelsea,RBKC,0,Statutory Year-End Adjustments,Statutory Year-End Adjustments,0,MMM Architects Ltd,1259041,0,0,0,04/03/2022,2200230997,1500,0,HCC - Architects,,,,,,No
The Royal Borough of Kensington and Chelsea,RBKC,0,Statutory Year-End Adjustments,Statutory Year-End Adjustments,0,Maccreanor Lavington Ltd,1262735,0,0,0,02/02/2022,2200224491,9000,0,Other Consultants,,,,,,No
The Royal Borough of Kensington and Chelsea,RBKC,0,Statutory Year-End Adjustments,Statutory Year-End Adjustments,0,Mace Limited ,1230643,0,0,0,13/01/2022,2200219101,286228.01,0,Payments to main contractor,,,,,,No
The Royal Borough of Kensington and Chelsea,RBKC,0,Statutory Year-End Adjustments,Statutory Year-End Adjustments,0,Mace Limited ,1230643,0,0,0,07/02/2022,2200225369,301150.56,0,Payments to main contractor,,,,,,No
The Royal Borough of Kensington and Chelsea,RBKC,0,Statutory Year-End Adjustments,Statutory Year-End Adjustments,0,Mace Limited ,1230643,0,0,0,07/03/2022,2200231543,309636.69,0,Payments to main contractor,,,,,,No
The Royal Borough of Kensington and Chelsea,RBKC,0,Statutory Year-End Adjustments,Statutory Year-End Adjustments,0,Maracom Limited ,1255577,0,0,0,07/02/2022,2200225337,22610,0,Planned Maintenance (CM),,,,,,No
The Royal Borough of Kensington and Chelsea,RBKC,0,Statutory Year-End Adjustments,Statutory Year-End Adjustments,0,Marlborough Primary School ,1232813,0,0,0,10/01/2022,2200217696,21337.65,0,Other Consultants,,,,,,No
The Royal Borough of Kensington and Chelsea,RBKC,0,Statutory Year-End Adjustments,Statutory Year-End Adjustments,0,Marlborough Primary School ,1232813,0,0,0,30/03/2022,2200236970,3000,0,Other Consultants,,,,,,No
The Royal Borough of Kensington and Chelsea,RBKC,0,Statutory Year-End Adjustments,Statutory Year-End Adjustments,0,Marlborough Primary School ,1232813,0,0,0,30/03/2022,2200236987,9450,0,Other Consultants,,,,,,No
The Royal Borough of Kensington and Chelsea,RBKC,0,Statutory Year-End Adjustments,Statutory Year-End Adjustments,0,Master Locking Systems Ltd,1262396,0,0,0,12/01/2022,2200218604,4653.82,0,Payments to main contractor,,,,,,No
The Royal Borough of Kensington and Chelsea,RBKC,0,Statutory Year-End Adjustments,Statutory Year-End Adjustments,0,Master Locking Systems Ltd,1262396,0,0,0,31/01/2022,2200223451,2823.88,0,Payments to main contractor,,,,,,No
The Royal Borough of Kensington and Chelsea,RBKC,0,Statutory Year-End Adjustments,Statutory Year-End Adjustments,0,Metastreet Ltd,1269625,0,0,0,08/02/2022,2200225623,5000,0,Computer Software,,,,,,No
The Royal Borough of Kensington and Chelsea,RBKC,0,Statutory Year-End Adjustments,Statutory Year-End Adjustments,0,Metastreet Ltd,1269625,0,0,0,08/02/2022,2200225623,12000,0,Computer Software,,,,,,No
The Royal Borough of Kensington and Chelsea,RBKC,0,Statutory Year-End Adjustments,Statutory Year-End Adjustments,0,Michael Barclay Partnership LLP ,1235000,0,0,0,22/03/2022,2200234870,3200,0,Other Consultants,,,,,,No
The Royal Borough of Kensington and Chelsea,RBKC,0,Statutory Year-End Adjustments,Statutory Year-End Adjustments,0,Michael Dyson Associates Ltd ,1253270,0,0,0,13/01/2022,2200218965,9826.13,0,,,,,,,No
The Royal Borough of Kensington and Chelsea,RBKC,0,Statutory Year-End Adjustments,Statutory Year-End Adjustments,0,Michael Dyson Associates Ltd ,1253270,0,0,0,14/01/2022,2200219346,9826.13,0,,,,,,,No
The Royal Borough of Kensington and Chelsea,RBKC,0,Statutory Year-End Adjustments,Statutory Year-End Adjustments,0,Michael Dyson Associates Ltd ,1253270,0,0,0,10/02/2022,2200226233,9826.13,0,,,,,,,No
The Royal Borough of Kensington and Chelsea,RBKC,0,Statutory Year-End Adjustments,Statutory Year-End Adjustments,0,T/A Ingine Ingine,1285916,0,0,0,20/01/2022,2200221110,3303,0,Romanse Expenses,,,,,,No
The Royal Borough of Kensington and Chelsea,RBKC,0,Statutory Year-End Adjustments,Statutory Year-End Adjustments,0,T/A Ingine Ingine,1285916,0,0,0,15/03/2022,2200233353,1468,0,Romanse Expenses,,,,,,No
The Royal Borough of Kensington and Chelsea,RBKC,0,Statutory Year-End Adjustments,Statutory Year-End Adjustments,0,Millwood Servicing Ltd ,1253373,0,0,0,07/02/2022,2200225420,6559.35,0,Payments to main contractor,,,,,,No
The Royal Borough of Kensington and Chelsea,RBKC,0,Statutory Year-End Adjustments,Statutory Year-End Adjustments,0,Millwood Servicing Ltd ,1253373,0,0,0,14/03/2022,2200232984,14290.85,0,Payments to main contractor,,,,,,No
The Royal Borough of Kensington and Chelsea,RBKC,0,Statutory Year-End Adjustments,Statutory Year-End Adjustments,0,Mitie Property Services (UK) Ltd ,1230701,0,0,0,04/01/2022,2200216484,51891.99,0,Payments to main contractor,,,,,,No
The Royal Borough of Kensington and Chelsea,RBKC,0,Statutory Year-End Adjustments,Statutory Year-End Adjustments,0,Mitie Property Services (UK) Ltd ,1230701,0,0,0,18/01/2022,2200220365,59122.34,0,Payments to main contractor,,,,,,No
The Royal Borough of Kensington and Chelsea,RBKC,0,Statutory Year-End Adjustments,Statutory Year-End Adjustments,0,Mitie Property Services (UK) Ltd ,1230701,0,0,0,02/02/2022,2200224402,89126.95,0,Payments to main contractor,,,,,,No
The Royal Borough of Kensington and Chelsea,RBKC,0,Statutory Year-End Adjustments,Statutory Year-End Adjustments,0,Mitie Property Services (UK) Ltd ,1230701,0,0,0,02/03/2022,2200230419,36588.18,0,Payments to main contractor,,,,,,No
The Royal Borough of Kensington and Chelsea,RBKC,0,Statutory Year-End Adjustments,Statutory Year-End Adjustments,0,Mitie Property Services (UK) Ltd ,1230701,0,0,0,09/03/2022,2200232151,31481.2,0,Planned Maintenance (CM),,,,,,No
The Royal Borough of Kensington and Chelsea,RBKC,0,Statutory Year-End Adjustments,Statutory Year-End Adjustments,0,Mitie Property Services (UK) Ltd ,1230701,0,0,0,31/03/2022,2200237522,10842.84,0,Payments to main contractor,,,,,,No
The Royal Borough of Kensington and Chelsea,RBKC,0,Statutory Year-End Adjustments,Statutory Year-End Adjustments,0,Mitie Property Services (UK) Ltd ,1230701,0,0,0,31/03/2022,2200237523,4330.49,0,Payments to main contractor,,,,,,No
The Royal Borough of Kensington and Chelsea,RBKC,0,Statutory Year-End Adjustments,Statutory Year-End Adjustments,0,Montagu Evans LLP ,1230713,0,0,0,15/02/2022,2200227105,2000,0,Other Consultants,,,,,,No
The Royal Borough of Kensington and Chelsea,RBKC,0,Statutory Year-End Adjustments,Statutory Year-End Adjustments,0,Montagu Evans LLP ,1230713,0,0,0,15/03/2022,2200233312,10000,0,Other Consultants,,,,,,No
The Royal Borough of Kensington and Chelsea,RBKC,0,Statutory Year-End Adjustments,Statutory Year-End Adjustments,0,Moorhead Richardson Ltd,1276460,0,0,0,18/03/2022,2200234146,6395,0,Other Consultants,,,,,,No
The Royal Borough of Kensington and Chelsea,RBKC,0,Statutory Year-End Adjustments,Statutory Year-End Adjustments,0,Moorhead Richardson Ltd,1276460,0,0,0,18/03/2022,2200234148,8780,0,Other Consultants,,,,,,No
The Royal Borough of Kensington and Chelsea,RBKC,0,Statutory Year-End Adjustments,Statutory Year-End Adjustments,0,Moorhead Richardson Ltd,1276460,0,0,0,18/03/2022,2200234149,2065,0,Other Consultants,,,,,,No
The Royal Borough of Kensington and Chelsea,RBKC,0,Statutory Year-End Adjustments,Statutory Year-End Adjustments,0,Morgan Sindall Construction,1260362,0,0,0,02/03/2022,2200230498,2426.82,0,Payments to main contractor,,,,,,No
The Royal Borough of Kensington and Chelsea,RBKC,0,Statutory Year-End Adjustments,Statutory Year-End Adjustments,0,Morgan Sindall Construction,1260362,0,0,0,09/03/2022,2200232068,88780.2,0,Payments to main contractor,,,,,,No
The Royal Borough of Kensington and Chelsea,RBKC,0,Statutory Year-End Adjustments,Statutory Year-End Adjustments,0,Morgan Sindall Construction,1260362,0,0,0,15/03/2022,2200233355,192431.82,0,Other Consultants,,,,,,No
The Royal Borough of Kensington and Chelsea,RBKC,0,Statutory Year-End Adjustments,Statutory Year-End Adjustments,0,Morgan Sindall Construction,1260362,0,0,0,15/03/2022,2200233357,16815.7,0,Payments to main contractor,,,,,,No
The Royal Borough of Kensington and Chelsea,RBKC,0,Statutory Year-End Adjustments,Statutory Year-End Adjustments,0,Mulalley & Company Ltd ,1231403,0,0,0,11/01/2022,2200218417,51920.8,0,Payments to main contractor,,,,,,No
The Royal Borough of Kensington and Chelsea,RBKC,0,Statutory Year-End Adjustments,Statutory Year-End Adjustments,0,Mulalley & Company Ltd ,1231403,0,0,0,12/01/2022,2200218794,47982.7,0,Payments to main contractor,,,,,,No
The Royal Borough of Kensington and Chelsea,RBKC,0,Statutory Year-End Adjustments,Statutory Year-End Adjustments,0,Mulalley & Company Ltd ,1231403,0,0,0,01/02/2022,2200223815,51388.85,0,Payments to main contractor,,,,,,No
The Royal Borough of Kensington and Chelsea,RBKC,0,Statutory Year-End Adjustments,Statutory Year-End Adjustments,0,Mulalley & Company Ltd ,1231403,0,0,0,07/02/2022,2200225454,59895.83,0,Payments to main contractor,,,,,,No
The Royal Borough of Kensington and Chelsea,RBKC,0,Statutory Year-End Adjustments,Statutory Year-End Adjustments,0,Mulalley & Company Ltd ,1231403,0,0,0,09/02/2022,2200226138,105032.59,0,Payments to main contractor,,,,,,No
The Royal Borough of Kensington and Chelsea,RBKC,0,Statutory Year-End Adjustments,Statutory Year-End Adjustments,0,Mulalley & Company Ltd ,1231403,0,0,0,01/03/2022,2200230014,84039.46,0,Payments to main contractor,,,,,,No
The Royal Borough of Kensington and Chelsea,RBKC,0,Statutory Year-End Adjustments,Statutory Year-End Adjustments,0,Mulalley & Company Ltd ,1231403,0,0,0,02/03/2022,2200230420,16821.46,0,Payments to main contractor,,,,,,No
The Royal Borough of Kensington and Chelsea,RBKC,0,Statutory Year-End Adjustments,Statutory Year-End Adjustments,0,Mulalley & Company Ltd ,1231403,0,0,0,04/03/2022,2200231172,62079.07,0,Payments to main contractor,,,,,,No
The Royal Borough of Kensington and Chelsea,RBKC,0,Statutory Year-End Adjustments,Statutory Year-End Adjustments,0,Mulalley & Company Ltd ,1231403,0,0,0,10/03/2022,2200232488,79534.94,0,Payments to main contractor,,,,,,No
The Royal Borough of Kensington and Chelsea,RBKC,0,Statutory Year-End Adjustments,Statutory Year-End Adjustments,0,Mulalley & Company Ltd ,1231403,0,0,0,28/03/2022,2200236204,84539.06,0,Payments to main contractor,,,,,,No
The Royal Borough of Kensington and Chelsea,RBKC,0,Statutory Year-End Adjustments,Statutory Year-End Adjustments,0,Mulalley & Company Ltd ,1231403,0,0,0,30/03/2022,2200237114,137028.9,0,Payments to main contractor,,,,,,No
The Royal Borough of Kensington and Chelsea,RBKC,0,Statutory Year-End Adjustments,Statutory Year-End Adjustments,0,Murrill Construction Ltd ,1231405,0,0,0,04/03/2022,2200230884,1245,0,Romanse Expenses,,,,,,No
The Royal Borough of Kensington and Chelsea,RBKC,0,Statutory Year-End Adjustments,Statutory Year-End Adjustments,0,T/A SVM Associates,1230750,0,0,0,20/01/2022,2200221108,5990,0,Planned Maintenance (CM),,,,,,No
The Royal Borough of Kensington and Chelsea,RBKC,0,Statutory Year-End Adjustments,Statutory Year-End Adjustments,0,NORTH SV LIMITED,1271756,0,0,0,22/03/2022,2200234672,29425,0,Other capital equipment,,,,,,No
The Royal Borough of Kensington and Chelsea,RBKC,0,Statutory Year-End Adjustments,Statutory Year-End Adjustments,0,Nathaniel Lichfields and Partners,1265397,0,0,0,04/01/2022,2200216460,500,0,HCC - Architects,,,,,,No
The Royal Borough of Kensington and Chelsea,RBKC,0,Statutory Year-End Adjustments,Statutory Year-End Adjustments,0,Nathaniel Lichfields and Partners,1265397,0,0,0,22/02/2022,2200228404,2575,0,Other Consultants,,,,,,No
The Royal Borough of Kensington and Chelsea,RBKC,0,Statutory Year-End Adjustments,Statutory Year-End Adjustments,0,Nathaniel Lichfields and Partners,1265397,0,0,0,31/03/2022,2200237594,3550,0,Payments to main contractor,,,,,,No
The Royal Borough of Kensington and Chelsea,RBKC,0,Statutory Year-End Adjustments,Statutory Year-End Adjustments,0,Netcall Telecom Ltd ,1230760,0,0,0,15/02/2022,2200227019,1010,0,Other capital equipment,,,,,,No
The Royal Borough of Kensington and Chelsea,RBKC,0,Statutory Year-End Adjustments,Statutory Year-End Adjustments,0,Norton Rose Fulbright LLP ,1235073,0,0,0,05/01/2022,2200216662,3045.22,0,Other Consultants,,,,,,No
The Royal Borough of Kensington and Chelsea,RBKC,0,Statutory Year-End Adjustments,Statutory Year-End Adjustments,0,Nova Design Associates Limited,1287919,0,0,0,30/03/2022,2200237069,2580,0,Design Consultant,,,,,,No
The Royal Borough of Kensington and Chelsea,RBKC,0,Statutory Year-End Adjustments,Statutory Year-End Adjustments,0,Octavia Housing (Main Account) ,1230955,0,0,0,25/03/2022,2200235792,15314,0,Payments to main contractor,,,,,,No
The Royal Borough of Kensington and Chelsea,RBKC,0,Statutory Year-End Adjustments,Statutory Year-End Adjustments,0,Octavia Housing (Main Account) ,1230955,0,0,0,25/03/2022,2200235844,10860,0,Payments to main contractor,,,,,,No
The Royal Borough of Kensington and Chelsea,RBKC,0,Statutory Year-End Adjustments,Statutory Year-End Adjustments,0,Octavia Housing (Main Account) ,1230955,0,0,0,31/03/2022,2200237578,4566,0,Payments to main contractor,,,,,,No
The Royal Borough of Kensington and Chelsea,RBKC,0,Statutory Year-End Adjustments,Statutory Year-End Adjustments,0,Octavia Housing (Main Account) ,1230955,0,0,0,31/03/2022,2200237579,6270,0,Payments to main contractor,,,,,,No
The Royal Borough of Kensington and Chelsea,RBKC,0,Statutory Year-End Adjustments,Statutory Year-End Adjustments,0,Oracle Security Services Ltd ,1258033,0,0,0,17/01/2022,2200220113,1961.85,0,,,,,,,No
The Royal Borough of Kensington and Chelsea,RBKC,0,Statutory Year-End Adjustments,Statutory Year-End Adjustments,0,Oracle Security Services Ltd ,1258033,0,0,0,17/01/2022,2200220114,2679.6,0,,,,,,,No
The Royal Borough of Kensington and Chelsea,RBKC,0,Statutory Year-End Adjustments,Statutory Year-End Adjustments,0,Oracle Security Services Ltd ,1258033,0,0,0,17/01/2022,2200220115,2679.6,0,,,,,,,No
The Royal Borough of Kensington and Chelsea,RBKC,0,Statutory Year-End Adjustments,Statutory Year-End Adjustments,0,Oracle Security Services Ltd ,1258033,0,0,0,17/01/2022,2200220116,2679.6,0,,,,,,,No
The Royal Borough of Kensington and Chelsea,RBKC,0,Statutory Year-End Adjustments,Statutory Year-End Adjustments,0,Oracle Security Services Ltd ,1258033,0,0,0,21/01/2022,2200221509,2679.6,0,,,,,,,No
The Royal Borough of Kensington and Chelsea,RBKC,0,Statutory Year-End Adjustments,Statutory Year-End Adjustments,0,Oracle Security Services Ltd ,1258033,0,0,0,31/01/2022,2200223273,3509.28,0,,,,,,,No
The Royal Borough of Kensington and Chelsea,RBKC,0,Statutory Year-End Adjustments,Statutory Year-End Adjustments,0,Oracle Security Services Ltd ,1258033,0,0,0,31/01/2022,2200223274,2942.78,0,,,,,,,No
The Royal Borough of Kensington and Chelsea,RBKC,0,Statutory Year-End Adjustments,Statutory Year-End Adjustments,0,Oracle Security Services Ltd ,1258033,0,0,0,31/01/2022,2200223521,2679.6,0,,,,,,,No
The Royal Borough of Kensington and Chelsea,RBKC,0,Statutory Year-End Adjustments,Statutory Year-End Adjustments,0,Oracle Security Services Ltd ,1258033,0,0,0,09/02/2022,2200226090,2679.6,0,,,,,,,No
The Royal Borough of Kensington and Chelsea,RBKC,0,Statutory Year-End Adjustments,Statutory Year-End Adjustments,0,Oracle Security Services Ltd ,1258033,0,0,0,11/02/2022,2200226531,2679.6,0,,,,,,,No
The Royal Borough of Kensington and Chelsea,RBKC,0,Statutory Year-End Adjustments,Statutory Year-End Adjustments,0,Oracle Security Services Ltd ,1258033,0,0,0,15/02/2022,2200227020,2679.6,0,,,,,,,No
The Royal Borough of Kensington and Chelsea,RBKC,0,Statutory Year-End Adjustments,Statutory Year-End Adjustments,0,Oracle Security Services Ltd ,1258033,0,0,0,04/03/2022,2200230925,2679.6,0,,,,,,,No
The Royal Borough of Kensington and Chelsea,RBKC,0,Statutory Year-End Adjustments,Statutory Year-End Adjustments,0,Oracle Security Services Ltd ,1258033,0,0,0,08/03/2022,2200231944,2679.6,0,,,,,,,No
The Royal Borough of Kensington and Chelsea,RBKC,0,Statutory Year-End Adjustments,Statutory Year-End Adjustments,0,Oracle Security Services Ltd ,1258033,0,0,0,22/03/2022,2200234863,2679.6,0,,,,,,,No
The Royal Borough of Kensington and Chelsea,RBKC,0,Statutory Year-End Adjustments,Statutory Year-End Adjustments,0,Oracle Security Services Ltd ,1258033,0,0,0,28/03/2022,2200236366,2679.6,0,,,,,,,No
The Royal Borough of Kensington and Chelsea,RBKC,0,Statutory Year-End Adjustments,Statutory Year-End Adjustments,0,Oracle Security Services Ltd ,1258033,0,0,0,31/03/2022,2200237703,2679.6,0,,,,,,,No
The Royal Borough of Kensington and Chelsea,RBKC,0,Statutory Year-End Adjustments,Statutory Year-End Adjustments,0,Oracle Security Services Ltd ,1258033,0,0,0,31/03/2022,2200237705,2679.6,0,,,,,,,No
The Royal Borough of Kensington and Chelsea,RBKC,0,Statutory Year-End Adjustments,Statutory Year-End Adjustments,0,Osborn Associates Ltd,1262963,0,0,0,04/01/2022,2200216584,9520,0,Other Consultants,,,,,,No
The Royal Borough of Kensington and Chelsea,RBKC,0,Statutory Year-End Adjustments,Statutory Year-End Adjustments,0,Osborn Associates Ltd,1262963,0,0,0,04/01/2022,2200216592,12920,0,Other Consultants,,,,,,No
The Royal Borough of Kensington and Chelsea,RBKC,0,Statutory Year-End Adjustments,Statutory Year-End Adjustments,0,Osborn Associates Ltd,1262963,0,0,0,11/02/2022,2200226420,7800,0,Other Consultants,,,,,,No
The Royal Borough of Kensington and Chelsea,RBKC,0,Statutory Year-End Adjustments,Statutory Year-End Adjustments,0,Osborn Associates Ltd,1262963,0,0,0,11/02/2022,2200226421,2250,0,Other Consultants,,,,,,No
The Royal Borough of Kensington and Chelsea,RBKC,0,Statutory Year-End Adjustments,Statutory Year-End Adjustments,0,Osborn Associates Ltd,1262963,0,0,0,01/03/2022,2200230140,1875,0,B*Surveyors,,,,,,No
The Royal Borough of Kensington and Chelsea,RBKC,0,Statutory Year-End Adjustments,Statutory Year-End Adjustments,0,Osborn Associates Ltd,1262963,0,0,0,03/03/2022,2200230593,900,0,Other Consultants,,,,,,No
The Royal Borough of Kensington and Chelsea,RBKC,0,Statutory Year-End Adjustments,Statutory Year-End Adjustments,0,Osborn Associates Ltd,1262963,0,0,0,03/03/2022,2200230594,1315,0,Other Consultants,,,,,,No
The Royal Borough of Kensington and Chelsea,RBKC,0,Statutory Year-End Adjustments,Statutory Year-End Adjustments,0,Osborn Associates Ltd,1262963,0,0,0,03/03/2022,2200230710,6375,0,B*Surveyors,,,,,,No
The Royal Borough of Kensington and Chelsea,RBKC,0,Statutory Year-End Adjustments,Statutory Year-End Adjustments,0,Osborne Thomas Ltd,1261917,0,0,0,13/01/2022,2200219074,9987.99,0,Other Consultants,,,,,,No
The Royal Borough of Kensington and Chelsea,RBKC,0,Statutory Year-End Adjustments,Statutory Year-End Adjustments,0,Osborne Thomas Ltd,1261917,0,0,0,13/01/2022,2200219075,6658.66,0,Other Consultants,,,,,,No
The Royal Borough of Kensington and Chelsea,RBKC,0,Statutory Year-End Adjustments,Statutory Year-End Adjustments,0,Osborne Thomas Ltd,1261917,0,0,0,11/02/2022,2200226542,8174.37,0,,,,,,,No
The Royal Borough of Kensington and Chelsea,RBKC,0,Statutory Year-End Adjustments,Statutory Year-End Adjustments,0,Osborne Thomas Ltd,1261917,0,0,0,11/02/2022,2200226544,8174.37,0,,,,,,,No
The Royal Borough of Kensington and Chelsea,RBKC,0,Statutory Year-End Adjustments,Statutory Year-End Adjustments,0,Osborne Thomas Ltd,1261917,0,0,0,02/03/2022,2200230490,9219.37,0,,,,,,,No
The Royal Borough of Kensington and Chelsea,RBKC,0,Statutory Year-End Adjustments,Statutory Year-End Adjustments,0,Osborne Thomas Ltd,1261917,0,0,0,02/03/2022,2200230491,9219.37,0,,,,,,,No
The Royal Borough of Kensington and Chelsea,RBKC,0,Statutory Year-End Adjustments,Statutory Year-End Adjustments,0,Oxford Gardens Primary School ,1232822,0,0,0,03/02/2022,2200224681,10835,0,Romanse Expenses,,,,,,No
The Royal Borough of Kensington and Chelsea,RBKC,0,Statutory Year-End Adjustments,Statutory Year-End Adjustments,0,Oxford Gardens Primary School ,1232822,0,0,0,28/02/2022,2200229867,3000,0,Romanse Expenses,,,,,,No
The Royal Borough of Kensington and Chelsea,RBKC,0,Statutory Year-End Adjustments,Statutory Year-End Adjustments,0,Oxford Gardens Primary School ,1232822,0,0,0,08/03/2022,2200231761,5852,0,Romanse Expenses,,,,,,No
The Royal Borough of Kensington and Chelsea,RBKC,0,Statutory Year-End Adjustments,Statutory Year-End Adjustments,0,POD Point Ltd,1235177,0,0,0,21/02/2022,2200228179,43570.4,0,Site Works,,,,,,No
The Royal Borough of Kensington and Chelsea,RBKC,0,Statutory Year-End Adjustments,Statutory Year-End Adjustments,0,Paragon Glass Services,1259789,0,0,0,17/02/2022,2200227747,2915,0,Special Maintenance,,,,,,No
The Royal Borough of Kensington and Chelsea,RBKC,0,Statutory Year-End Adjustments,Statutory Year-End Adjustments,0,Paragon Glass Services,1259789,0,0,0,17/02/2022,2200227748,3697.15,0,Special Maintenance,,,,,,No
The Royal Borough of Kensington and Chelsea,RBKC,0,Statutory Year-End Adjustments,Statutory Year-End Adjustments,0,Perfect Circle JV Ltd ,1254748,0,0,0,04/01/2022,2200216461,68712,0,Payments to main contractor,,,,,,No
The Royal Borough of Kensington and Chelsea,RBKC,0,Statutory Year-End Adjustments,Statutory Year-End Adjustments,0,Perfect Circle JV Ltd ,1254748,0,0,0,04/01/2022,2200216482,72167,0,Payments to main contractor,,,,,,No
The Royal Borough of Kensington and Chelsea,RBKC,0,Statutory Year-End Adjustments,Statutory Year-End Adjustments,0,Perfect Circle JV Ltd ,1254748,0,0,0,06/01/2022,2200217211,25610,0,Payments to main contractor,,,,,,No
The Royal Borough of Kensington and Chelsea,RBKC,0,Statutory Year-End Adjustments,Statutory Year-End Adjustments,0,Perfect Circle JV Ltd ,1254748,0,0,0,20/01/2022,2200221124,21073,0,Payments to main contractor,,,,,,No
The Royal Borough of Kensington and Chelsea,RBKC,0,Statutory Year-End Adjustments,Statutory Year-End Adjustments,0,Perfect Circle JV Ltd ,1254748,0,0,0,25/01/2022,2200222276,6820,0,Payments to main contractor,,,,,,No
The Royal Borough of Kensington and Chelsea,RBKC,0,Statutory Year-End Adjustments,Statutory Year-End Adjustments,0,Perfect Circle JV Ltd ,1254748,0,0,0,10/02/2022,2200226190,102198.5,0,Payments to main contractor,,,,,,No
The Royal Borough of Kensington and Chelsea,RBKC,0,Statutory Year-End Adjustments,Statutory Year-End Adjustments,0,Perfect Circle JV Ltd ,1254748,0,0,0,15/02/2022,2200227271,71373.15,0,Payments to main contractor,,,,,,No
The Royal Borough of Kensington and Chelsea,RBKC,0,Statutory Year-End Adjustments,Statutory Year-End Adjustments,0,Perfect Circle JV Ltd ,1254748,0,0,0,21/02/2022,2200228122,19000,0,Payments to main contractor,,,,,,No
The Royal Borough of Kensington and Chelsea,RBKC,0,Statutory Year-End Adjustments,Statutory Year-End Adjustments,0,Perfect Circle JV Ltd ,1254748,0,0,0,21/02/2022,2200228123,13882.35,0,Payments to main contractor,,,,,,No
The Royal Borough of Kensington and Chelsea,RBKC,0,Statutory Year-End Adjustments,Statutory Year-End Adjustments,0,Perfect Circle JV Ltd ,1254748,0,0,0,04/03/2022,2200230991,17762.5,0,Payments to main contractor,,,,,,No
The Royal Borough of Kensington and Chelsea,RBKC,0,Statutory Year-End Adjustments,Statutory Year-End Adjustments,0,Perfect Circle JV Ltd ,1254748,0,0,0,04/03/2022,2200230992,20496,0,Payments to main contractor,,,,,,No
The Royal Borough of Kensington and Chelsea,RBKC,0,Statutory Year-End Adjustments,Statutory Year-End Adjustments,0,Perfect Circle JV Ltd ,1254748,0,0,0,04/03/2022,2200230994,2500,0,Payments to main contractor,,,,,,No
The Royal Borough of Kensington and Chelsea,RBKC,0,Statutory Year-End Adjustments,Statutory Year-End Adjustments,0,Perfect Circle JV Ltd ,1254748,0,0,0,22/03/2022,2200234775,26632,0,Payments to main contractor,,,,,,No
The Royal Borough of Kensington and Chelsea,RBKC,0,Statutory Year-End Adjustments,Statutory Year-End Adjustments,0,Perfect Circle JV Ltd ,1254748,0,0,0,31/03/2022,2200237559,13757,0,Payments to main contractor,,,,,,No
The Royal Borough of Kensington and Chelsea,RBKC,0,Statutory Year-End Adjustments,Statutory Year-End Adjustments,0,Perfect Circle JV Ltd ,1254748,0,0,0,31/03/2022,2200237560,8575,0,Payments to main contractor,,,,,,No
The Royal Borough of Kensington and Chelsea,RBKC,0,Statutory Year-End Adjustments,Statutory Year-End Adjustments,0,Perkins & Will UK Limited,1265496,0,0,0,13/01/2022,2200219099,4250,0,Payments to main contractor,,,,,,No
The Royal Borough of Kensington and Chelsea,RBKC,0,Statutory Year-End Adjustments,Statutory Year-End Adjustments,0,Perkins & Will UK Limited,1265496,0,0,0,13/01/2022,2200219100,502.5,0,Payments to main contractor,,,,,,No
The Royal Borough of Kensington and Chelsea,RBKC,0,Statutory Year-End Adjustments,Statutory Year-End Adjustments,0,Perkins & Will UK Limited,1265496,0,0,0,17/02/2022,2200227647,10271,0,Payments to main contractor,,,,,,No
The Royal Borough of Kensington and Chelsea,RBKC,0,Statutory Year-End Adjustments,Statutory Year-End Adjustments,0,Perkins & Will UK Limited,1265496,0,0,0,28/03/2022,2200236356,7777,0,Payments to main contractor,,,,,,No
The Royal Borough of Kensington and Chelsea,RBKC,0,Statutory Year-End Adjustments,Statutory Year-End Adjustments,0,Perkins & Will UK Limited,1265496,0,0,0,28/03/2022,2200236362,3050,0,Payments to main contractor,,,,,,No
The Royal Borough of Kensington and Chelsea,RBKC,0,Statutory Year-End Adjustments,Statutory Year-End Adjustments,0,Perkins & Will UK Limited,1265496,0,0,0,29/03/2022,2200236513,2035,0,Other Consultants,,,,,,No
